Body Name,Body,Service Label,Service Code,Service Division Label,Service Division Code,Expenditure Category,Expenditure Code,CIPFA Detailed Expenditure Type,CIPFA Detailed Expenditure Code,Date,Transaction Number,Net Amount,Capital and Revenue,Creditor Name
Brighton & Hove City Council,http://statistics.data.gov.uk/id/local-authority/00ML,Education Services,BVAEDU,Ed - Special Ed,EKE,Third Party Payments,F,Other Agencies,FL,05/09/2012,PAY00503178,59015.77,Revenue,Treloar School
Brighton & Hove City Council,http://statistics.data.gov.uk/id/local-authority/00ML,Adult Social Care,BVASOC,S Svcs - Older People Svcs,PPL,Customer n Client Receipts,M,Fees n Charges,MB,05/09/2012,PAY00503179,-1430.40,Revenue,Freshford Cottage Nursing Home
Brighton & Hove City Council,http://statistics.data.gov.uk/id/local-authority/00ML,Adult Social Care,BVASOC,S Svcs - Older People Svcs,PPL,Third Party Payments,F,Other Establishments,FH,05/09/2012,PAY00503179,6743.12,Revenue,Freshford Cottage Nursing Home
Brighton & Hove City Council,http://statistics.data.gov.uk/id/local-authority/00ML,Adult Social Care,BVASOC,S Svcs - Older People Svcs,PPL,Customer n Client Receipts,M,Fees n Charges,MB,05/09/2012,PAY00503182,-967.29,Revenue,St George`s Retreat
Brighton & Hove City Council,http://statistics.data.gov.uk/id/local-authority/00ML,Adult Social Care,BVASOC,S Svcs - Older People Svcs,PPL,Third Party Payments,F,Other Establishments,FH,05/09/2012,PAY00503182,3114.10,Revenue,St George`s Retreat
Brighton & Hove City Council,http://statistics.data.gov.uk/id/local-authority/00ML,Non SERCOP,BVANON,Non-Council,NNC,Supplies and Services,E,Miscellaneous Expenses,EM,05/09/2012,PAY00503183,206.01,Revenue,Julia Robinson Catering Ltd
Brighton & Hove City Council,http://statistics.data.gov.uk/id/local-authority/00ML,Cultural and Related Services,BVACUL,Recreation and sport,REC,Supplies and Services,E,Miscellaneous Expenses,EM,05/09/2012,PAY00503183,718.15,Revenue,Julia Robinson Catering Ltd
Brighton & Hove City Council,http://statistics.data.gov.uk/id/local-authority/00ML,Children�s Social Care,BVACSC,Child Srvcs - Other Fam Supp,FFX,Transfer Payments,G,Other Transfer Payments,GD,05/09/2012,PAY00503185,1400.00,Revenue,Greenways Guest House
Brighton & Hove City Council,http://statistics.data.gov.uk/id/local-authority/00ML,Adult Social Care,BVASOC,S Svcs - Older People Svcs,PPL,Customer n Client Receipts,M,Fees n Charges,MB,05/09/2012,PAY00503192,-3179.16,Revenue,Rosecroft Registered Rest Home
Brighton & Hove City Council,http://statistics.data.gov.uk/id/local-authority/00ML,Adult Social Care,BVASOC,S Svcs - Older People Svcs,PPL,Direct Employees,A,Internal Recharges Employees,HJA,05/09/2012,PAY00503192,-1349.00,Revenue,Rosecroft Registered Rest Home
Brighton & Hove City Council,http://statistics.data.gov.uk/id/local-authority/00ML,Adult Social Care,BVASOC,S Svcs - Older People Svcs,PPL,Supplies and Services,E,Miscellaneous Expenses,EM,05/09/2012,PAY00503192,1536.80,Revenue,Rosecroft Registered Rest Home
Brighton & Hove City Council,http://statistics.data.gov.uk/id/local-authority/00ML,Adult Social Care,BVASOC,S Svcs - Older People Svcs,PPL,Third Party Payments,F,Other Establishments,FH,05/09/2012,PAY00503192,8459.04,Revenue,Rosecroft Registered Rest Home
Brighton & Hove City Council,http://statistics.data.gov.uk/id/local-authority/00ML,Central Services To The Public,BVACEN,Support Services (SSC),PPT,Supplies and Services,E,Services,EF,05/09/2012,PAY00503194,4800.00,Revenue,Payment to Individual
Brighton & Hove City Council,http://statistics.data.gov.uk/id/local-authority/00ML,Adult Social Care,BVASOC,S Svcs - Learning Disability,LDY,Customer n Client Receipts,M,Fees n Charges,MB,05/09/2012,PAY00503196,-44.00,Revenue,Mears Care
Brighton & Hove City Council,http://statistics.data.gov.uk/id/local-authority/00ML,Adult Social Care,BVASOC,S Svcs - Learning Disability,LDY,Third Party Payments,F,Other Establishments,FH,05/09/2012,PAY00503196,94.88,Revenue,Mears Care
Brighton & Hove City Council,http://statistics.data.gov.uk/id/local-authority/00ML,Adult Social Care,BVASOC,S Svcs - Mental Health,MHT,Third Party Payments,F,Other Establishments,FH,05/09/2012,PAY00503196,167.87,Revenue,Mears Care
Brighton & Hove City Council,http://statistics.data.gov.uk/id/local-authority/00ML,Adult Social Care,BVASOC,S Svcs - Older People Svcs,PPL,Customer n Client Receipts,M,Fees n Charges,MB,05/09/2012,PAY00503196,-947.00,Revenue,Mears Care
Brighton & Hove City Council,http://statistics.data.gov.uk/id/local-authority/00ML,Adult Social Care,BVASOC,S Svcs - Older People Svcs,PPL,Third Party Payments,F,Other Establishments,FH,05/09/2012,PAY00503196,7011.08,Revenue,Mears Care
Brighton & Hove City Council,http://statistics.data.gov.uk/id/local-authority/00ML,Adult Social Care,BVASOC,S Svcs - Physical Disability,PDY,Third Party Payments,F,Other Establishments,FH,05/09/2012,PAY00503196,634.51,Revenue,Mears Care
Brighton & Hove City Council,http://statistics.data.gov.uk/id/local-authority/00ML,Education Services,BVAEDU,Ed - EY - PVI,ENP,Supplies and Services,E,Grants n Subscriptions,EK,05/09/2012,PAY00503197,19083.00,Revenue,Young Sussex (Aldrington)
Brighton & Hove City Council,http://statistics.data.gov.uk/id/local-authority/00ML,Education Services,BVAEDU,Ed - Ed Other - Other,ENF,Premises Related,C,Repair Maint n Alterations,CA,05/09/2012,PAY00503199,10400.00,Revenue,TSS Facilities Ltd
Brighton & Hove City Council,http://statistics.data.gov.uk/id/local-authority/00ML,Central Services To The Public,BVACEN,Support Services (SSC),PPT,Premises Related,C,Repair Maint n Alterations,CA,05/09/2012,PAY00503199,70.00,Revenue,TSS Facilities Ltd
Brighton & Hove City Council,http://statistics.data.gov.uk/id/local-authority/00ML,Housing Services General Fund,BVAHOG,Homelessness,HML,Premises Related,C,Repair Maint n Alterations,CA,05/09/2012,PAY00503200,1878.12,Revenue,DJ Flooring Ltd
Brighton & Hove City Council,http://statistics.data.gov.uk/id/local-authority/00ML,Adult Social Care,BVASOC,S Svcs - Older People Svcs,PPL,Customer n Client Receipts,M,Fees n Charges,MB,05/09/2012,PAY00503201,-1827.63,Revenue,Jewish Care
Brighton & Hove City Council,http://statistics.data.gov.uk/id/local-authority/00ML,Adult Social Care,BVASOC,S Svcs - Older People Svcs,PPL,Third Party Payments,F,Other Establishments,FH,05/09/2012,PAY00503201,7174.40,Revenue,Jewish Care
Brighton & Hove City Council,http://statistics.data.gov.uk/id/local-authority/00ML,Education Services,BVAEDU,Ed - EY - PVI,ENP,Supplies and Services,E,Grants n Subscriptions,EK,05/09/2012,PAY00503202,14269.00,Revenue,Playtime Under 5`s
Brighton & Hove City Council,http://statistics.data.gov.uk/id/local-authority/00ML,Education Services,BVAEDU,Ed - EY - PVI,ENP,Supplies and Services,E,Grants n Subscriptions,EK,05/09/2012,PAY00503203,13572.00,Revenue,Brighton & Hove Montessori School
Brighton & Hove City Council,http://statistics.data.gov.uk/id/local-authority/00ML,Education Services,BVAEDU,Ed - EY - PVI,ENP,Supplies and Services,E,Grants n Subscriptions,EK,05/09/2012,PAY00503204,42139.00,Revenue,Deepdene School
Brighton & Hove City Council,http://statistics.data.gov.uk/id/local-authority/00ML,Education Services,BVAEDU,Ed - EY - PVI,ENP,Supplies and Services,E,Grants n Subscriptions,EK,05/09/2012,PAY00503205,23509.00,Revenue,Dolphins Pre-School
Brighton & Hove City Council,http://statistics.data.gov.uk/id/local-authority/00ML,Education Services,BVAEDU,Ed - EY - PVI,ENP,Supplies and Services,E,Grants n Subscriptions,EK,05/09/2012,PAY00503206,15045.00,Revenue,Dorothy Stringer Playgroup
Brighton & Hove City Council,http://statistics.data.gov.uk/id/local-authority/00ML,Education Services,BVAEDU,Ed - EY - PVI,ENP,Supplies and Services,E,Grants n Subscriptions,EK,05/09/2012,PAY00503207,5770.00,Revenue,Funland Pre-School
Brighton & Hove City Council,http://statistics.data.gov.uk/id/local-authority/00ML,Education Services,BVAEDU,Ed - EY - PVI,ENP,Supplies and Services,E,Grants n Subscriptions,EK,05/09/2012,PAY00503208,8280.00,Revenue,St Nicholas Pre-School
Brighton & Hove City Council,http://statistics.data.gov.uk/id/local-authority/00ML,Education Services,BVAEDU,Ed - EY - PVI,ENP,Supplies and Services,E,Grants n Subscriptions,EK,05/09/2012,PAY00503209,5552.00,Revenue,Torah Academy
Brighton & Hove City Council,http://statistics.data.gov.uk/id/local-authority/00ML,Education Services,BVAEDU,Ed - EY - PVI,ENP,Supplies and Services,E,Grants n Subscriptions,EK,05/09/2012,PAY00503210,40046.00,Revenue,Windlesham School Trust Ltd (A Charity)
Brighton & Hove City Council,http://statistics.data.gov.uk/id/local-authority/00ML,Education Services,BVAEDU,Ed - EY - PVI,ENP,Supplies and Services,E,Grants n Subscriptions,EK,05/09/2012,PAY00503211,21492.00,Revenue,Young Sussex (Dyke Road)
Brighton & Hove City Council,http://statistics.data.gov.uk/id/local-authority/00ML,Education Services,BVAEDU,Ed - EY - PVI,ENP,Supplies and Services,E,Grants n Subscriptions,EK,05/09/2012,PAY00503212,9125.00,Revenue,Preston Park Playgroup
Brighton & Hove City Council,http://statistics.data.gov.uk/id/local-authority/00ML,Education Services,BVAEDU,Ed - EY - PVI,ENP,Supplies and Services,E,Grants n Subscriptions,EK,05/09/2012,PAY00503213,6734.00,Revenue,Rottingdean Montessori Nursery School
Brighton & Hove City Council,http://statistics.data.gov.uk/id/local-authority/00ML,Education Services,BVAEDU,Ed - EY - PVI,ENP,Supplies and Services,E,Grants n Subscriptions,EK,05/09/2012,PAY00503214,9453.00,Revenue,St Aubyn`s School
Brighton & Hove City Council,http://statistics.data.gov.uk/id/local-authority/00ML,Adult Social Care,BVASOC,S Svcs - Learning Disability,LDY,Premises Related,C,Cleaning n Domestic Supps,CH,05/09/2012,PAY00503215,27.47,Revenue,The Imprest Holder
Brighton & Hove City Council,http://statistics.data.gov.uk/id/local-authority/00ML,Adult Social Care,BVASOC,S Svcs - Learning Disability,LDY,Supplies and Services,E,Equip't Furniture n Materials,EA,05/09/2012,PAY00503215,33.74,Revenue,The Imprest Holder
Brighton & Hove City Council,http://statistics.data.gov.uk/id/local-authority/00ML,Adult Social Care,BVASOC,S Svcs - Learning Disability,LDY,Supplies and Services,E,Catering,EB,05/09/2012,PAY00503215,358.94,Revenue,The Imprest Holder
Brighton & Hove City Council,http://statistics.data.gov.uk/id/local-authority/00ML,Adult Social Care,BVASOC,S Svcs - Learning Disability,LDY,Supplies and Services,E,Print Stat & Gen Office Exps,ED,05/09/2012,PAY00503215,7.65,Revenue,The Imprest Holder
Brighton & Hove City Council,http://statistics.data.gov.uk/id/local-authority/00ML,Adult Social Care,BVASOC,S Svcs - Learning Disability,LDY,Supplies and Services,E,Communications n Computing,EH,05/09/2012,PAY00503215,1.50,Revenue,The Imprest Holder
Brighton & Hove City Council,http://statistics.data.gov.uk/id/local-authority/00ML,Adult Social Care,BVASOC,S Svcs - Learning Disability,LDY,Supplies and Services,E,Expenses,EJ,05/09/2012,PAY00503215,118.25,Revenue,The Imprest Holder
Brighton & Hove City Council,http://statistics.data.gov.uk/id/local-authority/00ML,Adult Social Care,BVASOC,S Svcs - Learning Disability,LDY,Transport Related,D,Public Transport,DD,05/09/2012,PAY00503215,73.50,Revenue,The Imprest Holder
Brighton & Hove City Council,http://statistics.data.gov.uk/id/local-authority/00ML,Adult Social Care,BVASOC,S Svcs - Learning Disability,LDY,Transport Related,D,Other Transport Costs,DG,05/09/2012,PAY00503215,2.00,Revenue,The Imprest Holder
Brighton & Hove City Council,http://statistics.data.gov.uk/id/local-authority/00ML,Education Services,BVAEDU,Ed - EY - PVI,ENP,Supplies and Services,E,Grants n Subscriptions,EK,05/09/2012,PAY00503217,15684.00,Revenue,Little Ducklings Pre-School
Brighton & Hove City Council,http://statistics.data.gov.uk/id/local-authority/00ML,Children�s Social Care,BVACSC,Child Srvcs - Leaving Care,FAL,Transfer Payments,G,Other Transfer Payments,GD,05/09/2012,PAY00503218,6047.44,Revenue,Foster Care Associates Ltd
Brighton & Hove City Council,http://statistics.data.gov.uk/id/local-authority/00ML,Education Services,BVAEDU,Ed - EY - PVI,ENP,Supplies and Services,E,Grants n Subscriptions,EK,05/09/2012,PAY00503220,19491.00,Revenue,Brighton & Hove High School- Junior Dept
Brighton & Hove City Council,http://statistics.data.gov.uk/id/local-authority/00ML,Cultural and Related Services,BVACUL,Recreation and sport,REC,Premises Related,C,Repair Maint n Alterations,CA,05/09/2012,PAY00503226,528.00,Revenue,Simpson Electrical
Brighton & Hove City Council,http://statistics.data.gov.uk/id/local-authority/00ML,Housing Services General Fund,BVAHOG,Homelessness,HML,Premises Related,C,Energy Costs,CB,05/09/2012,PAY00503227,1291.19,Revenue,British Gas Business
Brighton & Hove City Council,http://statistics.data.gov.uk/id/local-authority/00ML,Adult Social Care,BVASOC,S Svcs - Learning Disability,LDY,Customer n Client Receipts,M,Fees n Charges,MB,05/09/2012,PAY00503228,-235.00,Revenue,Caburn Support Services
Brighton & Hove City Council,http://statistics.data.gov.uk/id/local-authority/00ML,Adult Social Care,BVASOC,S Svcs - Learning Disability,LDY,Third Party Payments,F,Other Establishments,FH,05/09/2012,PAY00503228,4644.95,Revenue,Caburn Support Services
Brighton & Hove City Council,http://statistics.data.gov.uk/id/local-authority/00ML,Housing Services General Fund,BVAHOG,Hsing Benefits,HGB,Supplies and Services,E,Services,EF,05/09/2012,PAY00503229,2732.50,Revenue,Experian Ltd
Brighton & Hove City Council,http://statistics.data.gov.uk/id/local-authority/00ML,Cultural and Related Services,BVACUL,Recreation and sport,REC,Supplies and Services,E,Services,EF,05/09/2012,PAY00503230,1205.00,Revenue,Payment to Individual
Brighton & Hove City Council,http://statistics.data.gov.uk/id/local-authority/00ML,Adult Social Care,BVASOC,S Svcs - Older People Svcs,PPL,Customer n Client Receipts,M,Fees n Charges,MB,05/09/2012,PAY00503233,1618.66,Revenue,Elreg House
Brighton & Hove City Council,http://statistics.data.gov.uk/id/local-authority/00ML,Cultural and Related Services,BVACUL,Recreation and sport,REC,Indirect Employees,B,Training,BM,05/09/2012,PAY00503235,416.66,Revenue,Hove Lagoon Watersports Centre Ltd
Brighton & Hove City Council,http://statistics.data.gov.uk/id/local-authority/00ML,Cultural and Related Services,BVACUL,Culture & Heritage,CHG,Premises Related,C,Energy Costs,CB,05/09/2012,PAY00503236,3192.56,Revenue,Brighton Dome & Festival Ltd
Brighton & Hove City Council,http://statistics.data.gov.uk/id/local-authority/00ML,Education Services,BVAEDU,Ed - EY - PVI,ENP,Supplies and Services,E,Grants n Subscriptions,EK,05/09/2012,PAY00503238,11376.00,Revenue,Sunshine Day Nursery (Brighton)
Brighton & Hove City Council,http://statistics.data.gov.uk/id/local-authority/00ML,Housing Services General Fund,BVAHOG,Homelessness,HML,Premises Related,C,Repair Maint n Alterations,CA,05/09/2012,PAY00503244,438.00,Revenue,Peake Cleaning & Hygiene Services Ltd
Brighton & Hove City Council,http://statistics.data.gov.uk/id/local-authority/00ML,Highways and Transportation,BVAHRT,Parking Services,PRK,Premises Related,C,Cleaning n Domestic Supps,CH,05/09/2012,PAY00503244,2906.00,Revenue,Peake Cleaning & Hygiene Services Ltd
Brighton & Hove City Council,http://statistics.data.gov.uk/id/local-authority/00ML,Cultural and Related Services,BVACUL,Culture & Heritage,CHG,Supplies and Services,E,Miscellaneous Expenses,EM,05/09/2012,PAY00503245,1237.50,Revenue,Select Security & Stewarding Ltd
Brighton & Hove City Council,http://statistics.data.gov.uk/id/local-authority/00ML,Education Services,BVAEDU,Ed - EY - PVI,ENP,Supplies and Services,E,Grants n Subscriptions,EK,05/09/2012,PAY00503246,1326.00,Revenue,Payment to Individual
Brighton & Hove City Council,http://statistics.data.gov.uk/id/local-authority/00ML,Housing Services Revnue Acc,BVAHOU,Hsing Management - HRA,HGM,Supplies and Services,E,Communications n Computing,EH,05/09/2012,PAY00503249,356.27,Revenue,Virgin Media Business Ltd
Brighton & Hove City Council,http://statistics.data.gov.uk/id/local-authority/00ML,Central Services To The Public,BVACEN,Support Services (SSC),PPT,Supplies and Services,E,Communications n Computing,EH,05/09/2012,PAY00503249,12822.79,Revenue,Virgin Media Business Ltd
Brighton & Hove City Council,http://statistics.data.gov.uk/id/local-authority/00ML,Education Services,BVAEDU,Ed - EY - PVI,ENP,Supplies and Services,E,Grants n Subscriptions,EK,05/09/2012,PAY00503250,4069.00,Revenue,Brighton Day Nursery
Brighton & Hove City Council,http://statistics.data.gov.uk/id/local-authority/00ML,Adult Social Care,BVASOC,S Svcs - Older People Svcs,PPL,Third Party Payments,F,Other Establishments,FH,05/09/2012,PAY00503251,4550.00,Revenue,Carers Centre for Brighton & Hove Ltd
Brighton & Hove City Council,http://statistics.data.gov.uk/id/local-authority/00ML,Highways and Transportation,BVAHRT,Public transport,PTR,Transport Related,D,Public Transport,DD,05/09/2012,PAY00503252,834.00,Revenue,Taxilink
Brighton & Hove City Council,http://statistics.data.gov.uk/id/local-authority/00ML,Central Services To The Public,BVACEN,Holding Accounts,PPH,Supplies and Services,E,Communications n Computing,EH,05/09/2012,PAY00503255,5394.54,Revenue,Royal Mail Group Ltd
Brighton & Hove City Council,http://statistics.data.gov.uk/id/local-authority/00ML,Central Services To The Public,BVACEN,Local Tax Collection,LTC,Supplies and Services,E,Communications n Computing,EH,05/09/2012,PAY00503255,1069.95,Revenue,Royal Mail Group Ltd
Brighton & Hove City Council,http://statistics.data.gov.uk/id/local-authority/00ML,Housing Services General Fund,BVAHOG,Private Sector Hsing Renewal,PHR,Supplies and Services,E,Communications n Computing,EH,05/09/2012,PAY00503255,23.60,Revenue,Royal Mail Group Ltd
Brighton & Hove City Council,http://statistics.data.gov.uk/id/local-authority/00ML,Environment and Regulatory Ser,BVAERS,Community Safety,CMY,Third Party Payments,F,Other Establishments,FH,05/09/2012,PAY00503257,425.00,Revenue,Sussex Interpreting Services
Brighton & Hove City Council,http://statistics.data.gov.uk/id/local-authority/00ML,Education Services,BVAEDU,Ed - EY - PVI,ENP,Supplies and Services,E,Grants n Subscriptions,EK,05/09/2012,PAY00503260,17043.00,Revenue,Home From Home Nursery
Brighton & Hove City Council,http://statistics.data.gov.uk/id/local-authority/00ML,Education Services,BVAEDU,Ed - EY - PVI,ENP,Supplies and Services,E,Grants n Subscriptions,EK,05/09/2012,PAY00503261,2889.00,Revenue,BeCCA Pre-School Playgroup
Brighton & Hove City Council,http://statistics.data.gov.uk/id/local-authority/00ML,Highways and Transportation,BVAHRT,Parking Services,PRK,Supplies and Services,E,Equip't Furniture n Materials,EA,05/09/2012,PAY00503262,450.00,Revenue,J A Allen Ltd
Brighton & Hove City Council,http://statistics.data.gov.uk/id/local-authority/00ML,Cultural and Related Services,BVACUL,Culture & Heritage,CHG,Supplies and Services,E,Print Stat & Gen Office Exps,ED,05/09/2012,PAY00503265,350.00,Revenue,S.W.A.T Marketing Ltd
Brighton & Hove City Council,http://statistics.data.gov.uk/id/local-authority/00ML,Cultural and Related Services,BVACUL,Culture & Heritage,CHG,Supplies and Services,E,Miscellaneous Expenses,EM,05/09/2012,PAY00503265,350.00,Revenue,S.W.A.T Marketing Ltd
Brighton & Hove City Council,http://statistics.data.gov.uk/id/local-authority/00ML,Education Services,BVAEDU,Ed - EY - PVI,ENP,Supplies and Services,E,Grants n Subscriptions,EK,05/09/2012,PAY00503266,26080.00,Revenue,Boomerang Kids
Brighton & Hove City Council,http://statistics.data.gov.uk/id/local-authority/00ML,Education Services,BVAEDU,Ed - EY - PVI,ENP,Supplies and Services,E,Grants n Subscriptions,EK,05/09/2012,PAY00503267,3574.00,Revenue,New Road Montessori Nursery School
Brighton & Hove City Council,http://statistics.data.gov.uk/id/local-authority/00ML,Education Services,BVAEDU,Ed - EY - Central,EAE,Third Party Payments,F,Other Establishments,FH,05/09/2012,PAY00503270,270.00,Revenue,Honeycroft
Brighton & Hove City Council,http://statistics.data.gov.uk/id/local-authority/00ML,Education Services,BVAEDU,Ed - EY - PVI,ENP,Supplies and Services,E,Grants n Subscriptions,EK,05/09/2012,PAY00503270,26179.00,Revenue,Honeycroft
Brighton & Hove City Council,http://statistics.data.gov.uk/id/local-authority/00ML,Non SERCOP,BVANON,Cap - Mgmnt & Support Services,4PT,New Construction n Conversion,PB,Level not required,NR5026,05/09/2012,PAY00503271,1160.00,Capital,Digital Exchange Products Ltd
Brighton & Hove City Council,http://statistics.data.gov.uk/id/local-authority/00ML,Housing Services Revnue Acc,BVAHOU,Hsing Management - HRA,HGM,Supplies and Services,E,Communications n Computing,EH,05/09/2012,PAY00503271,2620.00,Revenue,Digital Exchange Products Ltd
Brighton & Hove City Council,http://statistics.data.gov.uk/id/local-authority/00ML,Education Services,BVAEDU,Ed - EY - PVI,ENP,Supplies and Services,E,Grants n Subscriptions,EK,05/09/2012,PAY00503272,14729.00,Revenue,Wonder Years Ltd
Brighton & Hove City Council,http://statistics.data.gov.uk/id/local-authority/00ML,Adult Social Care,BVASOC,S Svcs - Physical Disability,PDY,Third Party Payments,F,Other Establishments,FH,05/09/2012,PAY00503274,2600.00,Revenue,The Sussex Deaf Association
Brighton & Hove City Council,http://statistics.data.gov.uk/id/local-authority/00ML,Education Services,BVAEDU,Ed - EY - PVI,ENP,Supplies and Services,E,Grants n Subscriptions,EK,05/09/2012,PAY00503275,4960.00,Revenue,The Childrens House
Brighton & Hove City Council,http://statistics.data.gov.uk/id/local-authority/00ML,Education Services,BVAEDU,Ed - EY - PVI,ENP,Supplies and Services,E,Grants n Subscriptions,EK,05/09/2012,PAY00503278,8715.00,Revenue,Paces for Brighton
Brighton & Hove City Council,http://statistics.data.gov.uk/id/local-authority/00ML,Adult Social Care,BVASOC,S Svcs - Older People Svcs,PPL,Third Party Payments,F,Other Establishments,FH,05/09/2012,PAY00503279,1497.00,Revenue,Brighton & Hove City Teaching PCT
Brighton & Hove City Council,http://statistics.data.gov.uk/id/local-authority/00ML,Education Services,BVAEDU,Ed - EY - PVI,ENP,Supplies and Services,E,Grants n Subscriptions,EK,05/09/2012,PAY00503280,2987.00,Revenue,Poets Corner Nursery
Brighton & Hove City Council,http://statistics.data.gov.uk/id/local-authority/00ML,Cultural and Related Services,BVACUL,Recreation and sport,REC,Third Party Payments,F,Independent Units of Council,FA,05/09/2012,PAY00503281,2175.50,Revenue,Freedom Leisure
Brighton & Hove City Council,http://statistics.data.gov.uk/id/local-authority/00ML,Housing Services General Fund,BVAHOG,Homelessness,HML,Supplies and Services,E,Services,EF,05/09/2012,PAY00503282,4089.50,Revenue,Solutions
Brighton & Hove City Council,http://statistics.data.gov.uk/id/local-authority/00ML,Education Services,BVAEDU,Ed - EY - PVI,ENP,Supplies and Services,E,Grants n Subscriptions,EK,05/09/2012,PAY00503284,8336.00,Revenue,The Ark Pre-School
Brighton & Hove City Council,http://statistics.data.gov.uk/id/local-authority/00ML,Education Services,BVAEDU,Ed - EY - PVI,ENP,Supplies and Services,E,Grants n Subscriptions,EK,05/09/2012,PAY00503286,6027.00,Revenue,Church Hill Playgroup
Brighton & Hove City Council,http://statistics.data.gov.uk/id/local-authority/00ML,Education Services,BVAEDU,Ed - EY - PVI,ENP,Supplies and Services,E,Grants n Subscriptions,EK,05/09/2012,PAY00503288,12333.00,Revenue,Robins Nursery School Ltd
Brighton & Hove City Council,http://statistics.data.gov.uk/id/local-authority/00ML,Adult Social Care,BVASOC,S Svcs - Older People Svcs,PPL,Premises Related,C,Cleaning n Domestic Supps,CH,05/09/2012,PAY00503289,701.60,Revenue,Topak Marketing
Brighton & Hove City Council,http://statistics.data.gov.uk/id/local-authority/00ML,Education Services,BVAEDU,Ed - EY - PVI,ENP,Supplies and Services,E,Grants n Subscriptions,EK,05/09/2012,PAY00503290,15954.00,Revenue,Lancing College
Brighton & Hove City Council,http://statistics.data.gov.uk/id/local-authority/00ML,Adult Social Care,BVASOC,S Svcs - Mental Health,MHT,Customer n Client Receipts,M,Fees n Charges,MB,05/09/2012,PAY00503293,-76.00,Revenue,Saga Homecare
Brighton & Hove City Council,http://statistics.data.gov.uk/id/local-authority/00ML,Adult Social Care,BVASOC,S Svcs - Mental Health,MHT,Third Party Payments,F,Other Establishments,FH,05/09/2012,PAY00503293,519.75,Revenue,Saga Homecare
Brighton & Hove City Council,http://statistics.data.gov.uk/id/local-authority/00ML,Adult Social Care,BVASOC,S Svcs - Older People Svcs,PPL,Customer n Client Receipts,M,Fees n Charges,MB,05/09/2012,PAY00503293,-4511.36,Revenue,Saga Homecare
Brighton & Hove City Council,http://statistics.data.gov.uk/id/local-authority/00ML,Adult Social Care,BVASOC,S Svcs - Older People Svcs,PPL,Third Party Payments,F,Other Establishments,FH,05/09/2012,PAY00503293,30907.01,Revenue,Saga Homecare
Brighton & Hove City Council,http://statistics.data.gov.uk/id/local-authority/00ML,Adult Social Care,BVASOC,S Svcs - Physical Disability,PDY,Customer n Client Receipts,M,Fees n Charges,MB,05/09/2012,PAY00503293,-798.22,Revenue,Saga Homecare
Brighton & Hove City Council,http://statistics.data.gov.uk/id/local-authority/00ML,Adult Social Care,BVASOC,S Svcs - Physical Disability,PDY,Third Party Payments,F,Other Establishments,FH,05/09/2012,PAY00503293,4860.27,Revenue,Saga Homecare
Brighton & Hove City Council,http://statistics.data.gov.uk/id/local-authority/00ML,Education Services,BVAEDU,Ed - EY - PVI,ENP,Supplies and Services,E,Grants n Subscriptions,EK,05/09/2012,PAY00503295,13870.00,Revenue,Footsteps Day Nursery (Portslade)
Brighton & Hove City Council,http://statistics.data.gov.uk/id/local-authority/00ML,Non SERCOP,BVANON,Cap - Mgmnt & Support Services,4PT,New Construction n Conversion,PB,Level not required,NR5026,05/09/2012,PAY00503296,8720.00,Capital,Twofold Ltd
Brighton & Hove City Council,http://statistics.data.gov.uk/id/local-authority/00ML,Adult Social Care,BVASOC,S Svcs - Learning Disability,LDY,Third Party Payments,F,Other Establishments,FH,05/09/2012,PAY00503297,225.51,Revenue,Prime Care Community Services Ltd
Brighton & Hove City Council,http://statistics.data.gov.uk/id/local-authority/00ML,Adult Social Care,BVASOC,S Svcs - Mental Health,MHT,Customer n Client Receipts,M,Fees n Charges,MB,05/09/2012,PAY00503297,-372.00,Revenue,Prime Care Community Services Ltd
Brighton & Hove City Council,http://statistics.data.gov.uk/id/local-authority/00ML,Adult Social Care,BVASOC,S Svcs - Mental Health,MHT,Third Party Payments,F,Other Establishments,FH,05/09/2012,PAY00503297,1649.06,Revenue,Prime Care Community Services Ltd
Brighton & Hove City Council,http://statistics.data.gov.uk/id/local-authority/00ML,Adult Social Care,BVASOC,S Svcs - Older People Svcs,PPL,Customer n Client Receipts,M,Fees n Charges,MB,05/09/2012,PAY00503297,-4626.14,Revenue,Prime Care Community Services Ltd
Brighton & Hove City Council,http://statistics.data.gov.uk/id/local-authority/00ML,Adult Social Care,BVASOC,S Svcs - Older People Svcs,PPL,Third Party Payments,F,Other Establishments,FH,05/09/2012,PAY00503297,26745.64,Revenue,Prime Care Community Services Ltd
Brighton & Hove City Council,http://statistics.data.gov.uk/id/local-authority/00ML,Adult Social Care,BVASOC,S Svcs - Physical Disability,PDY,Customer n Client Receipts,M,Fees n Charges,MB,05/09/2012,PAY00503297,-1147.57,Revenue,Prime Care Community Services Ltd
Brighton & Hove City Council,http://statistics.data.gov.uk/id/local-authority/00ML,Adult Social Care,BVASOC,S Svcs - Physical Disability,PDY,Third Party Payments,F,Other Establishments,FH,05/09/2012,PAY00503297,6101.31,Revenue,Prime Care Community Services Ltd
Brighton & Hove City Council,http://statistics.data.gov.uk/id/local-authority/00ML,Education Services,BVAEDU,Ed - EY - PVI,ENP,Supplies and Services,E,Grants n Subscriptions,EK,05/09/2012,PAY00503299,17071.00,Revenue,Pumpkin Patch Nursery
Brighton & Hove City Council,http://statistics.data.gov.uk/id/local-authority/00ML,Planning Services,BVAPLA,Development Control,DEV,Transport Related,D,Public Transport,DD,05/09/2012,PAY00503303,453.39,Revenue,City Car Club Ltd
Brighton & Hove City Council,http://statistics.data.gov.uk/id/local-authority/00ML,Housing Services General Fund,BVAHOG,Homelessness,HML,Premises Related,C,Rents Payable,CC,05/09/2012,PAY00503304,10911.15,Revenue,Sanctuary Housing Association
Brighton & Hove City Council,http://statistics.data.gov.uk/id/local-authority/00ML,Children�s Social Care,BVACSC,Child Srvcs - Other Yth Jstce,FYX,Transport Related,D,Public Transport,DD,05/09/2012,PAY00503305,49.30,Revenue,Corporate Petty Cash
Brighton & Hove City Council,http://statistics.data.gov.uk/id/local-authority/00ML,Environment and Regulatory Ser,BVAERS,Environmental Health,EVH,Supplies and Services,E,Equip't Furniture n Materials,EA,05/09/2012,PAY00503305,37.56,Revenue,Corporate Petty Cash
Brighton & Hove City Council,http://statistics.data.gov.uk/id/local-authority/00ML,Environment and Regulatory Ser,BVAERS,Environmental Health,EVH,Supplies and Services,E,Services,EF,05/09/2012,PAY00503305,16.50,Revenue,Corporate Petty Cash
Brighton & Hove City Council,http://statistics.data.gov.uk/id/local-authority/00ML,Environment and Regulatory Ser,BVAERS,Environmental Health,EVH,Supplies and Services,E,Communications n Computing,EH,05/09/2012,PAY00503305,3.00,Revenue,Corporate Petty Cash
Brighton & Hove City Council,http://statistics.data.gov.uk/id/local-authority/00ML,Environment and Regulatory Ser,BVAERS,Environmental Health,EVH,Supplies and Services,E,Miscellaneous Expenses,EM,05/09/2012,PAY00503305,15.24,Revenue,Corporate Petty Cash
Brighton & Hove City Council,http://statistics.data.gov.uk/id/local-authority/00ML,Environment and Regulatory Ser,BVAERS,Environmental Health,EVH,Transport Related,D,Public Transport,DD,05/09/2012,PAY00503305,10.00,Revenue,Corporate Petty Cash
Brighton & Hove City Council,http://statistics.data.gov.uk/id/local-authority/00ML,Environment and Regulatory Ser,BVAERS,Environmental Health,EVH,Transport Related,D,Other Transport Costs,DG,05/09/2012,PAY00503305,10.00,Revenue,Corporate Petty Cash
Brighton & Hove City Council,http://statistics.data.gov.uk/id/local-authority/00ML,Housing Services General Fund,BVAHOG,Homelessness,HML,Premises Related,C,Energy Costs,CB,05/09/2012,PAY00503305,20.00,Revenue,Corporate Petty Cash
Brighton & Hove City Council,http://statistics.data.gov.uk/id/local-authority/00ML,Housing Services General Fund,BVAHOG,Homelessness,HML,Transport Related,D,Direct Transport Costs,DA,05/09/2012,PAY00503305,11.68,Revenue,Corporate Petty Cash
Brighton & Hove City Council,http://statistics.data.gov.uk/id/local-authority/00ML,Housing Services General Fund,BVAHOG,Homelessness,HML,Transport Related,D,Public Transport,DD,05/09/2012,PAY00503305,76.60,Revenue,Corporate Petty Cash
Brighton & Hove City Council,http://statistics.data.gov.uk/id/local-authority/00ML,Housing Services Revnue Acc,BVAHOU,Hsing Management - HRA,HGM,Supplies and Services,E,Print Stat & Gen Office Exps,ED,05/09/2012,PAY00503305,12.00,Revenue,Corporate Petty Cash
Brighton & Hove City Council,http://statistics.data.gov.uk/id/local-authority/00ML,Housing Services Revnue Acc,BVAHOU,Hsing Management - HRA,HGM,Transport Related,D,Public Transport,DD,05/09/2012,PAY00503305,10.80,Revenue,Corporate Petty Cash
Brighton & Hove City Council,http://statistics.data.gov.uk/id/local-authority/00ML,Housing Services Revnue Acc,BVAHOU,Hsing Management - HRA,HGM,Transport Related,D,Other Transport Costs,DG,05/09/2012,PAY00503305,10.00,Revenue,Corporate Petty Cash
Brighton & Hove City Council,http://statistics.data.gov.uk/id/local-authority/00ML,Housing Services General Fund,BVAHOG,Hsing Welfare,HGW,Supplies and Services,E,Print Stat & Gen Office Exps,ED,05/09/2012,PAY00503305,70.13,Revenue,Corporate Petty Cash
Brighton & Hove City Council,http://statistics.data.gov.uk/id/local-authority/00ML,Housing Services General Fund,BVAHOG,Hsing Welfare,HGW,Transport Related,D,Public Transport,DD,05/09/2012,PAY00503305,86.80,Revenue,Corporate Petty Cash
Brighton & Hove City Council,http://statistics.data.gov.uk/id/local-authority/00ML,Central Services To The Public,BVACEN,Local Tax Collection,LTC,Supplies and Services,E,Catering,EB,05/09/2012,PAY00503305,16.66,Revenue,Corporate Petty Cash
Brighton & Hove City Council,http://statistics.data.gov.uk/id/local-authority/00ML,Adult Social Care,BVASOC,Management Services (DEC),MGT,Supplies and Services,E,Print Stat & Gen Office Exps,ED,05/09/2012,PAY00503305,10.91,Revenue,Corporate Petty Cash
Brighton & Hove City Council,http://statistics.data.gov.uk/id/local-authority/00ML,Highways and Transportation,BVAHRT,Parking Services,PRK,Customer n Client Receipts,M,Fees n Charges,MB,05/09/2012,PAY00503305,17.90,Revenue,Corporate Petty Cash
Brighton & Hove City Council,http://statistics.data.gov.uk/id/local-authority/00ML,Highways and Transportation,BVAHRT,Parking Services,PRK,Supplies and Services,E,Equip't Furniture n Materials,EA,05/09/2012,PAY00503305,37.44,Revenue,Corporate Petty Cash
Brighton & Hove City Council,http://statistics.data.gov.uk/id/local-authority/00ML,Highways and Transportation,BVAHRT,Parking Services,PRK,Transport Related,D,Direct Transport Costs,DA,05/09/2012,PAY00503305,20.83,Revenue,Corporate Petty Cash
Brighton & Hove City Council,http://statistics.data.gov.uk/id/local-authority/00ML,Highways and Transportation,BVAHRT,Parking Services,PRK,Transport Related,D,Public Transport,DD,05/09/2012,PAY00503305,14.00,Revenue,Corporate Petty Cash
Brighton & Hove City Council,http://statistics.data.gov.uk/id/local-authority/00ML,Housing Services General Fund,BVAHOG,Private Sector Hsing Renewal,PHR,Transport Related,D,Public Transport,DD,05/09/2012,PAY00503305,13.20,Revenue,Corporate Petty Cash
Brighton & Hove City Council,http://statistics.data.gov.uk/id/local-authority/00ML,Adult Social Care,BVASOC,S Svcs - Physical Disability,PDY,Third Party Payments,F,Other Establishments,FH,05/09/2012,PAY00503305,102.00,Revenue,Corporate Petty Cash
Brighton & Hove City Council,http://statistics.data.gov.uk/id/local-authority/00ML,Central Services To The Public,BVACEN,Support Services (SSC),PPT,Indirect Employees,B,Misc Employee Costs,BP,05/09/2012,PAY00503305,16.50,Revenue,Corporate Petty Cash
Brighton & Hove City Council,http://statistics.data.gov.uk/id/local-authority/00ML,Central Services To The Public,BVACEN,Support Services (SSC),PPT,Supplies and Services,E,Equip't Furniture n Materials,EA,05/09/2012,PAY00503305,19.53,Revenue,Corporate Petty Cash
Brighton & Hove City Council,http://statistics.data.gov.uk/id/local-authority/00ML,Central Services To The Public,BVACEN,Support Services (SSC),PPT,Supplies and Services,E,Clothing Uniforms n Laundry,EC,05/09/2012,PAY00503305,12.00,Revenue,Corporate Petty Cash
Brighton & Hove City Council,http://statistics.data.gov.uk/id/local-authority/00ML,Central Services To The Public,BVACEN,Support Services (SSC),PPT,Supplies and Services,E,Print Stat & Gen Office Exps,ED,05/09/2012,PAY00503305,41.27,Revenue,Corporate Petty Cash
Brighton & Hove City Council,http://statistics.data.gov.uk/id/local-authority/00ML,Central Services To The Public,BVACEN,Support Services (SSC),PPT,Supplies and Services,E,Communications n Computing,EH,05/09/2012,PAY00503305,1.09,Revenue,Corporate Petty Cash
Brighton & Hove City Council,http://statistics.data.gov.uk/id/local-authority/00ML,Housing Services General Fund,BVAHOG,Support Services (SSC),PPT,Transport Related,D,Public Transport,DD,05/09/2012,PAY00503305,63.20,Revenue,Corporate Petty Cash
Brighton & Hove City Council,http://statistics.data.gov.uk/id/local-authority/00ML,Central Services To The Public,BVACEN,Support Services (SSC),PPT,Transport Related,D,Public Transport,DD,05/09/2012,PAY00503305,24.40,Revenue,Corporate Petty Cash
Brighton & Hove City Council,http://statistics.data.gov.uk/id/local-authority/00ML,Cultural and Related Services,BVACUL,Tourism,TRM,Supplies and Services,E,Miscellaneous Expenses,EM,05/09/2012,PAY00503305,16.23,Revenue,Corporate Petty Cash
Brighton & Hove City Council,http://statistics.data.gov.uk/id/local-authority/00ML,Non SERCOP,BVANON,Cap - Mgmnt & Support Services,4PT,Plant Machinery n Equipment,PE2,Level not required,NR5025,05/09/2012,PAY00503306,431.25,Capital,Carlisle Staffing Plc
Brighton & Hove City Council,http://statistics.data.gov.uk/id/local-authority/00ML,Non SERCOP,BVANON,Cap - Other Env Services,4EV,Plant Machinery n Equipment,PE2,Level not required,NR5025,05/09/2012,PAY00503306,1285.55,Capital,Carlisle Staffing Plc
Brighton & Hove City Council,http://statistics.data.gov.uk/id/local-authority/00ML,Non SERCOP,BVANON,Cap - Transport,4TR,New Construction n Conversion,PB,Level not required,NR5026,05/09/2012,PAY00503306,1408.88,Capital,Carlisle Staffing Plc
Brighton & Hove City Council,http://statistics.data.gov.uk/id/local-authority/00ML,Environment and Regulatory Ser,BVAERS,Cem Crem and Mortuary Services,CCM,Direct Employees,A,Salaries,AA,05/09/2012,PAY00503306,487.50,Revenue,Carlisle Staffing Plc
Brighton & Hove City Council,http://statistics.data.gov.uk/id/local-authority/00ML,Children�s Social Care,BVACSC,Child Srvcs - Com & Scl Work,FCW,Direct Employees,A,Salaries,AA,05/09/2012,PAY00503306,1706.98,Revenue,Carlisle Staffing Plc
Brighton & Hove City Council,http://statistics.data.gov.uk/id/local-authority/00ML,Children�s Social Care,BVACSC,Child Srvcs - Family Centres,FFF,Direct Employees,A,Salaries,AA,05/09/2012,PAY00503306,90.20,Revenue,Carlisle Staffing Plc
Brighton & Hove City Council,http://statistics.data.gov.uk/id/local-authority/00ML,Children�s Social Care,BVACSC,Child Srvcs - Fostering,FLF,Direct Employees,A,Salaries,AA,05/09/2012,PAY00503306,50.27,Revenue,Carlisle Staffing Plc
Brighton & Hove City Council,http://statistics.data.gov.uk/id/local-authority/00ML,Children�s Social Care,BVACSC,Child Srvcs - Leaving Care,FAL,Direct Employees,A,Salaries,AA,05/09/2012,PAY00503306,65.52,Revenue,Carlisle Staffing Plc
Brighton & Hove City Council,http://statistics.data.gov.uk/id/local-authority/00ML,Children�s Social Care,BVACSC,Child Srvcs - Other Fam Supp,FFX,Direct Employees,A,Salaries,AA,05/09/2012,PAY00503306,1964.06,Revenue,Carlisle Staffing Plc
Brighton & Hove City Council,http://statistics.data.gov.uk/id/local-authority/00ML,Children�s Social Care,BVACSC,Child Srvcs - Residential Svcs,FLR,Direct Employees,A,Salaries,AA,05/09/2012,PAY00503306,1098.61,Revenue,Carlisle Staffing Plc
Brighton & Hove City Council,http://statistics.data.gov.uk/id/local-authority/00ML,Children�s Social Care,BVACSC,Child Srvcs - Yth Offender Tm,FYY,Direct Employees,A,Salaries,AA,05/09/2012,PAY00503306,7.19,Revenue,Carlisle Staffing Plc
Brighton & Hove City Council,http://statistics.data.gov.uk/id/local-authority/00ML,Planning Services,BVAPLA,Development Control,DEV,Direct Employees,A,Salaries,AA,05/09/2012,PAY00503306,1184.98,Revenue,Carlisle Staffing Plc
Brighton & Hove City Council,http://statistics.data.gov.uk/id/local-authority/00ML,Planning Services,BVAPLA,Economic Development,ECD,Direct Employees,A,Salaries,AA,05/09/2012,PAY00503306,9.25,Revenue,Carlisle Staffing Plc
Brighton & Hove City Council,http://statistics.data.gov.uk/id/local-authority/00ML,Education Services,BVAEDU,Ed - Ed Other - LA Attrib Sch,ELA,Direct Employees,A,Salaries,AA,05/09/2012,PAY00503306,9.38,Revenue,Carlisle Staffing Plc
Brighton & Hove City Council,http://statistics.data.gov.uk/id/local-authority/00ML,Education Services,BVAEDU,Ed - Ed Other - Other,ENF,Direct Employees,A,Salaries,AA,05/09/2012,PAY00503306,20.69,Revenue,Carlisle Staffing Plc
Brighton & Hove City Council,http://statistics.data.gov.uk/id/local-authority/00ML,Education Services,BVAEDU,Ed - EY - Central,EAE,Direct Employees,A,Salaries,AA,05/09/2012,PAY00503306,2238.17,Revenue,Carlisle Staffing Plc
Brighton & Hove City Council,http://statistics.data.gov.uk/id/local-authority/00ML,Central Services To The Public,BVACEN,Ed - EY - Central,EAE,Direct Employees,A,Salaries,AA,05/09/2012,PAY00503306,533.80,Revenue,Carlisle Staffing Plc
Brighton & Hove City Council,http://statistics.data.gov.uk/id/local-authority/00ML,Education Services,BVAEDU,Ed - Mgmt & Support Services,EMG,Direct Employees,A,Salaries,AA,05/09/2012,PAY00503306,1209.03,Revenue,Carlisle Staffing Plc
Brighton & Hove City Council,http://statistics.data.gov.uk/id/local-authority/00ML,Education Services,BVAEDU,Ed - Primary schools,EHH,Direct Employees,A,Salaries,AA,05/09/2012,PAY00503306,264.25,Revenue,Carlisle Staffing Plc
Brighton & Hove City Council,http://statistics.data.gov.uk/id/local-authority/00ML,Education Services,BVAEDU,Ed - Special Ed,EKE,Direct Employees,A,Salaries,AA,05/09/2012,PAY00503306,10.13,Revenue,Carlisle Staffing Plc
Brighton & Hove City Council,http://statistics.data.gov.uk/id/local-authority/00ML,Environment and Regulatory Ser,BVAERS,Environmental Health,EVH,Direct Employees,A,Salaries,AA,05/09/2012,PAY00503306,1432.42,Revenue,Carlisle Staffing Plc
Brighton & Hove City Council,http://statistics.data.gov.uk/id/local-authority/00ML,Highways and Transportation,BVAHRT,Highways and Roads - Mntnce,HRM,Direct Employees,A,Salaries,AA,05/09/2012,PAY00503306,193.09,Revenue,Carlisle Staffing Plc
Brighton & Hove City Council,http://statistics.data.gov.uk/id/local-authority/00ML,Central Services To The Public,BVACEN,Holding Accounts,PPH,Direct Employees,A,Salaries,AA,05/09/2012,PAY00503306,16.38,Revenue,Carlisle Staffing Plc
Brighton & Hove City Council,http://statistics.data.gov.uk/id/local-authority/00ML,Housing Services General Fund,BVAHOG,Homelessness,HML,Direct Employees,A,Salaries,AA,05/09/2012,PAY00503306,4429.84,Revenue,Carlisle Staffing Plc
Brighton & Hove City Council,http://statistics.data.gov.uk/id/local-authority/00ML,Housing Services General Fund,BVAHOG,Hsing Benefits,HGB,Direct Employees,A,Salaries,AA,05/09/2012,PAY00503306,11.69,Revenue,Carlisle Staffing Plc
Brighton & Hove City Council,http://statistics.data.gov.uk/id/local-authority/00ML,Housing Services Revnue Acc,BVAHOU,Hsing Management - HRA,HGM,Direct Employees,A,Salaries,AA,05/09/2012,PAY00503306,14218.67,Revenue,Carlisle Staffing Plc
Brighton & Hove City Council,http://statistics.data.gov.uk/id/local-authority/00ML,Housing Services General Fund,BVAHOG,Hsing Strat Advice and RSLs,HGR,Direct Employees,A,Salaries,AA,05/09/2012,PAY00503306,8.94,Revenue,Carlisle Staffing Plc
Brighton & Hove City Council,http://statistics.data.gov.uk/id/local-authority/00ML,Housing Services General Fund,BVAHOG,Hsing Welfare,HGW,Direct Employees,A,Salaries,AA,05/09/2012,PAY00503306,1342.36,Revenue,Carlisle Staffing Plc
Brighton & Hove City Council,http://statistics.data.gov.uk/id/local-authority/00ML,Highways and Transportation,BVAHRT,Management Services (DEC),MGT,Direct Employees,A,Salaries,AA,05/09/2012,PAY00503306,1105.00,Revenue,Carlisle Staffing Plc
Brighton & Hove City Council,http://statistics.data.gov.uk/id/local-authority/00ML,Adult Social Care,BVASOC,Management Services (DEC),MGT,Direct Employees,A,Salaries,AA,05/09/2012,PAY00503306,1061.50,Revenue,Carlisle Staffing Plc
Brighton & Hove City Council,http://statistics.data.gov.uk/id/local-authority/00ML,Environment and Regulatory Ser,BVAERS,Management Services (DEC),MGT,Direct Employees,A,Salaries,AA,05/09/2012,PAY00503306,1301.86,Revenue,Carlisle Staffing Plc
Brighton & Hove City Council,http://statistics.data.gov.uk/id/local-authority/00ML,Cultural and Related Services,BVACUL,Management Services (DEC),MGT,Direct Employees,A,Salaries,AA,05/09/2012,PAY00503306,6.25,Revenue,Carlisle Staffing Plc
Brighton & Hove City Council,http://statistics.data.gov.uk/id/local-authority/00ML,Adult Social Care,BVASOC,Management Services (DEC),MGT,Indirect Employees,B,Training,BM,05/09/2012,PAY00503306,5.00,Revenue,Carlisle Staffing Plc
Brighton & Hove City Council,http://statistics.data.gov.uk/id/local-authority/00ML,Cultural and Related Services,BVACUL,Open Spaces,PEN,Direct Employees,A,Salaries,AA,05/09/2012,PAY00503306,1498.91,Revenue,Carlisle Staffing Plc
Brighton & Hove City Council,http://statistics.data.gov.uk/id/local-authority/00ML,Highways and Transportation,BVAHRT,Parking Services,PRK,Direct Employees,A,Salaries,AA,05/09/2012,PAY00503306,1043.50,Revenue,Carlisle Staffing Plc
Brighton & Hove City Council,http://statistics.data.gov.uk/id/local-authority/00ML,Cultural and Related Services,BVACUL,Recreation and sport,REC,Direct Employees,A,Salaries,AA,05/09/2012,PAY00503306,13.06,Revenue,Carlisle Staffing Plc
Brighton & Hove City Council,http://statistics.data.gov.uk/id/local-authority/00ML,Central Services To The Public,BVACEN,Reg - Birth Death and Marriage,RBD,Direct Employees,A,Salaries,AA,05/09/2012,PAY00503306,16.76,Revenue,Carlisle Staffing Plc
Brighton & Hove City Council,http://statistics.data.gov.uk/id/local-authority/00ML,Adult Social Care,BVASOC,S Svcs - Learning Disability,LDY,Direct Employees,A,Salaries,AA,05/09/2012,PAY00503306,4205.95,Revenue,Carlisle Staffing Plc
Brighton & Hove City Council,http://statistics.data.gov.uk/id/local-authority/00ML,Adult Social Care,BVASOC,S Svcs - Mental Health,MHT,Direct Employees,A,Salaries,AA,05/09/2012,PAY00503306,103.00,Revenue,Carlisle Staffing Plc
Brighton & Hove City Council,http://statistics.data.gov.uk/id/local-authority/00ML,Adult Social Care,BVASOC,S Svcs - Older People Svcs,PPL,Direct Employees,A,Salaries,AA,05/09/2012,PAY00503306,11896.98,Revenue,Carlisle Staffing Plc
Brighton & Hove City Council,http://statistics.data.gov.uk/id/local-authority/00ML,Adult Social Care,BVASOC,S Svcs - Supported Employment,EMP,Direct Employees,A,Salaries,AA,05/09/2012,PAY00503306,4.63,Revenue,Carlisle Staffing Plc
Brighton & Hove City Council,http://statistics.data.gov.uk/id/local-authority/00ML,Environment and Regulatory Ser,BVAERS,Street Cleansing,CLE,Direct Employees,A,Salaries,AA,05/09/2012,PAY00503306,2529.14,Revenue,Carlisle Staffing Plc
Brighton & Hove City Council,http://statistics.data.gov.uk/id/local-authority/00ML,Adult Social Care,BVASOC,Support Services (SSC),PPT,Direct Employees,A,Salaries,AA,05/09/2012,PAY00503306,35.88,Revenue,Carlisle Staffing Plc
Brighton & Hove City Council,http://statistics.data.gov.uk/id/local-authority/00ML,Central Services To The Public,BVACEN,Support Services (SSC),PPT,Direct Employees,A,Salaries,AA,05/09/2012,PAY00503306,24170.24,Revenue,Carlisle Staffing Plc
Brighton & Hove City Council,http://statistics.data.gov.uk/id/local-authority/00ML,Highways and Transportation,BVAHRT,Transport plan policy strategy,TPP,Direct Employees,A,Salaries,AA,05/09/2012,PAY00503306,479.41,Revenue,Carlisle Staffing Plc
Brighton & Hove City Council,http://statistics.data.gov.uk/id/local-authority/00ML,Environment and Regulatory Ser,BVAERS,Waste Management,WMT,Direct Employees,A,Salaries,AA,05/09/2012,PAY00503306,10420.62,Revenue,Carlisle Staffing Plc
Brighton & Hove City Council,http://statistics.data.gov.uk/id/local-authority/00ML,Adult Social Care,BVASOC,S Svcs - Older People Svcs,PPL,Third Party Payments,F,Other Establishments,FH,05/09/2012,PAY00503307,3375.69,Revenue,Payment to Individual
Brighton & Hove City Council,http://statistics.data.gov.uk/id/local-authority/00ML,Adult Social Care,BVASOC,S Svcs - Older People Svcs,PPL,Customer n Client Receipts,M,Fees n Charges,MB,05/09/2012,PAY00503308,-800.34,Revenue,St Michael`s Care Homes Ltd
Brighton & Hove City Council,http://statistics.data.gov.uk/id/local-authority/00ML,Adult Social Care,BVASOC,S Svcs - Older People Svcs,PPL,Third Party Payments,F,Other Establishments,FH,05/09/2012,PAY00503308,3803.91,Revenue,St Michael`s Care Homes Ltd
Brighton & Hove City Council,http://statistics.data.gov.uk/id/local-authority/00ML,Adult Social Care,BVASOC,S Svcs - Other Adult Services,ADT,Indirect Employees,B,Training,BM,05/09/2012,PAY00503309,360.00,Revenue,David Taylor Training
Brighton & Hove City Council,http://statistics.data.gov.uk/id/local-authority/00ML,Central Services To The Public,BVACEN,Support Services (SSC),PPT,Indirect Employees,B,Training,BM,05/09/2012,PAY00503309,90.00,Revenue,David Taylor Training
Brighton & Hove City Council,http://statistics.data.gov.uk/id/local-authority/00ML,Education Services,BVAEDU,Ed - EY - PVI,ENP,Supplies and Services,E,Grants n Subscriptions,EK,05/09/2012,PAY00503311,624.00,Revenue,Payment to Individual
Brighton & Hove City Council,http://statistics.data.gov.uk/id/local-authority/00ML,Non SERCOP,BVANON,Cap - Transport,4TR,New Construction n Conversion,PB,Level not required,NR5026,05/09/2012,PAY00503313,687.89,Capital,SSE Telecom Ltd
Brighton & Hove City Council,http://statistics.data.gov.uk/id/local-authority/00ML,Adult Social Care,BVASOC,S Svcs - Older People Svcs,PPL,Customer n Client Receipts,M,Fees n Charges,MB,05/09/2012,PAY00503315,4650.41,Revenue,Anchor Trust Homes (Sycamore Court)
Brighton & Hove City Council,http://statistics.data.gov.uk/id/local-authority/00ML,Cultural and Related Services,BVACUL,Culture & Heritage,CHG,Supplies and Services,E,Print Stat & Gen Office Exps,ED,05/09/2012,PAY00503317,30.00,Revenue,Format Display Ltd
Brighton & Hove City Council,http://statistics.data.gov.uk/id/local-authority/00ML,Cultural and Related Services,BVACUL,Culture & Heritage,CHG,Supplies and Services,E,Miscellaneous Expenses,EM,05/09/2012,PAY00503317,78.00,Revenue,Format Display Ltd
Brighton & Hove City Council,http://statistics.data.gov.uk/id/local-authority/00ML,Non SERCOP,BVANON,Non-Council,NNC,Supplies and Services,E,Equip't Furniture n Materials,EA,05/09/2012,PAY00503317,1332.00,Revenue,Format Display Ltd
Brighton & Hove City Council,http://statistics.data.gov.uk/id/local-authority/00ML,Environment and Regulatory Ser,BVAERS,Cem Crem and Mortuary Services,CCM,Supplies and Services,E,Goods for Resale,EG,05/09/2012,PAY00503319,1135.00,Revenue,Tilleys Stonemasons Ltd
Brighton & Hove City Council,http://statistics.data.gov.uk/id/local-authority/00ML,Education Services,BVAEDU,Ed - EY - PVI,ENP,Supplies and Services,E,Grants n Subscriptions,EK,05/09/2012,PAY00503321,16630.00,Revenue,Cbabiesafe
Brighton & Hove City Council,http://statistics.data.gov.uk/id/local-authority/00ML,Adult Social Care,BVASOC,S Svcs - Physical Disability,PDY,Supplies and Services,E,Equip't Furniture n Materials,EA,05/09/2012,PAY00503323,528.00,Revenue,Hearing Products International Ltd
Brighton & Hove City Council,http://statistics.data.gov.uk/id/local-authority/00ML,Adult Social Care,BVASOC,S Svcs - Physical Disability,PDY,Supplies and Services,E,Communications n Computing,EH,05/09/2012,PAY00503323,10.00,Revenue,Hearing Products International Ltd
Brighton & Hove City Council,http://statistics.data.gov.uk/id/local-authority/00ML,Central Services To The Public,BVACEN,Support Services (SSC),PPT,Supplies and Services,E,Equip't Furniture n Materials,EA,05/09/2012,PAY00503325,1476.26,Revenue,Elliott Baxter & Company Ltd
Brighton & Hove City Council,http://statistics.data.gov.uk/id/local-authority/00ML,Children�s Social Care,BVACSC,Child Srvcs - Leaving Care,FAL,Transfer Payments,G,Other Transfer Payments,GD,05/09/2012,PAY00503326,567.53,Revenue,Seven Ways (Support) Ltd
Brighton & Hove City Council,http://statistics.data.gov.uk/id/local-authority/00ML,Housing Services General Fund,BVAHOG,Homelessness,HML,Premises Related,C,Repair Maint n Alterations,CA,05/09/2012,PAY00503327,9699.36,Revenue,Tim Jordan Grounds Maintenance Ltd
Brighton & Hove City Council,http://statistics.data.gov.uk/id/local-authority/00ML,Housing Services General Fund,BVAHOG,Homelessness,HML,Premises Related,C,Cleaning n Domestic Supps,CH,05/09/2012,PAY00503327,712.99,Revenue,Tim Jordan Grounds Maintenance Ltd
Brighton & Hove City Council,http://statistics.data.gov.uk/id/local-authority/00ML,Housing Services General Fund,BVAHOG,Homelessness,HML,Supplies and Services,E,Miscellaneous Expenses,EM,05/09/2012,PAY00503327,763.09,Revenue,Tim Jordan Grounds Maintenance Ltd
Brighton & Hove City Council,http://statistics.data.gov.uk/id/local-authority/00ML,Cultural and Related Services,BVACUL,Library Service,LBR,Supplies and Services,E,Goods for Resale,EG,05/09/2012,PAY00503333,1601.10,Revenue,Rainbow Designs 
Brighton & Hove City Council,http://statistics.data.gov.uk/id/local-authority/00ML,Highways and Transportation,BVAHRT,Transport plan policy strategy,TPP,Premises Related,C,Repair Maint n Alterations,CA,05/09/2012,PAY00503334,539.00,Revenue,UK Power Networks (Operations) Ltd
Brighton & Hove City Council,http://statistics.data.gov.uk/id/local-authority/00ML,Highways and Transportation,BVAHRT,Public transport,PTR,Supplies and Services,E,Miscellaneous Expenses,EM,05/09/2012,PAY00503335,1850.00,Revenue,Bay Media Ltd
Brighton & Hove City Council,http://statistics.data.gov.uk/id/local-authority/00ML,Education Services,BVAEDU,Ed - EY - PVI,ENP,Supplies and Services,E,Grants n Subscriptions,EK,05/09/2012,PAY00503336,23110.00,Revenue,Wishing Tree Nursery
Brighton & Hove City Council,http://statistics.data.gov.uk/id/local-authority/00ML,Education Services,BVAEDU,Ed - EY - PVI,ENP,Supplies and Services,E,Grants n Subscriptions,EK,05/09/2012,PAY00503339,5733.00,Revenue,Little Oaks
Brighton & Hove City Council,http://statistics.data.gov.uk/id/local-authority/00ML,Education Services,BVAEDU,Ed - EY - PVI,ENP,Supplies and Services,E,Grants n Subscriptions,EK,05/09/2012,PAY00503341,11606.00,Revenue,St George`s Neighbourhood Nursery
Brighton & Hove City Council,http://statistics.data.gov.uk/id/local-authority/00ML,Cultural and Related Services,BVACUL,Culture & Heritage,CHG,Supplies and Services,E,Equip't Furniture n Materials,EA,05/09/2012,PAY00503342,3672.00,Revenue,Entertainment Medical Srv
Brighton & Hove City Council,http://statistics.data.gov.uk/id/local-authority/00ML,Education Services,BVAEDU,Ed - EY - Central,EAE,Third Party Payments,F,Other Establishments,FH,05/09/2012,PAY00503345,120.00,Revenue,My First Word
Brighton & Hove City Council,http://statistics.data.gov.uk/id/local-authority/00ML,Education Services,BVAEDU,Ed - EY - PVI,ENP,Supplies and Services,E,Grants n Subscriptions,EK,05/09/2012,PAY00503345,4223.00,Revenue,My First Word
Brighton & Hove City Council,http://statistics.data.gov.uk/id/local-authority/00ML,Adult Social Care,BVASOC,S Svcs - Learning Disability,LDY,Customer n Client Receipts,M,Fees n Charges,MB,05/09/2012,PAY00503347,-311.40,Revenue,The Disabilities Trust
Brighton & Hove City Council,http://statistics.data.gov.uk/id/local-authority/00ML,Adult Social Care,BVASOC,S Svcs - Learning Disability,LDY,Third Party Payments,F,Other Establishments,FH,05/09/2012,PAY00503347,3740.00,Revenue,The Disabilities Trust
Brighton & Hove City Council,http://statistics.data.gov.uk/id/local-authority/00ML,Adult Social Care,BVASOC,S Svcs - Mental Health,MHT,Third Party Payments,F,Other Establishments,FH,05/09/2012,PAY00503348,93.00,Revenue,Agincare UK Ltd
Brighton & Hove City Council,http://statistics.data.gov.uk/id/local-authority/00ML,Adult Social Care,BVASOC,S Svcs - Older People Svcs,PPL,Customer n Client Receipts,M,Fees n Charges,MB,05/09/2012,PAY00503348,-1081.38,Revenue,Agincare UK Ltd
Brighton & Hove City Council,http://statistics.data.gov.uk/id/local-authority/00ML,Adult Social Care,BVASOC,S Svcs - Older People Svcs,PPL,Third Party Payments,F,Other Establishments,FH,05/09/2012,PAY00503348,5611.67,Revenue,Agincare UK Ltd
Brighton & Hove City Council,http://statistics.data.gov.uk/id/local-authority/00ML,Adult Social Care,BVASOC,S Svcs - Physical Disability,PDY,Customer n Client Receipts,M,Fees n Charges,MB,05/09/2012,PAY00503348,-38.00,Revenue,Agincare UK Ltd
Brighton & Hove City Council,http://statistics.data.gov.uk/id/local-authority/00ML,Adult Social Care,BVASOC,S Svcs - Physical Disability,PDY,Third Party Payments,F,Other Establishments,FH,05/09/2012,PAY00503348,268.75,Revenue,Agincare UK Ltd
Brighton & Hove City Council,http://statistics.data.gov.uk/id/local-authority/00ML,Non SERCOP,BVANON,Cap - Education Services,4ED,New Construction n Conversion,PB,Level not required,NR5026,05/09/2012,PAY00503350,3800.00,Capital,Lee Sullivan Contract Flooring Limited
Brighton & Hove City Council,http://statistics.data.gov.uk/id/local-authority/00ML,Education Services,BVAEDU,Ed - Ed Other - Other,ENF,Premises Related,C,Repair Maint n Alterations,CA,05/09/2012,PAY00503350,400.00,Revenue,Lee Sullivan Contract Flooring Limited
Brighton & Hove City Council,http://statistics.data.gov.uk/id/local-authority/00ML,Planning Services,BVAPLA,Community Development,CDV,Supplies and Services,E,Miscellaneous Expenses,EM,05/09/2012,PAY00503351,1200.00,Revenue,Brighton Dome & Festival (Trading) Ltd
Brighton & Hove City Council,http://statistics.data.gov.uk/id/local-authority/00ML,Children�s Social Care,BVACSC,Management Services (DEC),MGT,Supplies and Services,E,Services,EF,05/09/2012,PAY00503353,470.00,Revenue,Payment to Individual
Brighton & Hove City Council,http://statistics.data.gov.uk/id/local-authority/00ML,Adult Social Care,BVASOC,S Svcs - Learning Disability,LDY,Premises Related,C,Rents Payable,CC,05/09/2012,PAY00503355,1143.30,Revenue,Affinity Sutton Homes Ltd  (Rent)
Brighton & Hove City Council,http://statistics.data.gov.uk/id/local-authority/00ML,Adult Social Care,BVASOC,S Svcs - Learning Disability,LDY,Third Party Payments,F,Other Establishments,FH,05/09/2012,PAY00503357,36351.28,Revenue,Scope
Brighton & Hove City Council,http://statistics.data.gov.uk/id/local-authority/00ML,Children�s Social Care,BVACSC,Child Srvcs - Other,FAX,Supplies and Services,E,Miscellaneous Expenses,EM,05/09/2012,PAY00503358,12.48,Revenue,The Imprest Holder
Brighton & Hove City Council,http://statistics.data.gov.uk/id/local-authority/00ML,Cultural and Related Services,BVACUL,Culture & Heritage,CHG,Supplies and Services,E,Miscellaneous Expenses,EM,05/09/2012,PAY00503358,89.63,Revenue,The Imprest Holder
Brighton & Hove City Council,http://statistics.data.gov.uk/id/local-authority/00ML,Cultural and Related Services,BVACUL,Culture & Heritage,CHG,Transport Related,D,Public Transport,DD,05/09/2012,PAY00503358,63.98,Revenue,The Imprest Holder
Brighton & Hove City Council,http://statistics.data.gov.uk/id/local-authority/00ML,Planning Services,BVAPLA,Economic Development,ECD,Transport Related,D,Public Transport,DD,05/09/2012,PAY00503358,38.25,Revenue,The Imprest Holder
Brighton & Hove City Council,http://statistics.data.gov.uk/id/local-authority/00ML,Planning Services,BVAPLA,Economic Development,ECD,Transport Related,D,Other Transport Costs,DG,05/09/2012,PAY00503358,2.83,Revenue,The Imprest Holder
Brighton & Hove City Council,http://statistics.data.gov.uk/id/local-authority/00ML,Education Services,BVAEDU,Ed - Ed Other - LA Attrib Sch,ELA,Supplies and Services,E,Miscellaneous Expenses,EM,05/09/2012,PAY00503358,51.46,Revenue,The Imprest Holder
Brighton & Hove City Council,http://statistics.data.gov.uk/id/local-authority/00ML,Children�s Social Care,BVACSC,Ed - Ed Other - Strat Mgt,ENM,Transport Related,D,Public Transport,DD,05/09/2012,PAY00503358,4.40,Revenue,The Imprest Holder
Brighton & Hove City Council,http://statistics.data.gov.uk/id/local-authority/00ML,Education Services,BVAEDU,Ed - EY - Central,EAE,Supplies and Services,E,Grants n Subscriptions,EK,05/09/2012,PAY00503358,22.84,Revenue,The Imprest Holder
Brighton & Hove City Council,http://statistics.data.gov.uk/id/local-authority/00ML,Cultural and Related Services,BVACUL,Recreation and sport,REC,Supplies and Services,E,Miscellaneous Expenses,EM,05/09/2012,PAY00503358,20.83,Revenue,The Imprest Holder
Brighton & Hove City Council,http://statistics.data.gov.uk/id/local-authority/00ML,Cultural and Related Services,BVACUL,Recreation and sport,REC,Transport Related,D,Other Transport Costs,DG,05/09/2012,PAY00503358,10.00,Revenue,The Imprest Holder
Brighton & Hove City Council,http://statistics.data.gov.uk/id/local-authority/00ML,Central Services To The Public,BVACEN,Support Services (SSC),PPT,Indirect Employees,B,Training,BM,05/09/2012,PAY00503358,15.85,Revenue,The Imprest Holder
Brighton & Hove City Council,http://statistics.data.gov.uk/id/local-authority/00ML,Central Services To The Public,BVACEN,Support Services (SSC),PPT,Premises Related,C,Repair Maint n Alterations,CA,05/09/2012,PAY00503358,9.06,Revenue,The Imprest Holder
Brighton & Hove City Council,http://statistics.data.gov.uk/id/local-authority/00ML,Central Services To The Public,BVACEN,Support Services (SSC),PPT,Transport Related,D,Public Transport,DD,05/09/2012,PAY00503358,294.35,Revenue,The Imprest Holder
Brighton & Hove City Council,http://statistics.data.gov.uk/id/local-authority/00ML,Central Services To The Public,BVACEN,Support Services (SSC),PPT,Transport Related,D,Other Transport Costs,DG,05/09/2012,PAY00503358,14.50,Revenue,The Imprest Holder
Brighton & Hove City Council,http://statistics.data.gov.uk/id/local-authority/00ML,Highways and Transportation,BVAHRT,Transport plan policy strategy,TPP,Supplies and Services,E,Print Stat & Gen Office Exps,ED,05/09/2012,PAY00503358,36.04,Revenue,The Imprest Holder
Brighton & Hove City Council,http://statistics.data.gov.uk/id/local-authority/00ML,Adult Social Care,BVASOC,S Svcs - Learning Disability,LDY,Indirect Employees,B,Training,BM,05/09/2012,PAY00503359,550.00,Revenue,Opus Pharmacy Services Ltd
Brighton & Hove City Council,http://statistics.data.gov.uk/id/local-authority/00ML,Education Services,BVAEDU,Ed - EY - PVI,ENP,Supplies and Services,E,Grants n Subscriptions,EK,05/09/2012,PAY00503361,12055.00,Revenue,Growing Up Green Ltd
Brighton & Hove City Council,http://statistics.data.gov.uk/id/local-authority/00ML,Central Services To The Public,BVACEN,Support Services (SSC),PPT,Supplies and Services,E,Services,EF,05/09/2012,PAY00503362,900.00,Revenue,R&B Recovery Limited
Brighton & Hove City Council,http://statistics.data.gov.uk/id/local-authority/00ML,Education Services,BVAEDU,Ed - EY - PVI,ENP,Supplies and Services,E,Grants n Subscriptions,EK,05/09/2012,PAY00503363,10095.00,Revenue,Pixies Childcare Ltd
Brighton & Hove City Council,http://statistics.data.gov.uk/id/local-authority/00ML,Education Services,BVAEDU,Ed - EY - PVI,ENP,Supplies and Services,E,Grants n Subscriptions,EK,05/09/2012,PAY00503366,18129.00,Revenue,Tinysaurus Nursery
Brighton & Hove City Council,http://statistics.data.gov.uk/id/local-authority/00ML,Non SERCOP,BVANON,Balance Sheet GFND,9ZZ,Long Term Liabilities,ZBB,Provisions,ZBBB,05/09/2012,PAY00503368,1170.00,Balance Sheet,Cripps Harries Hall LLP
Brighton & Hove City Council,http://statistics.data.gov.uk/id/local-authority/00ML,Adult Social Care,BVASOC,S Svcs - Older People Svcs,PPL,Customer n Client Receipts,M,Fees n Charges,MB,05/09/2012,PAY00503371,17001.86,Revenue,Tenby House Residential Care Home
Brighton & Hove City Council,http://statistics.data.gov.uk/id/local-authority/00ML,Education Services,BVAEDU,Ed - EY - PVI,ENP,Supplies and Services,E,Grants n Subscriptions,EK,05/09/2012,PAY00503374,12657.00,Revenue,Little Oaks Nursery
Brighton & Hove City Council,http://statistics.data.gov.uk/id/local-authority/00ML,Education Services,BVAEDU,Ed - EY - PVI,ENP,Supplies and Services,E,Grants n Subscriptions,EK,05/09/2012,PAY00503379,8624.00,Revenue,Baby Ducks Playgroup
Brighton & Hove City Council,http://statistics.data.gov.uk/id/local-authority/00ML,Central Services To The Public,BVACEN,Support Services (SSC),PPT,Supplies and Services,E,Equip't Furniture n Materials,EA,05/09/2012,PAY00503380,911.36,Revenue,Point-Of-Purchase Developments
Brighton & Hove City Council,http://statistics.data.gov.uk/id/local-authority/00ML,Cultural and Related Services,BVACUL,Recreation and sport,REC,Premises Related,C,Repair Maint n Alterations,CA,05/09/2012,PAY00503382,1006.00,Revenue,Abacus Property Maintenance Ltd
Brighton & Hove City Council,http://statistics.data.gov.uk/id/local-authority/00ML,Cultural and Related Services,BVACUL,Culture & Heritage,CHG,Premises Related,C,Repair Maint n Alterations,CA,05/09/2012,PAY00503383,1750.00,Revenue,A G M Floors Ltd
Brighton & Hove City Council,http://statistics.data.gov.uk/id/local-authority/00ML,Planning Services,BVAPLA,Development Control,DEV,Supplies and Services,E,Miscellaneous Expenses,EM,05/09/2012,PAY00503384,5606.80,Revenue,Alexander Advertising(International)Ltd
Brighton & Hove City Council,http://statistics.data.gov.uk/id/local-authority/00ML,Central Services To The Public,BVACEN,Support Services (SSC),PPT,Supplies and Services,E,Services,EF,05/09/2012,PAY00503386,1655.00,Revenue,Andus Print Limited
Brighton & Hove City Council,http://statistics.data.gov.uk/id/local-authority/00ML,Central Services To The Public,BVACEN,Holding Accounts,PPH,Transport Related,D,Direct Transport Costs,DA,05/09/2012,PAY00503387,145.27,Revenue,ATS Euromaster Ltd
Brighton & Hove City Council,http://statistics.data.gov.uk/id/local-authority/00ML,Housing Services Revnue Acc,BVAHOU,Hsing Management - HRA,HGM,Transport Related,D,Direct Transport Costs,DA,05/09/2012,PAY00503387,8.70,Revenue,ATS Euromaster Ltd
Brighton & Hove City Council,http://statistics.data.gov.uk/id/local-authority/00ML,Cultural and Related Services,BVACUL,Management Services (DEC),MGT,Transport Related,D,Direct Transport Costs,DA,05/09/2012,PAY00503387,3112.83,Revenue,ATS Euromaster Ltd
Brighton & Hove City Council,http://statistics.data.gov.uk/id/local-authority/00ML,Cultural and Related Services,BVACUL,Open Spaces,PEN,Transport Related,D,Direct Transport Costs,DA,05/09/2012,PAY00503387,199.54,Revenue,ATS Euromaster Ltd
Brighton & Hove City Council,http://statistics.data.gov.uk/id/local-authority/00ML,Environment and Regulatory Ser,BVAERS,Street Cleansing,CLE,Transport Related,D,Direct Transport Costs,DA,05/09/2012,PAY00503387,1830.10,Revenue,ATS Euromaster Ltd
Brighton & Hove City Council,http://statistics.data.gov.uk/id/local-authority/00ML,Environment and Regulatory Ser,BVAERS,Waste Management,WMT,Transport Related,D,Direct Transport Costs,DA,05/09/2012,PAY00503387,1252.13,Revenue,ATS Euromaster Ltd
Brighton & Hove City Council,http://statistics.data.gov.uk/id/local-authority/00ML,Non SERCOP,BVANON,Collection Fund,7WW,Unalalysed-Income,9998,Level not required,NR5037,05/09/2012,PAY00503388,9105.25,Collection Fund,The Baron Homes Corporation Ltd
Brighton & Hove City Council,http://statistics.data.gov.uk/id/local-authority/00ML,Non SERCOP,BVANON,Cap - Sport & Recreation,4RC,New Construction n Conversion,PB,Level not required,NR5026,05/09/2012,PAY00503389,1500.00,Capital,BLB Surveyors Ltd
Brighton & Hove City Council,http://statistics.data.gov.uk/id/local-authority/00ML,Cultural and Related Services,BVACUL,Culture & Heritage,CHG,Supplies and Services,E,Catering,EB,05/09/2012,PAY00503391,242.94,Revenue,3663 BFS Group Ltd
Brighton & Hove City Council,http://statistics.data.gov.uk/id/local-authority/00ML,Housing Services General Fund,BVAHOG,Homelessness,HML,Supplies and Services,E,Catering,EB,05/09/2012,PAY00503391,614.71,Revenue,3663 BFS Group Ltd
Brighton & Hove City Council,http://statistics.data.gov.uk/id/local-authority/00ML,Adult Social Care,BVASOC,S Svcs - Older People Svcs,PPL,Supplies and Services,E,Catering,EB,05/09/2012,PAY00503391,1198.37,Revenue,3663 BFS Group Ltd
Brighton & Hove City Council,http://statistics.data.gov.uk/id/local-authority/00ML,Cultural and Related Services,BVACUL,Tourism,TRM,Supplies and Services,E,Miscellaneous Expenses,EM,05/09/2012,PAY00503392,2000.00,Revenue,Visit Britain
Brighton & Hove City Council,http://statistics.data.gov.uk/id/local-authority/00ML,Education Services,BVAEDU,Ed - EY - PVI,ENP,Supplies and Services,E,Grants n Subscriptions,EK,05/09/2012,PAY00503393,17296.00,Revenue,Brighton & Sussex University Hospitals NHS Trust
Brighton & Hove City Council,http://statistics.data.gov.uk/id/local-authority/00ML,Cultural and Related Services,BVACUL,Recreation and sport,REC,Supplies and Services,E,Print Stat & Gen Office Exps,ED,05/09/2012,PAY00503393,168.45,Revenue,Brighton & Sussex University Hospitals NHS Trust
Brighton & Hove City Council,http://statistics.data.gov.uk/id/local-authority/00ML,Non SERCOP,BVANON,Cap - Transport,4TR,New Construction n Conversion,PB,Level not required,NR5026,05/09/2012,PAY00503399,5900.00,Capital,East Sussex County Council
Brighton & Hove City Council,http://statistics.data.gov.uk/id/local-authority/00ML,Planning Services,BVAPLA,Planning policy,PLP,Supplies and Services,E,Services,EF,05/09/2012,PAY00503399,11474.00,Revenue,East Sussex County Council
Brighton & Hove City Council,http://statistics.data.gov.uk/id/local-authority/00ML,Housing Services General Fund,BVAHOG,Hsing Benefits,HGB,Supplies and Services,E,Services,EF,05/09/2012,PAY00503401,5257.52,Revenue,Equifax Plc
Brighton & Hove City Council,http://statistics.data.gov.uk/id/local-authority/00ML,Cultural and Related Services,BVACUL,Culture & Heritage,CHG,Supplies and Services,E,Miscellaneous Expenses,EM,05/09/2012,PAY00503402,955.00,Revenue,Sussex Top Attractions Ltd
Brighton & Hove City Council,http://statistics.data.gov.uk/id/local-authority/00ML,Adult Social Care,BVASOC,S Svcs - Supported Employment,EMP,Premises Related,C,Repair Maint n Alterations,CA,05/09/2012,PAY00503404,27.23,Revenue,Apogee Corporation Limited
Brighton & Hove City Council,http://statistics.data.gov.uk/id/local-authority/00ML,Adult Social Care,BVASOC,S Svcs - Supported Employment,EMP,Supplies and Services,E,Equip't Furniture n Materials,EA,05/09/2012,PAY00503404,451.17,Revenue,Apogee Corporation Limited
Brighton & Hove City Council,http://statistics.data.gov.uk/id/local-authority/00ML,Non SERCOP,BVANON,Cap - Education Services,4ED,New Construction n Conversion,PB,Level not required,NR5026,05/09/2012,PAY00503409,22915.00,Capital,Payment to Individual
Brighton & Hove City Council,http://statistics.data.gov.uk/id/local-authority/00ML,Education Services,BVAEDU,Ed - EY - Central,EAE,Premises Related,C,Cleaning n Domestic Supps,CH,05/09/2012,PAY00503411,155.58,Revenue,Kent County Council (KCS)
Brighton & Hove City Council,http://statistics.data.gov.uk/id/local-authority/00ML,Education Services,BVAEDU,Ed - Srvcs YP - Ad & Cmty Ln,ENA,Premises Related,C,Cleaning n Domestic Supps,CH,05/09/2012,PAY00503411,34.20,Revenue,Kent County Council (KCS)
Brighton & Hove City Council,http://statistics.data.gov.uk/id/local-authority/00ML,Education Services,BVAEDU,Ed - Srvcs YP - Youth Srvcs,ENY,Supplies and Services,E,Print Stat & Gen Office Exps,ED,05/09/2012,PAY00503411,53.94,Revenue,Kent County Council (KCS)
Brighton & Hove City Council,http://statistics.data.gov.uk/id/local-authority/00ML,Adult Social Care,BVASOC,S Svcs - Older People Svcs,PPL,Supplies and Services,E,Miscellaneous Expenses,EM,05/09/2012,PAY00503411,730.23,Revenue,Kent County Council (KCS)
Brighton & Hove City Council,http://statistics.data.gov.uk/id/local-authority/00ML,Planning Services,BVAPLA,Building Control,BLD,Supplies and Services,E,Print Stat & Gen Office Exps,ED,05/09/2012,PAY00503415,316.81,Revenue,Office Depot UK Limited
Brighton & Hove City Council,http://statistics.data.gov.uk/id/local-authority/00ML,Environment and Regulatory Ser,BVAERS,Cem Crem and Mortuary Services,CCM,Supplies and Services,E,Print Stat & Gen Office Exps,ED,05/09/2012,PAY00503415,76.34,Revenue,Office Depot UK Limited
Brighton & Hove City Council,http://statistics.data.gov.uk/id/local-authority/00ML,Children�s Social Care,BVACSC,Child Srvcs - Adoption,FAA,Supplies and Services,E,Print Stat & Gen Office Exps,ED,05/09/2012,PAY00503415,70.57,Revenue,Office Depot UK Limited
Brighton & Hove City Council,http://statistics.data.gov.uk/id/local-authority/00ML,Children�s Social Care,BVACSC,Child Srvcs - Com & Scl Work,FCW,Supplies and Services,E,Catering,EB,05/09/2012,PAY00503415,143.63,Revenue,Office Depot UK Limited
Brighton & Hove City Council,http://statistics.data.gov.uk/id/local-authority/00ML,Children�s Social Care,BVACSC,Child Srvcs - Com & Scl Work,FCW,Supplies and Services,E,Print Stat & Gen Office Exps,ED,05/09/2012,PAY00503415,1489.46,Revenue,Office Depot UK Limited
Brighton & Hove City Council,http://statistics.data.gov.uk/id/local-authority/00ML,Children�s Social Care,BVACSC,Child Srvcs - Com & Scl Work,FCW,Supplies and Services,E,Communications n Computing,EH,05/09/2012,PAY00503415,100.00,Revenue,Office Depot UK Limited
Brighton & Hove City Council,http://statistics.data.gov.uk/id/local-authority/00ML,Children�s Social Care,BVACSC,Child Srvcs - Fostering,FLF,Supplies and Services,E,Print Stat & Gen Office Exps,ED,05/09/2012,PAY00503415,392.79,Revenue,Office Depot UK Limited
Brighton & Hove City Council,http://statistics.data.gov.uk/id/local-authority/00ML,Children�s Social Care,BVACSC,Child Srvcs - Leaving Care,FAL,Supplies and Services,E,Print Stat & Gen Office Exps,ED,05/09/2012,PAY00503415,128.33,Revenue,Office Depot UK Limited
Brighton & Hove City Council,http://statistics.data.gov.uk/id/local-authority/00ML,Children�s Social Care,BVACSC,Child Srvcs - Other,FAX,Supplies and Services,E,Print Stat & Gen Office Exps,ED,05/09/2012,PAY00503415,141.94,Revenue,Office Depot UK Limited
Brighton & Hove City Council,http://statistics.data.gov.uk/id/local-authority/00ML,Children�s Social Care,BVACSC,Child Srvcs - Other Fam Supp,FFX,Supplies and Services,E,Print Stat & Gen Office Exps,ED,05/09/2012,PAY00503415,10.24,Revenue,Office Depot UK Limited
Brighton & Hove City Council,http://statistics.data.gov.uk/id/local-authority/00ML,Children�s Social Care,BVACSC,Child Srvcs - Residential Svcs,FLR,Supplies and Services,E,Print Stat & Gen Office Exps,ED,05/09/2012,PAY00503415,28.47,Revenue,Office Depot UK Limited
Brighton & Hove City Council,http://statistics.data.gov.uk/id/local-authority/00ML,Planning Services,BVAPLA,Community Development,CDV,Supplies and Services,E,Print Stat & Gen Office Exps,ED,05/09/2012,PAY00503415,49.58,Revenue,Office Depot UK Limited
Brighton & Hove City Council,http://statistics.data.gov.uk/id/local-authority/00ML,Environment and Regulatory Ser,BVAERS,Community Safety,CMY,Supplies and Services,E,Print Stat & Gen Office Exps,ED,05/09/2012,PAY00503415,242.14,Revenue,Office Depot UK Limited
Brighton & Hove City Council,http://statistics.data.gov.uk/id/local-authority/00ML,Environment and Regulatory Ser,BVAERS,Court Services,CRT,Supplies and Services,E,Print Stat & Gen Office Exps,ED,05/09/2012,PAY00503415,61.49,Revenue,Office Depot UK Limited
Brighton & Hove City Council,http://statistics.data.gov.uk/id/local-authority/00ML,Cultural and Related Services,BVACUL,Culture & Heritage,CHG,Premises Related,C,Repair Maint n Alterations,CA,05/09/2012,PAY00503415,49.95,Revenue,Office Depot UK Limited
Brighton & Hove City Council,http://statistics.data.gov.uk/id/local-authority/00ML,Cultural and Related Services,BVACUL,Culture & Heritage,CHG,Supplies and Services,E,Equip't Furniture n Materials,EA,05/09/2012,PAY00503415,148.23,Revenue,Office Depot UK Limited
Brighton & Hove City Council,http://statistics.data.gov.uk/id/local-authority/00ML,Cultural and Related Services,BVACUL,Culture & Heritage,CHG,Supplies and Services,E,Print Stat & Gen Office Exps,ED,05/09/2012,PAY00503415,477.18,Revenue,Office Depot UK Limited
Brighton & Hove City Council,http://statistics.data.gov.uk/id/local-authority/00ML,Planning Services,BVAPLA,Development Control,DEV,Supplies and Services,E,Print Stat & Gen Office Exps,ED,05/09/2012,PAY00503415,525.30,Revenue,Office Depot UK Limited
Brighton & Hove City Council,http://statistics.data.gov.uk/id/local-authority/00ML,Planning Services,BVAPLA,Economic Development,ECD,Supplies and Services,E,Miscellaneous Expenses,EM,05/09/2012,PAY00503415,20.79,Revenue,Office Depot UK Limited
Brighton & Hove City Council,http://statistics.data.gov.uk/id/local-authority/00ML,Education Services,BVAEDU,Ed - Ed Other - LA Attrib Sch,ELA,Supplies and Services,E,Print Stat & Gen Office Exps,ED,05/09/2012,PAY00503415,93.06,Revenue,Office Depot UK Limited
Brighton & Hove City Council,http://statistics.data.gov.uk/id/local-authority/00ML,Education Services,BVAEDU,Ed - Ed Other - Strat Mgt,ENM,Supplies and Services,E,Print Stat & Gen Office Exps,ED,05/09/2012,PAY00503415,96.22,Revenue,Office Depot UK Limited
Brighton & Hove City Council,http://statistics.data.gov.uk/id/local-authority/00ML,Children�s Social Care,BVACSC,Ed - Ed Other - Strat Mgt,ENM,Supplies and Services,E,Print Stat & Gen Office Exps,ED,05/09/2012,PAY00503415,156.94,Revenue,Office Depot UK Limited
Brighton & Hove City Council,http://statistics.data.gov.uk/id/local-authority/00ML,Education Services,BVAEDU,Ed - EY - Central,EAE,Supplies and Services,E,Equip't Furniture n Materials,EA,05/09/2012,PAY00503415,29.19,Revenue,Office Depot UK Limited
Brighton & Hove City Council,http://statistics.data.gov.uk/id/local-authority/00ML,Education Services,BVAEDU,Ed - EY - Central,EAE,Supplies and Services,E,Catering,EB,05/09/2012,PAY00503415,44.04,Revenue,Office Depot UK Limited
Brighton & Hove City Council,http://statistics.data.gov.uk/id/local-authority/00ML,Education Services,BVAEDU,Ed - EY - Central,EAE,Supplies and Services,E,Print Stat & Gen Office Exps,ED,05/09/2012,PAY00503415,3572.34,Revenue,Office Depot UK Limited
Brighton & Hove City Council,http://statistics.data.gov.uk/id/local-authority/00ML,Central Services To The Public,BVACEN,Ed - EY - Central,EAE,Supplies and Services,E,Print Stat & Gen Office Exps,ED,05/09/2012,PAY00503415,79.20,Revenue,Office Depot UK Limited
Brighton & Hove City Council,http://statistics.data.gov.uk/id/local-authority/00ML,Education Services,BVAEDU,Ed - Mgmt & Support Services,EMG,Supplies and Services,E,Print Stat & Gen Office Exps,ED,05/09/2012,PAY00503415,535.49,Revenue,Office Depot UK Limited
Brighton & Hove City Council,http://statistics.data.gov.uk/id/local-authority/00ML,Education Services,BVAEDU,Ed - Special Ed,EKE,Supplies and Services,E,Print Stat & Gen Office Exps,ED,05/09/2012,PAY00503415,251.54,Revenue,Office Depot UK Limited
Brighton & Hove City Council,http://statistics.data.gov.uk/id/local-authority/00ML,Education Services,BVAEDU,Ed - Special Ed,EKE,Supplies and Services,E,Miscellaneous Expenses,EM,05/09/2012,PAY00503415,8.39,Revenue,Office Depot UK Limited
Brighton & Hove City Council,http://statistics.data.gov.uk/id/local-authority/00ML,Education Services,BVAEDU,Ed - Srvcs YP - Ad & Cmty Ln,ENA,Supplies and Services,E,Print Stat & Gen Office Exps,ED,05/09/2012,PAY00503415,147.62,Revenue,Office Depot UK Limited
Brighton & Hove City Council,http://statistics.data.gov.uk/id/local-authority/00ML,Education Services,BVAEDU,Ed - Srvcs YP - Youth Srvcs,ENY,Premises Related,C,Cleaning n Domestic Supps,CH,05/09/2012,PAY00503415,8.99,Revenue,Office Depot UK Limited
Brighton & Hove City Council,http://statistics.data.gov.uk/id/local-authority/00ML,Education Services,BVAEDU,Ed - Srvcs YP - Youth Srvcs,ENY,Supplies and Services,E,Catering,EB,05/09/2012,PAY00503415,16.76,Revenue,Office Depot UK Limited
Brighton & Hove City Council,http://statistics.data.gov.uk/id/local-authority/00ML,Education Services,BVAEDU,Ed - Srvcs YP - Youth Srvcs,ENY,Supplies and Services,E,Print Stat & Gen Office Exps,ED,05/09/2012,PAY00503415,277.18,Revenue,Office Depot UK Limited
Brighton & Hove City Council,http://statistics.data.gov.uk/id/local-authority/00ML,Education Services,BVAEDU,Ed - Srvcs YP - Youth Srvcs,ENY,Supplies and Services,E,Contributions to Provisions,EL,05/09/2012,PAY00503415,86.12,Revenue,Office Depot UK Limited
Brighton & Hove City Council,http://statistics.data.gov.uk/id/local-authority/00ML,Education Services,BVAEDU,Ed - Srvcs YP - Youth Srvcs,ENY,Supplies and Services,E,Miscellaneous Expenses,EM,05/09/2012,PAY00503415,58.50,Revenue,Office Depot UK Limited
Brighton & Hove City Council,http://statistics.data.gov.uk/id/local-authority/00ML,Education Services,BVAEDU,Ed - Srvcs YP - Youth Srvcs,ENY,Third Party Payments,F,Other Establishments,FH,05/09/2012,PAY00503415,87.39,Revenue,Office Depot UK Limited
Brighton & Hove City Council,http://statistics.data.gov.uk/id/local-authority/00ML,Central Services To The Public,BVACEN,Elections,ELE,Supplies and Services,E,Print Stat & Gen Office Exps,ED,05/09/2012,PAY00503415,64.83,Revenue,Office Depot UK Limited
Brighton & Hove City Council,http://statistics.data.gov.uk/id/local-authority/00ML,Central Services To The Public,BVACEN,Emergency Planning,EPL,Supplies and Services,E,Equip't Furniture n Materials,EA,05/09/2012,PAY00503415,33.00,Revenue,Office Depot UK Limited
Brighton & Hove City Council,http://statistics.data.gov.uk/id/local-authority/00ML,Environment and Regulatory Ser,BVAERS,Environmental Health,EVH,Supplies and Services,E,Equip't Furniture n Materials,EA,05/09/2012,PAY00503415,58.99,Revenue,Office Depot UK Limited
Brighton & Hove City Council,http://statistics.data.gov.uk/id/local-authority/00ML,Environment and Regulatory Ser,BVAERS,Environmental Health,EVH,Supplies and Services,E,Print Stat & Gen Office Exps,ED,05/09/2012,PAY00503415,416.05,Revenue,Office Depot UK Limited
Brighton & Hove City Council,http://statistics.data.gov.uk/id/local-authority/00ML,Highways and Transportation,BVAHRT,Highways and Roads - Mntnce,HRM,Supplies and Services,E,Print Stat & Gen Office Exps,ED,05/09/2012,PAY00503415,1080.29,Revenue,Office Depot UK Limited
Brighton & Hove City Council,http://statistics.data.gov.uk/id/local-authority/00ML,Central Services To The Public,BVACEN,Holding Accounts,PPH,Supplies and Services,E,Print Stat & Gen Office Exps,ED,05/09/2012,PAY00503415,18.96,Revenue,Office Depot UK Limited
Brighton & Hove City Council,http://statistics.data.gov.uk/id/local-authority/00ML,Housing Services General Fund,BVAHOG,Homelessness,HML,Supplies and Services,E,Print Stat & Gen Office Exps,ED,05/09/2012,PAY00503415,542.33,Revenue,Office Depot UK Limited
Brighton & Hove City Council,http://statistics.data.gov.uk/id/local-authority/00ML,Housing Services General Fund,BVAHOG,Hsing Benefits,HGB,Supplies and Services,E,Print Stat & Gen Office Exps,ED,05/09/2012,PAY00503415,273.38,Revenue,Office Depot UK Limited
Brighton & Hove City Council,http://statistics.data.gov.uk/id/local-authority/00ML,Housing Services Revnue Acc,BVAHOU,Hsing Management - HRA,HGM,Supplies and Services,E,Equip't Furniture n Materials,EA,05/09/2012,PAY00503415,0.56,Revenue,Office Depot UK Limited
Brighton & Hove City Council,http://statistics.data.gov.uk/id/local-authority/00ML,Housing Services Revnue Acc,BVAHOU,Hsing Management - HRA,HGM,Supplies and Services,E,Print Stat & Gen Office Exps,ED,05/09/2012,PAY00503415,931.15,Revenue,Office Depot UK Limited
Brighton & Hove City Council,http://statistics.data.gov.uk/id/local-authority/00ML,Housing Services Revnue Acc,BVAHOU,Hsing Management - HRA,HGM,Supplies and Services,E,Communications n Computing,EH,05/09/2012,PAY00503415,68.58,Revenue,Office Depot UK Limited
Brighton & Hove City Council,http://statistics.data.gov.uk/id/local-authority/00ML,Housing Services General Fund,BVAHOG,Hsing Strat Advice and RSLs,HGR,Supplies and Services,E,Print Stat & Gen Office Exps,ED,05/09/2012,PAY00503415,134.01,Revenue,Office Depot UK Limited
Brighton & Hove City Council,http://statistics.data.gov.uk/id/local-authority/00ML,Housing Services General Fund,BVAHOG,Hsing Strat Advice and RSLs,HGR,Supplies and Services,E,Miscellaneous Expenses,EM,05/09/2012,PAY00503415,17.46,Revenue,Office Depot UK Limited
Brighton & Hove City Council,http://statistics.data.gov.uk/id/local-authority/00ML,Housing Services General Fund,BVAHOG,Hsing Welfare,HGW,Supplies and Services,E,Print Stat & Gen Office Exps,ED,05/09/2012,PAY00503415,7.40,Revenue,Office Depot UK Limited
Brighton & Hove City Council,http://statistics.data.gov.uk/id/local-authority/00ML,Adult Social Care,BVASOC,Hsing Welfare,HGW,Supplies and Services,E,Print Stat & Gen Office Exps,ED,05/09/2012,PAY00503415,49.83,Revenue,Office Depot UK Limited
Brighton & Hove City Council,http://statistics.data.gov.uk/id/local-authority/00ML,Cultural and Related Services,BVACUL,Library Service,LBR,Premises Related,C,Cleaning n Domestic Supps,CH,05/09/2012,PAY00503415,51.95,Revenue,Office Depot UK Limited
Brighton & Hove City Council,http://statistics.data.gov.uk/id/local-authority/00ML,Cultural and Related Services,BVACUL,Library Service,LBR,Supplies and Services,E,Catering,EB,05/09/2012,PAY00503415,255.80,Revenue,Office Depot UK Limited
Brighton & Hove City Council,http://statistics.data.gov.uk/id/local-authority/00ML,Cultural and Related Services,BVACUL,Library Service,LBR,Supplies and Services,E,Print Stat & Gen Office Exps,ED,05/09/2012,PAY00503415,608.61,Revenue,Office Depot UK Limited
Brighton & Hove City Council,http://statistics.data.gov.uk/id/local-authority/00ML,Cultural and Related Services,BVACUL,Library Service,LBR,Supplies and Services,E,Communications n Computing,EH,05/09/2012,PAY00503415,50.00,Revenue,Office Depot UK Limited
Brighton & Hove City Council,http://statistics.data.gov.uk/id/local-authority/00ML,Cultural and Related Services,BVACUL,Library Service,LBR,Supplies and Services,E,Miscellaneous Expenses,EM,05/09/2012,PAY00503415,22.96,Revenue,Office Depot UK Limited
Brighton & Hove City Council,http://statistics.data.gov.uk/id/local-authority/00ML,Central Services To The Public,BVACEN,Local Land Charges,LLC,Supplies and Services,E,Print Stat & Gen Office Exps,ED,05/09/2012,PAY00503415,103.55,Revenue,Office Depot UK Limited
Brighton & Hove City Council,http://statistics.data.gov.uk/id/local-authority/00ML,Central Services To The Public,BVACEN,Local Tax Collection,LTC,Supplies and Services,E,Print Stat & Gen Office Exps,ED,05/09/2012,PAY00503415,169.53,Revenue,Office Depot UK Limited
Brighton & Hove City Council,http://statistics.data.gov.uk/id/local-authority/00ML,Cultural and Related Services,BVACUL,Management Services (DEC),MGT,Supplies and Services,E,Equip't Furniture n Materials,EA,05/09/2012,PAY00503415,24.65,Revenue,Office Depot UK Limited
Brighton & Hove City Council,http://statistics.data.gov.uk/id/local-authority/00ML,Education Services,BVAEDU,Management Services (DEC),MGT,Supplies and Services,E,Print Stat & Gen Office Exps,ED,05/09/2012,PAY00503415,68.90,Revenue,Office Depot UK Limited
Brighton & Hove City Council,http://statistics.data.gov.uk/id/local-authority/00ML,Children�s Social Care,BVACSC,Management Services (DEC),MGT,Supplies and Services,E,Print Stat & Gen Office Exps,ED,05/09/2012,PAY00503415,21.66,Revenue,Office Depot UK Limited
Brighton & Hove City Council,http://statistics.data.gov.uk/id/local-authority/00ML,Adult Social Care,BVASOC,Management Services (DEC),MGT,Supplies and Services,E,Print Stat & Gen Office Exps,ED,05/09/2012,PAY00503415,84.17,Revenue,Office Depot UK Limited
Brighton & Hove City Council,http://statistics.data.gov.uk/id/local-authority/00ML,Environment and Regulatory Ser,BVAERS,Management Services (DEC),MGT,Supplies and Services,E,Print Stat & Gen Office Exps,ED,05/09/2012,PAY00503415,86.89,Revenue,Office Depot UK Limited
Brighton & Hove City Council,http://statistics.data.gov.uk/id/local-authority/00ML,Planning Services,BVAPLA,Management Services (DEC),MGT,Supplies and Services,E,Print Stat & Gen Office Exps,ED,05/09/2012,PAY00503415,73.71,Revenue,Office Depot UK Limited
Brighton & Hove City Council,http://statistics.data.gov.uk/id/local-authority/00ML,Cultural and Related Services,BVACUL,Management Services (DEC),MGT,Supplies and Services,E,Print Stat & Gen Office Exps,ED,05/09/2012,PAY00503415,213.13,Revenue,Office Depot UK Limited
Brighton & Hove City Council,http://statistics.data.gov.uk/id/local-authority/00ML,Cultural and Related Services,BVACUL,Management Services (DEC),MGT,Supplies and Services,E,Miscellaneous Expenses,EM,05/09/2012,PAY00503415,20.93,Revenue,Office Depot UK Limited
Brighton & Hove City Council,http://statistics.data.gov.uk/id/local-authority/00ML,Cultural and Related Services,BVACUL,Open Spaces,PEN,Supplies and Services,E,Equip't Furniture n Materials,EA,05/09/2012,PAY00503415,100.92,Revenue,Office Depot UK Limited
Brighton & Hove City Council,http://statistics.data.gov.uk/id/local-authority/00ML,Cultural and Related Services,BVACUL,Open Spaces,PEN,Supplies and Services,E,Print Stat & Gen Office Exps,ED,05/09/2012,PAY00503415,163.16,Revenue,Office Depot UK Limited
Brighton & Hove City Council,http://statistics.data.gov.uk/id/local-authority/00ML,Highways and Transportation,BVAHRT,Parking Services,PRK,Indirect Employees,B,Training,BM,05/09/2012,PAY00503415,-117.25,Revenue,Office Depot UK Limited
Brighton & Hove City Council,http://statistics.data.gov.uk/id/local-authority/00ML,Highways and Transportation,BVAHRT,Parking Services,PRK,Supplies and Services,E,Print Stat & Gen Office Exps,ED,05/09/2012,PAY00503415,-24.17,Revenue,Office Depot UK Limited
Brighton & Hove City Council,http://statistics.data.gov.uk/id/local-authority/00ML,Housing Services General Fund,BVAHOG,Private Sector Hsing Renewal,PHR,Supplies and Services,E,Equip't Furniture n Materials,EA,05/09/2012,PAY00503415,155.06,Revenue,Office Depot UK Limited
Brighton & Hove City Council,http://statistics.data.gov.uk/id/local-authority/00ML,Housing Services General Fund,BVAHOG,Private Sector Hsing Renewal,PHR,Supplies and Services,E,Print Stat & Gen Office Exps,ED,05/09/2012,PAY00503415,250.74,Revenue,Office Depot UK Limited
Brighton & Hove City Council,http://statistics.data.gov.uk/id/local-authority/00ML,Cultural and Related Services,BVACUL,Recreation and sport,REC,Supplies and Services,E,Print Stat & Gen Office Exps,ED,05/09/2012,PAY00503415,235.53,Revenue,Office Depot UK Limited
Brighton & Hove City Council,http://statistics.data.gov.uk/id/local-authority/00ML,Central Services To The Public,BVACEN,Reg - Birth Death and Marriage,RBD,Supplies and Services,E,Print Stat & Gen Office Exps,ED,05/09/2012,PAY00503415,83.63,Revenue,Office Depot UK Limited
Brighton & Hove City Council,http://statistics.data.gov.uk/id/local-authority/00ML,Adult Social Care,BVASOC,S Svcs - Learning Disability,LDY,Supplies and Services,E,Equip't Furniture n Materials,EA,05/09/2012,PAY00503415,98.34,Revenue,Office Depot UK Limited
Brighton & Hove City Council,http://statistics.data.gov.uk/id/local-authority/00ML,Adult Social Care,BVASOC,S Svcs - Learning Disability,LDY,Supplies and Services,E,Catering,EB,05/09/2012,PAY00503415,20.93,Revenue,Office Depot UK Limited
Brighton & Hove City Council,http://statistics.data.gov.uk/id/local-authority/00ML,Adult Social Care,BVASOC,S Svcs - Learning Disability,LDY,Supplies and Services,E,Print Stat & Gen Office Exps,ED,05/09/2012,PAY00503415,354.05,Revenue,Office Depot UK Limited
Brighton & Hove City Council,http://statistics.data.gov.uk/id/local-authority/00ML,Adult Social Care,BVASOC,S Svcs - Learning Disability,LDY,Supplies and Services,E,Miscellaneous Expenses,EM,05/09/2012,PAY00503415,36.69,Revenue,Office Depot UK Limited
Brighton & Hove City Council,http://statistics.data.gov.uk/id/local-authority/00ML,Adult Social Care,BVASOC,S Svcs - Older People Svcs,PPL,Supplies and Services,E,Equip't Furniture n Materials,EA,05/09/2012,PAY00503415,218.70,Revenue,Office Depot UK Limited
Brighton & Hove City Council,http://statistics.data.gov.uk/id/local-authority/00ML,Adult Social Care,BVASOC,S Svcs - Older People Svcs,PPL,Supplies and Services,E,Print Stat & Gen Office Exps,ED,05/09/2012,PAY00503415,1053.26,Revenue,Office Depot UK Limited
Brighton & Hove City Council,http://statistics.data.gov.uk/id/local-authority/00ML,Adult Social Care,BVASOC,S Svcs - Physical Disability,PDY,Supplies and Services,E,Print Stat & Gen Office Exps,ED,05/09/2012,PAY00503415,258.91,Revenue,Office Depot UK Limited
Brighton & Hove City Council,http://statistics.data.gov.uk/id/local-authority/00ML,Adult Social Care,BVASOC,S Svcs - Supported Employment,EMP,Supplies and Services,E,Equip't Furniture n Materials,EA,05/09/2012,PAY00503415,219.06,Revenue,Office Depot UK Limited
Brighton & Hove City Council,http://statistics.data.gov.uk/id/local-authority/00ML,Adult Social Care,BVASOC,S Svcs - Supported Employment,EMP,Supplies and Services,E,Print Stat & Gen Office Exps,ED,05/09/2012,PAY00503415,33.34,Revenue,Office Depot UK Limited
Brighton & Hove City Council,http://statistics.data.gov.uk/id/local-authority/00ML,Housing Services General Fund,BVAHOG,Support Services (SSC),PPT,Indirect Employees,B,Training,BM,05/09/2012,PAY00503415,14.06,Revenue,Office Depot UK Limited
Brighton & Hove City Council,http://statistics.data.gov.uk/id/local-authority/00ML,Central Services To The Public,BVACEN,Support Services (SSC),PPT,Supplies and Services,E,Equip't Furniture n Materials,EA,05/09/2012,PAY00503415,63.65,Revenue,Office Depot UK Limited
Brighton & Hove City Council,http://statistics.data.gov.uk/id/local-authority/00ML,Housing Services General Fund,BVAHOG,Support Services (SSC),PPT,Supplies and Services,E,Print Stat & Gen Office Exps,ED,05/09/2012,PAY00503415,31.85,Revenue,Office Depot UK Limited
Brighton & Hove City Council,http://statistics.data.gov.uk/id/local-authority/00ML,Adult Social Care,BVASOC,Support Services (SSC),PPT,Supplies and Services,E,Print Stat & Gen Office Exps,ED,05/09/2012,PAY00503415,62.50,Revenue,Office Depot UK Limited
Brighton & Hove City Council,http://statistics.data.gov.uk/id/local-authority/00ML,Central Services To The Public,BVACEN,Support Services (SSC),PPT,Supplies and Services,E,Print Stat & Gen Office Exps,ED,05/09/2012,PAY00503415,32.34,Revenue,Office Depot UK Limited
Brighton & Hove City Council,http://statistics.data.gov.uk/id/local-authority/00ML,Central Services To The Public,BVACEN,Support Services (SSC),PPT,Supplies and Services,E,Print Stat & Gen Office Exps,ED,05/09/2012,PAY00503415,3532.59,Revenue,Office Depot UK Limited
Brighton & Hove City Council,http://statistics.data.gov.uk/id/local-authority/00ML,Cultural and Related Services,BVACUL,Tourism,TRM,Supplies and Services,E,Print Stat & Gen Office Exps,ED,05/09/2012,PAY00503415,168.57,Revenue,Office Depot UK Limited
Brighton & Hove City Council,http://statistics.data.gov.uk/id/local-authority/00ML,Highways and Transportation,BVAHRT,Traffic Mgmnt and Road Safety,TMR,Supplies and Services,E,Print Stat & Gen Office Exps,ED,05/09/2012,PAY00503415,82.45,Revenue,Office Depot UK Limited
Brighton & Hove City Council,http://statistics.data.gov.uk/id/local-authority/00ML,Highways and Transportation,BVAHRT,Transport plan policy strategy,TPP,Supplies and Services,E,Print Stat & Gen Office Exps,ED,05/09/2012,PAY00503415,48.03,Revenue,Office Depot UK Limited
Brighton & Hove City Council,http://statistics.data.gov.uk/id/local-authority/00ML,Cultural and Related Services,BVACUL,Recreation and sport,REC,Supplies and Services,E,Miscellaneous Expenses,EM,05/09/2012,PAY00503417,1045.00,Revenue,St John Ambulance
Brighton & Hove City Council,http://statistics.data.gov.uk/id/local-authority/00ML,Housing Services Revnue Acc,BVAHOU,Hsing Management - HRA,HGM,Supplies and Services,E,Services,EF,05/09/2012,PAY00503418,400.00,Revenue,Parsons Son & Basley LLP
Brighton & Hove City Council,http://statistics.data.gov.uk/id/local-authority/00ML,Cultural and Related Services,BVACUL,Recreation and sport,REC,Supplies and Services,E,Services,EF,05/09/2012,PAY00503418,500.00,Revenue,Parsons Son & Basley LLP
Brighton & Hove City Council,http://statistics.data.gov.uk/id/local-authority/00ML,Education Services,BVAEDU,Ed - EY - Central,EAE,Supplies and Services,E,Grants n Subscriptions,EK,05/09/2012,PAY00503419,1456.55,Revenue,Performing Right Society Ltd
Brighton & Hove City Council,http://statistics.data.gov.uk/id/local-authority/00ML,Non SERCOP,BVANON,Cap - Education Services,4ED,New Construction n Conversion,PB,Level not required,NR5026,05/09/2012,PAY00503421,1435.38,Capital,R J Meaker Fencing
Brighton & Hove City Council,http://statistics.data.gov.uk/id/local-authority/00ML,Housing Services Revnue Acc,BVAHOU,Hsing Management - HRA,HGM,Premises Related,C,Repair Maint n Alterations,CA,05/09/2012,PAY00503421,1161.59,Revenue,R J Meaker Fencing
Brighton & Hove City Council,http://statistics.data.gov.uk/id/local-authority/00ML,Adult Social Care,BVASOC,S Svcs - Physical Disability,PDY,Customer n Client Receipts,M,Fees n Charges,MB,05/09/2012,PAY00503422,-480.00,Revenue,Action on Hearing loss
Brighton & Hove City Council,http://statistics.data.gov.uk/id/local-authority/00ML,Adult Social Care,BVASOC,S Svcs - Physical Disability,PDY,Third Party Payments,F,Other Establishments,FH,05/09/2012,PAY00503422,1024.56,Revenue,Action on Hearing loss
Brighton & Hove City Council,http://statistics.data.gov.uk/id/local-authority/00ML,Cultural and Related Services,BVACUL,Culture & Heritage,CHG,Supplies and Services,E,Miscellaneous Expenses,EM,05/09/2012,PAY00503423,6000.00,Revenue,Same Sky Ltd
Brighton & Hove City Council,http://statistics.data.gov.uk/id/local-authority/00ML,Non SERCOP,BVANON,Cap - Education Services,4ED,New Construction n Conversion,PB,Level not required,NR5026,05/09/2012,PAY00503425,2666.80,Capital,Southern Mobility Centres Ltd
Brighton & Hove City Council,http://statistics.data.gov.uk/id/local-authority/00ML,Central Services To The Public,BVACEN,Support Services (SSC),PPT,Premises Related,C,Repair Maint n Alterations,CA,05/09/2012,PAY00503426,865.00,Revenue,Thomas Door & Window Controls Ltd
Brighton & Hove City Council,http://statistics.data.gov.uk/id/local-authority/00ML,Environment and Regulatory Ser,BVAERS,Cem Crem and Mortuary Services,CCM,Premises Related,C,Repair Maint n Alterations,CA,05/09/2012,PAY00503428,384.41,Revenue,Sussex Community NHS Trust
Brighton & Hove City Council,http://statistics.data.gov.uk/id/local-authority/00ML,Children�s Social Care,BVACSC,Child Srvcs - Residential Svcs,FLR,Third Party Payments,F,Other Establishments,FH,05/09/2012,PAY00503428,674.50,Revenue,Sussex Community NHS Trust
Brighton & Hove City Council,http://statistics.data.gov.uk/id/local-authority/00ML,Education Services,BVAEDU,Ed - EY - PVI,ENP,Supplies and Services,E,Grants n Subscriptions,EK,05/09/2012,PAY00503428,12319.00,Revenue,Sussex Community NHS Trust
Brighton & Hove City Council,http://statistics.data.gov.uk/id/local-authority/00ML,Adult Social Care,BVASOC,S Svcs - Older People Svcs,PPL,Third Party Payments,F,Health Authorities,FC,05/09/2012,PAY00503428,42147.00,Revenue,Sussex Community NHS Trust
Brighton & Hove City Council,http://statistics.data.gov.uk/id/local-authority/00ML,Central Services To The Public,BVACEN,Support Services (SSC),PPT,Supplies and Services,E,Services,EF,05/09/2012,PAY00503433,1822.74,Revenue,Technical Engineering Ltd
Brighton & Hove City Council,http://statistics.data.gov.uk/id/local-authority/00ML,Education Services,BVAEDU,Ed - EY - PVI,ENP,Supplies and Services,E,Grants n Subscriptions,EK,05/09/2012,PAY00503435,10340.00,Revenue,University Of Sussex
Brighton & Hove City Council,http://statistics.data.gov.uk/id/local-authority/00ML,Planning Services,BVAPLA,Development Control,DEV,Supplies and Services,E,Services,EF,05/09/2012,PAY00503436,4793.00,Revenue,Valuation Office Agency Administration
Brighton & Hove City Council,http://statistics.data.gov.uk/id/local-authority/00ML,Housing Services General Fund,BVAHOG,Homelessness,HML,Premises Related,C,Cleaning n Domestic Supps,CH,05/09/2012,PAY00503437,407.13,Revenue,Wightman & Parrish Ltd
Brighton & Hove City Council,http://statistics.data.gov.uk/id/local-authority/00ML,Adult Social Care,BVASOC,S Svcs - Learning Disability,LDY,Premises Related,C,Cleaning n Domestic Supps,CH,05/09/2012,PAY00503437,37.02,Revenue,Wightman & Parrish Ltd
Brighton & Hove City Council,http://statistics.data.gov.uk/id/local-authority/00ML,Adult Social Care,BVASOC,S Svcs - Learning Disability,LDY,Customer n Client Receipts,M,Fees n Charges,MB,05/09/2012,PAY00503439,-198.00,Revenue,Carewatch (Brighton & Hove)
Brighton & Hove City Council,http://statistics.data.gov.uk/id/local-authority/00ML,Adult Social Care,BVASOC,S Svcs - Learning Disability,LDY,Third Party Payments,F,Other Establishments,FH,05/09/2012,PAY00503439,841.47,Revenue,Carewatch (Brighton & Hove)
Brighton & Hove City Council,http://statistics.data.gov.uk/id/local-authority/00ML,Adult Social Care,BVASOC,S Svcs - Mental Health,MHT,Third Party Payments,F,Other Establishments,FH,05/09/2012,PAY00503439,252.03,Revenue,Carewatch (Brighton & Hove)
Brighton & Hove City Council,http://statistics.data.gov.uk/id/local-authority/00ML,Adult Social Care,BVASOC,S Svcs - Older People Svcs,PPL,Customer n Client Receipts,M,Fees n Charges,MB,05/09/2012,PAY00503439,-11546.29,Revenue,Carewatch (Brighton & Hove)
Brighton & Hove City Council,http://statistics.data.gov.uk/id/local-authority/00ML,Adult Social Care,BVASOC,S Svcs - Older People Svcs,PPL,Third Party Payments,F,Other Establishments,FH,05/09/2012,PAY00503439,121484.28,Revenue,Carewatch (Brighton & Hove)
Brighton & Hove City Council,http://statistics.data.gov.uk/id/local-authority/00ML,Adult Social Care,BVASOC,S Svcs - Physical Disability,PDY,Customer n Client Receipts,M,Fees n Charges,MB,05/09/2012,PAY00503439,-242.00,Revenue,Carewatch (Brighton & Hove)
Brighton & Hove City Council,http://statistics.data.gov.uk/id/local-authority/00ML,Adult Social Care,BVASOC,S Svcs - Physical Disability,PDY,Third Party Payments,F,Other Establishments,FH,05/09/2012,PAY00503439,17700.83,Revenue,Carewatch (Brighton & Hove)
Brighton & Hove City Council,http://statistics.data.gov.uk/id/local-authority/00ML,Adult Social Care,BVASOC,S Svcs - Older People Svcs,PPL,Customer n Client Receipts,M,Fees n Charges,MB,05/09/2012,PAY00503440,-984.61,Revenue,Enara Community Care
Brighton & Hove City Council,http://statistics.data.gov.uk/id/local-authority/00ML,Adult Social Care,BVASOC,S Svcs - Older People Svcs,PPL,Third Party Payments,F,Other Establishments,FH,05/09/2012,PAY00503440,3723.73,Revenue,Enara Community Care
Brighton & Hove City Council,http://statistics.data.gov.uk/id/local-authority/00ML,Adult Social Care,BVASOC,S Svcs - Learning Disability,LDY,Third Party Payments,F,Other Establishments,FH,05/09/2012,PAY00503441,989.90,Revenue,Grace Eyre Foundation Ltd
Brighton & Hove City Council,http://statistics.data.gov.uk/id/local-authority/00ML,Education Services,BVAEDU,Ed - EY - PVI,ENP,Supplies and Services,E,Grants n Subscriptions,EK,05/09/2012,PAY00503442,35340.00,Revenue,Fiveways Pre-School Playgroup
Brighton & Hove City Council,http://statistics.data.gov.uk/id/local-authority/00ML,Adult Social Care,BVASOC,S Svcs - Older People Svcs,PPL,Customer n Client Receipts,M,Fees n Charges,MB,05/09/2012,PAY00503443,-541.44,Revenue,Guild Care
Brighton & Hove City Council,http://statistics.data.gov.uk/id/local-authority/00ML,Adult Social Care,BVASOC,S Svcs - Older People Svcs,PPL,Third Party Payments,F,Other Establishments,FH,05/09/2012,PAY00503443,1784.78,Revenue,Guild Care
Brighton & Hove City Council,http://statistics.data.gov.uk/id/local-authority/00ML,Education Services,BVAEDU,Ed - EY - PVI,ENP,Supplies and Services,E,Grants n Subscriptions,EK,05/09/2012,PAY00503444,7417.00,Revenue,Hillbury House Nursery
Brighton & Hove City Council,http://statistics.data.gov.uk/id/local-authority/00ML,Education Services,BVAEDU,Ed - EY - PVI,ENP,Supplies and Services,E,Grants n Subscriptions,EK,05/09/2012,PAY00503445,11630.00,Revenue,Hollingbury Park Playgroup
Brighton & Hove City Council,http://statistics.data.gov.uk/id/local-authority/00ML,Education Services,BVAEDU,Ed - EY - PVI,ENP,Supplies and Services,E,Grants n Subscriptions,EK,05/09/2012,PAY00503446,64266.00,Revenue,Hopscotch Nursery
Brighton & Hove City Council,http://statistics.data.gov.uk/id/local-authority/00ML,Education Services,BVAEDU,Ed - EY - PVI,ENP,Supplies and Services,E,Grants n Subscriptions,EK,05/09/2012,PAY00503447,10072.00,Revenue,Amigos Pre-School Playgroup
Brighton & Hove City Council,http://statistics.data.gov.uk/id/local-authority/00ML,Adult Social Care,BVASOC,S Svcs - Older People Svcs,PPL,Customer n Client Receipts,M,Fees n Charges,MB,05/09/2012,PAY00503448,-907.75,Revenue,Payment to Individual
Brighton & Hove City Council,http://statistics.data.gov.uk/id/local-authority/00ML,Adult Social Care,BVASOC,S Svcs - Older People Svcs,PPL,Third Party Payments,F,Other Establishments,FH,05/09/2012,PAY00503448,3154.29,Revenue,Payment to Individual
Brighton & Hove City Council,http://statistics.data.gov.uk/id/local-authority/00ML,Education Services,BVAEDU,Ed - EY - PVI,ENP,Supplies and Services,E,Grants n Subscriptions,EK,05/09/2012,PAY00503450,39961.00,Revenue,Oak Cottage Nursery
Brighton & Hove City Council,http://statistics.data.gov.uk/id/local-authority/00ML,Education Services,BVAEDU,Ed - EY - PVI,ENP,Supplies and Services,E,Grants n Subscriptions,EK,05/09/2012,PAY00503451,17959.00,Revenue,Pepperpot Nursery Ltd
Brighton & Hove City Council,http://statistics.data.gov.uk/id/local-authority/00ML,Education Services,BVAEDU,Ed - EY - PVI,ENP,Supplies and Services,E,Grants n Subscriptions,EK,05/09/2012,PAY00503452,19920.00,Revenue,Playcare Nursery
Brighton & Hove City Council,http://statistics.data.gov.uk/id/local-authority/00ML,Adult Social Care,BVASOC,S Svcs - Older People Svcs,PPL,Third Party Payments,F,Other Establishments,FH,05/09/2012,PAY00503453,743.14,Revenue,Gracewell Healthcare 2 Limited
Brighton & Hove City Council,http://statistics.data.gov.uk/id/local-authority/00ML,Adult Social Care,BVASOC,S Svcs - Physical Disability,PDY,Customer n Client Receipts,M,Fees n Charges,MB,05/09/2012,PAY00503453,-58.31,Revenue,Gracewell Healthcare 2 Limited
Brighton & Hove City Council,http://statistics.data.gov.uk/id/local-authority/00ML,Adult Social Care,BVASOC,S Svcs - Physical Disability,PDY,Third Party Payments,F,Other Establishments,FH,05/09/2012,PAY00503453,399.86,Revenue,Gracewell Healthcare 2 Limited
Brighton & Hove City Council,http://statistics.data.gov.uk/id/local-authority/00ML,Education Services,BVAEDU,Ed - EY - PVI,ENP,Supplies and Services,E,Grants n Subscriptions,EK,05/09/2012,PAY00503454,14965.00,Revenue,St Andrews Community Pre-School
Brighton & Hove City Council,http://statistics.data.gov.uk/id/local-authority/00ML,Education Services,BVAEDU,Ed - EY - PVI,ENP,Supplies and Services,E,Grants n Subscriptions,EK,05/09/2012,PAY00503455,6398.00,Revenue,St Peters Church Playgroup
Brighton & Hove City Council,http://statistics.data.gov.uk/id/local-authority/00ML,Education Services,BVAEDU,Ed - EY - PVI,ENP,Supplies and Services,E,Grants n Subscriptions,EK,05/09/2012,PAY00503456,12461.00,Revenue,See Saw Pre-School
Brighton & Hove City Council,http://statistics.data.gov.uk/id/local-authority/00ML,Adult Social Care,BVASOC,S Svcs - Older People Svcs,PPL,Customer n Client Receipts,M,Fees n Charges,MB,05/09/2012,PAY00503457,-2476.60,Revenue,Springfields Nursing Home
Brighton & Hove City Council,http://statistics.data.gov.uk/id/local-authority/00ML,Adult Social Care,BVASOC,S Svcs - Older People Svcs,PPL,Third Party Payments,F,Other Establishments,FH,05/09/2012,PAY00503457,7387.71,Revenue,Springfields Nursing Home
Brighton & Hove City Council,http://statistics.data.gov.uk/id/local-authority/00ML,Education Services,BVAEDU,Ed - EY - PVI,ENP,Supplies and Services,E,Grants n Subscriptions,EK,05/09/2012,PAY00503458,12782.00,Revenue,Strawberry Hill Nursery
Brighton & Hove City Council,http://statistics.data.gov.uk/id/local-authority/00ML,Education Services,BVAEDU,Ed - EY - PVI,ENP,Supplies and Services,E,Grants n Subscriptions,EK,05/09/2012,PAY00503459,6640.00,Revenue,Teddy Bears Day Nursery
Brighton & Hove City Council,http://statistics.data.gov.uk/id/local-authority/00ML,Education Services,BVAEDU,Ed - EY - PVI,ENP,Supplies and Services,E,Grants n Subscriptions,EK,05/09/2012,PAY00503460,11227.00,Revenue,Village Under 5`s Group
Brighton & Hove City Council,http://statistics.data.gov.uk/id/local-authority/00ML,Education Services,BVAEDU,Ed - EY - PVI,ENP,Supplies and Services,E,Grants n Subscriptions,EK,05/09/2012,PAY00503461,7972.00,Revenue,Meadowview Pre-School
Brighton & Hove City Council,http://statistics.data.gov.uk/id/local-authority/00ML,Adult Social Care,BVASOC,S Svcs - Older People Svcs,PPL,Third Party Payments,F,Other Establishments,FH,05/09/2012,PAY00503462,2280.00,Revenue,"East Sussex, Brighton & Hove Crossroads"
Brighton & Hove City Council,http://statistics.data.gov.uk/id/local-authority/00ML,Education Services,BVAEDU,Ed - EY - PVI,ENP,Supplies and Services,E,Grants n Subscriptions,EK,05/09/2012,PAY00503463,5679.00,Revenue,Patcham Pre-School
Brighton & Hove City Council,http://statistics.data.gov.uk/id/local-authority/00ML,Education Services,BVAEDU,Ed - EY - PVI,ENP,Supplies and Services,E,Grants n Subscriptions,EK,05/09/2012,PAY00503464,9973.00,Revenue,Southern Cross Pre-School
Brighton & Hove City Council,http://statistics.data.gov.uk/id/local-authority/00ML,Education Services,BVAEDU,Ed - EY - PVI,ENP,Supplies and Services,E,Grants n Subscriptions,EK,05/09/2012,PAY00503465,17273.00,Revenue,Puffin Pre-School Nursery
Brighton & Hove City Council,http://statistics.data.gov.uk/id/local-authority/00ML,Education Services,BVAEDU,Ed - EY - PVI,ENP,Supplies and Services,E,Grants n Subscriptions,EK,05/09/2012,PAY00503466,11871.00,Revenue,Orchard Day Nursery
Brighton & Hove City Council,http://statistics.data.gov.uk/id/local-authority/00ML,Adult Social Care,BVASOC,S Svcs - Learning Disability,LDY,Third Party Payments,F,Other Establishments,FH,05/09/2012,PAY00503467,46630.20,Revenue,Cambian Autism Services Ltd
Brighton & Hove City Council,http://statistics.data.gov.uk/id/local-authority/00ML,Education Services,BVAEDU,Ed - EY - PVI,ENP,Supplies and Services,E,Grants n Subscriptions,EK,05/09/2012,PAY00503468,15950.00,Revenue,Early Years Childcare
Brighton & Hove City Council,http://statistics.data.gov.uk/id/local-authority/00ML,Education Services,BVAEDU,Ed - EY - PVI,ENP,Supplies and Services,E,Grants n Subscriptions,EK,05/09/2012,PAY00503469,19903.00,Revenue,St Anthonys Pre-School
Brighton & Hove City Council,http://statistics.data.gov.uk/id/local-authority/00ML,Education Services,BVAEDU,Ed - EY - PVI,ENP,Supplies and Services,E,Grants n Subscriptions,EK,05/09/2012,PAY00503470,25455.00,Revenue,Pumpkin Patch Nursery
Brighton & Hove City Council,http://statistics.data.gov.uk/id/local-authority/00ML,Education Services,BVAEDU,Ed - EY - PVI,ENP,Supplies and Services,E,Grants n Subscriptions,EK,05/09/2012,PAY00503471,10093.00,Revenue,Joyland
Brighton & Hove City Council,http://statistics.data.gov.uk/id/local-authority/00ML,Education Services,BVAEDU,Ed - EY - PVI,ENP,Supplies and Services,E,Grants n Subscriptions,EK,05/09/2012,PAY00503472,10730.00,Revenue,The Dharma Primary School
Brighton & Hove City Council,http://statistics.data.gov.uk/id/local-authority/00ML,Education Services,BVAEDU,Ed - EY - PVI,ENP,Supplies and Services,E,Grants n Subscriptions,EK,05/09/2012,PAY00503473,36520.00,Revenue,Blueberry Nursery & Early Learning Organisation Ld
Brighton & Hove City Council,http://statistics.data.gov.uk/id/local-authority/00ML,Education Services,BVAEDU,Ed - EY - PVI,ENP,Supplies and Services,E,Grants n Subscriptions,EK,05/09/2012,PAY00503474,7985.00,Revenue,Whiteways Under Fives
Brighton & Hove City Council,http://statistics.data.gov.uk/id/local-authority/00ML,Education Services,BVAEDU,Ed - EY - PVI,ENP,Supplies and Services,E,Grants n Subscriptions,EK,05/09/2012,PAY00503476,7463.00,Revenue,Happitots
Brighton & Hove City Council,http://statistics.data.gov.uk/id/local-authority/00ML,Education Services,BVAEDU,Ed - EY - PVI,ENP,Supplies and Services,E,Grants n Subscriptions,EK,05/09/2012,PAY00503477,15210.00,Revenue,Stepping Stones Pre School (Portslade)
Brighton & Hove City Council,http://statistics.data.gov.uk/id/local-authority/00ML,Education Services,BVAEDU,Ed - EY - PVI,ENP,Supplies and Services,E,Grants n Subscriptions,EK,05/09/2012,PAY00503478,17395.00,Revenue,Kipling Lions Pre-School
Brighton & Hove City Council,http://statistics.data.gov.uk/id/local-authority/00ML,Education Services,BVAEDU,Ed - EY - PVI,ENP,Supplies and Services,E,Grants n Subscriptions,EK,05/09/2012,PAY00503480,21744.00,Revenue,Early Years Childcare
Brighton & Hove City Council,http://statistics.data.gov.uk/id/local-authority/00ML,Education Services,BVAEDU,Ed - EY - PVI,ENP,Supplies and Services,E,Grants n Subscriptions,EK,05/09/2012,PAY00503481,15298.00,Revenue,Happy Days Nursery
Brighton & Hove City Council,http://statistics.data.gov.uk/id/local-authority/00ML,Adult Social Care,BVASOC,S Svcs - Older People Svcs,PPL,Customer n Client Receipts,M,Fees n Charges,MB,05/09/2012,PAY00503482,-8764.55,Revenue,Dane House Nursing Home
Brighton & Hove City Council,http://statistics.data.gov.uk/id/local-authority/00ML,Adult Social Care,BVASOC,S Svcs - Older People Svcs,PPL,Third Party Payments,F,Other Establishments,FH,05/09/2012,PAY00503482,26022.20,Revenue,Dane House Nursing Home
Brighton & Hove City Council,http://statistics.data.gov.uk/id/local-authority/00ML,Education Services,BVAEDU,Ed - EY - PVI,ENP,Supplies and Services,E,Grants n Subscriptions,EK,05/09/2012,PAY00503483,43926.00,Revenue,Brighton College Nursery & Pre-Prep School
Brighton & Hove City Council,http://statistics.data.gov.uk/id/local-authority/00ML,Cultural and Related Services,BVACUL,Open Spaces,PEN,Third Party Payments,F,Private Contractors,FJ,05/09/2012,PAY00503486,4319.13,Revenue,SMP Playgrounds Ltd
Brighton & Hove City Council,http://statistics.data.gov.uk/id/local-authority/00ML,Children�s Social Care,BVACSC,Child Srvcs - Com & Scl Work,FCW,Transport Related,D,Direct Transport Costs,DA,05/09/2012,PAY00503487,250.00,Revenue,Colas Limited
Brighton & Hove City Council,http://statistics.data.gov.uk/id/local-authority/00ML,Central Services To The Public,BVACEN,Support Services (SSC),PPT,Transport Related,D,Direct Transport Costs,DA,05/09/2012,PAY00503487,250.00,Revenue,Colas Limited
Brighton & Hove City Council,http://statistics.data.gov.uk/id/local-authority/00ML,Highways and Transportation,BVAHRT,Highways and Roads - Mntnce,HRM,Premises Related,C,Repair Maint n Alterations,CA,05/09/2012,PAY00503488,13386.08,Revenue,Edburton Contractors Ltd
Brighton & Hove City Council,http://statistics.data.gov.uk/id/local-authority/00ML,Environment and Regulatory Ser,BVAERS,Community Safety,CMY,Supplies and Services,E,Equip't Furniture n Materials,EA,05/09/2012,PAY00503489,366.47,Revenue,P H Beck Ltd
Brighton & Hove City Council,http://statistics.data.gov.uk/id/local-authority/00ML,Central Services To The Public,BVACEN,Holding Accounts,PPH,Premises Related,C,Repair Maint n Alterations,CA,05/09/2012,PAY00503489,55.60,Revenue,P H Beck Ltd
Brighton & Hove City Council,http://statistics.data.gov.uk/id/local-authority/00ML,Highways and Transportation,BVAHRT,Parking Services,PRK,Supplies and Services,E,Equip't Furniture n Materials,EA,05/09/2012,PAY00503489,123.39,Revenue,P H Beck Ltd
Brighton & Hove City Council,http://statistics.data.gov.uk/id/local-authority/00ML,Central Services To The Public,BVACEN,Support Services (SSC),PPT,Premises Related,C,Repair Maint n Alterations,CA,05/09/2012,PAY00503489,715.90,Revenue,P H Beck Ltd
Brighton & Hove City Council,http://statistics.data.gov.uk/id/local-authority/00ML,Environment and Regulatory Ser,BVAERS,Flood Drainage and Coast Prtn,FDC,Premises Related,C,Repair Maint n Alterations,CA,05/09/2012,PAY00503491,3039.23,Revenue,C J Thorne & Co Ltd
Brighton & Hove City Council,http://statistics.data.gov.uk/id/local-authority/00ML,Adult Social Care,BVASOC,S Svcs - Learning Disability,LDY,Customer n Client Receipts,M,Fees n Charges,MB,05/09/2012,PAY00503492,-24.00,Revenue,Mencap H & S Region 4
Brighton & Hove City Council,http://statistics.data.gov.uk/id/local-authority/00ML,Adult Social Care,BVASOC,S Svcs - Learning Disability,LDY,Third Party Payments,F,Other Establishments,FH,05/09/2012,PAY00503492,3523.52,Revenue,Mencap H & S Region 4
Brighton & Hove City Council,http://statistics.data.gov.uk/id/local-authority/00ML,Education Services,BVAEDU,Ed - Ed Other - Other,ENF,Premises Related,C,Repair Maint n Alterations,CA,05/09/2012,PAY00503493,322.48,Revenue,Catercraft Supplies Ltd
Brighton & Hove City Council,http://statistics.data.gov.uk/id/local-authority/00ML,Central Services To The Public,BVACEN,Support Services (SSC),PPT,Supplies and Services,E,Equip't Furniture n Materials,EA,05/09/2012,PAY00503493,254.71,Revenue,Catercraft Supplies Ltd
Brighton & Hove City Council,http://statistics.data.gov.uk/id/local-authority/00ML,Housing Services Revnue Acc,BVAHOU,Hsing Management - HRA,HGM,Supplies and Services,E,Communications n Computing,EH,05/09/2012,PAY00503494,399.24,Revenue,Specialist Computer Centres Plc
Brighton & Hove City Council,http://statistics.data.gov.uk/id/local-authority/00ML,Cultural and Related Services,BVACUL,Library Service,LBR,Supplies and Services,E,Equip't Furniture n Materials,EA,05/09/2012,PAY00503494,399.57,Revenue,Specialist Computer Centres Plc
Brighton & Hove City Council,http://statistics.data.gov.uk/id/local-authority/00ML,Central Services To The Public,BVACEN,Support Services (SSC),PPT,Supplies and Services,E,Communications n Computing,EH,05/09/2012,PAY00503494,24.04,Revenue,Specialist Computer Centres Plc
Brighton & Hove City Council,http://statistics.data.gov.uk/id/local-authority/00ML,Housing Services Revnue Acc,BVAHOU,Hsing Management - HRA,HGM,Supplies and Services,E,Communications n Computing,EH,05/09/2012,PAY00503495,8942.05,Revenue,British Telecommunications Plc
Brighton & Hove City Council,http://statistics.data.gov.uk/id/local-authority/00ML,Children�s Social Care,BVACSC,Child Srvcs - Leaving Care,FAL,Transfer Payments,G,Other Transfer Payments,GD,05/09/2012,PAY00503496,1276.95,Revenue,Brighton & Hove Bus & Coach Co Ltd
Brighton & Hove City Council,http://statistics.data.gov.uk/id/local-authority/00ML,Environment and Regulatory Ser,BVAERS,Environmental Health,EVH,Transport Related,D,Public Transport,DD,05/09/2012,PAY00503496,223.80,Revenue,Brighton & Hove Bus & Coach Co Ltd
Brighton & Hove City Council,http://statistics.data.gov.uk/id/local-authority/00ML,Highways and Transportation,BVAHRT,Public transport,PTR,Third Party Payments,F,Private Contractors,FJ,05/09/2012,PAY00503496,99609.42,Revenue,Brighton & Hove Bus & Coach Co Ltd
Brighton & Hove City Council,http://statistics.data.gov.uk/id/local-authority/00ML,Highways and Transportation,BVAHRT,Transport plan policy strategy,TPP,Third Party Payments,F,Private Contractors,FJ,05/09/2012,PAY00503496,5114.75,Revenue,Brighton & Hove Bus & Coach Co Ltd
Brighton & Hove City Council,http://statistics.data.gov.uk/id/local-authority/00ML,Education Services,BVAEDU,Ed - EY - PVI,ENP,Supplies and Services,E,Grants n Subscriptions,EK,05/09/2012,PAY00503497,20736.00,Revenue,University of Brighton
Brighton & Hove City Council,http://statistics.data.gov.uk/id/local-authority/00ML,Environment and Regulatory Ser,BVAERS,Agricultural and Fisheries,AGF,Premises Related,C,Water Services,CE,05/09/2012,PAY00503498,21.22,Revenue,Southern Water Services Ltd
Brighton & Hove City Council,http://statistics.data.gov.uk/id/local-authority/00ML,Children�s Social Care,BVACSC,Child Srvcs - Family Centres,FFF,Premises Related,C,Water Services,CE,05/09/2012,PAY00503498,306.84,Revenue,Southern Water Services Ltd
Brighton & Hove City Council,http://statistics.data.gov.uk/id/local-authority/00ML,Children�s Social Care,BVACSC,Child Srvcs - Residential Svcs,FLR,Premises Related,C,Water Services,CE,05/09/2012,PAY00503498,885.54,Revenue,Southern Water Services Ltd
Brighton & Hove City Council,http://statistics.data.gov.uk/id/local-authority/00ML,Education Services,BVAEDU,Ed - EY - Central,EAE,Premises Related,C,Water Services,CE,05/09/2012,PAY00503498,430.53,Revenue,Southern Water Services Ltd
Brighton & Hove City Council,http://statistics.data.gov.uk/id/local-authority/00ML,Education Services,BVAEDU,Ed - Secondary Ed,EJE,Premises Related,C,Water Services,CE,05/09/2012,PAY00503498,44.56,Revenue,Southern Water Services Ltd
Brighton & Hove City Council,http://statistics.data.gov.uk/id/local-authority/00ML,Education Services,BVAEDU,Ed - Srvcs YP - Youth Srvcs,ENY,Premises Related,C,Water Services,CE,05/09/2012,PAY00503498,559.25,Revenue,Southern Water Services Ltd
Brighton & Hove City Council,http://statistics.data.gov.uk/id/local-authority/00ML,Environment and Regulatory Ser,BVAERS,Environmental Health,EVH,Premises Related,C,Water Services,CE,05/09/2012,PAY00503498,3050.49,Revenue,Southern Water Services Ltd
Brighton & Hove City Council,http://statistics.data.gov.uk/id/local-authority/00ML,Cultural and Related Services,BVACUL,Highways and Roads - Mntnce,HRM,Premises Related,C,Water Services,CE,05/09/2012,PAY00503498,288.81,Revenue,Southern Water Services Ltd
Brighton & Hove City Council,http://statistics.data.gov.uk/id/local-authority/00ML,Housing Services Revnue Acc,BVAHOU,Hsing Strategy - HRA,HGT,Premises Related,C,Water Services,CE,05/09/2012,PAY00503498,209.03,Revenue,Southern Water Services Ltd
Brighton & Hove City Council,http://statistics.data.gov.uk/id/local-authority/00ML,Cultural and Related Services,BVACUL,Library Service,LBR,Premises Related,C,Water Services,CE,05/09/2012,PAY00503498,84.91,Revenue,Southern Water Services Ltd
Brighton & Hove City Council,http://statistics.data.gov.uk/id/local-authority/00ML,Cultural and Related Services,BVACUL,Management Services (DEC),MGT,Premises Related,C,Water Services,CE,05/09/2012,PAY00503498,2280.24,Revenue,Southern Water Services Ltd
Brighton & Hove City Council,http://statistics.data.gov.uk/id/local-authority/00ML,Adult Social Care,BVASOC,S Svcs - Learning Disability,LDY,Premises Related,C,Water Services,CE,05/09/2012,PAY00503498,1720.88,Revenue,Southern Water Services Ltd
Brighton & Hove City Council,http://statistics.data.gov.uk/id/local-authority/00ML,Planning Services,BVAPLA,Economic Development,ECD,Supplies and Services,E,Grants n Subscriptions,EK,05/09/2012,PAY00503500,500.00,Revenue,Payment to Individual
Brighton & Hove City Council,http://statistics.data.gov.uk/id/local-authority/00ML,Environment and Regulatory Ser,BVAERS,Community Safety,CMY,Supplies and Services,E,Catering,EB,05/09/2012,PAY00503503,2000.00,Revenue,Clarendon Trust Ltd
Brighton & Hove City Council,http://statistics.data.gov.uk/id/local-authority/00ML,Environment and Regulatory Ser,BVAERS,Community Safety,CMY,Supplies and Services,E,Services,EF,05/09/2012,PAY00503503,560.00,Revenue,Clarendon Trust Ltd
Brighton & Hove City Council,http://statistics.data.gov.uk/id/local-authority/00ML,Cultural and Related Services,BVACUL,Culture & Heritage,CHG,Supplies and Services,E,Equip't Furniture n Materials,EA,05/09/2012,PAY00503504,422.50,Revenue,Hire-all Robinsons Bridecare Caterers
Brighton & Hove City Council,http://statistics.data.gov.uk/id/local-authority/00ML,Education Services,BVAEDU,Ed - EY - PVI,ENP,Supplies and Services,E,Grants n Subscriptions,EK,05/09/2012,PAY00503505,18280.00,Revenue,St Joseph`s Pre-School Playgroup
Brighton & Hove City Council,http://statistics.data.gov.uk/id/local-authority/00ML,Education Services,BVAEDU,Ed - EY - PVI,ENP,Supplies and Services,E,Grants n Subscriptions,EK,05/09/2012,PAY00503506,6466.00,Revenue,Little Angels (Sussex) Ltd
Brighton & Hove City Council,http://statistics.data.gov.uk/id/local-authority/00ML,Education Services,BVAEDU,Ed - EY - PVI,ENP,Supplies and Services,E,Grants n Subscriptions,EK,05/09/2012,PAY00503508,3777.00,Revenue,Brighthelm Pre-School 
Brighton & Hove City Council,http://statistics.data.gov.uk/id/local-authority/00ML,Central Services To The Public,BVACEN,Support Services (SSC),PPT,Supplies and Services,E,Equip't Furniture n Materials,EA,05/09/2012,PAY00503510,447.00,Revenue,Horizon Signs Ltd
Brighton & Hove City Council,http://statistics.data.gov.uk/id/local-authority/00ML,Planning Services,BVAPLA,Development Control,DEV,Supplies and Services,E,Communications n Computing,EH,05/09/2012,PAY00503511,1761.72,Revenue,Northgate Information Solutions UK Ltd
Brighton & Hove City Council,http://statistics.data.gov.uk/id/local-authority/00ML,Housing Services General Fund,BVAHOG,Homelessness,HML,Supplies and Services,E,Services,EF,05/09/2012,PAY00503512,1345.83,Revenue,Jurys Inn
Brighton & Hove City Council,http://statistics.data.gov.uk/id/local-authority/00ML,Non SERCOP,BVANON,Collection Fund,7WW,Unalalysed-Income,9998,Level not required,NR5037,05/09/2012,PAY00503514,17912.03,Collection Fund,Downs Crematorium Ltd
Brighton & Hove City Council,http://statistics.data.gov.uk/id/local-authority/00ML,Education Services,BVAEDU,Ed - EY - PVI,ENP,Supplies and Services,E,Grants n Subscriptions,EK,05/09/2012,PAY00503519,1887.00,Revenue,Little Oaks Nursery - Stanford
Brighton & Hove City Council,http://statistics.data.gov.uk/id/local-authority/00ML,Children�s Social Care,BVACSC,Management Services (DEC),MGT,Supplies and Services,E,Services,EF,05/09/2012,PAY00503520,585.00,Revenue,Payment to Individual
Brighton & Hove City Council,http://statistics.data.gov.uk/id/local-authority/00ML,Central Services To The Public,BVACEN,Support Services (SSC),PPT,Supplies and Services,E,Services,EF,05/09/2012,PAY00503520,575.00,Revenue,Payment to Individual
Brighton & Hove City Council,http://statistics.data.gov.uk/id/local-authority/00ML,Central Services To The Public,BVACEN,Support Services (SSC),PPT,Indirect Employees,B,Training,BM,05/09/2012,PAY00503522,988.00,Revenue,Learning Nexus Ltd
Brighton & Hove City Council,http://statistics.data.gov.uk/id/local-authority/00ML,Education Services,BVAEDU,Ed - EY - PVI,ENP,Supplies and Services,E,Grants n Subscriptions,EK,05/09/2012,PAY00503525,1643.00,Revenue,My First Friends Nursery
Brighton & Hove City Council,http://statistics.data.gov.uk/id/local-authority/00ML,Planning Services,BVAPLA,Economic Development,ECD,Supplies and Services,E,Grants n Subscriptions,EK,05/09/2012,PAY00503526,500.00,Revenue,Brighton Gay Men`s Chorus
Brighton & Hove City Council,http://statistics.data.gov.uk/id/local-authority/00ML,Children�s Social Care,BVACSC,Child Srvcs - Yth Offender Tm,FYY,Supplies and Services,E,Print Stat & Gen Office Exps,ED,05/09/2012,PAY00503527,7.29,Revenue,The Imprest Holder 
Brighton & Hove City Council,http://statistics.data.gov.uk/id/local-authority/00ML,Children�s Social Care,BVACSC,Child Srvcs - Yth Offender Tm,FYY,Supplies and Services,E,Communications n Computing,EH,05/09/2012,PAY00503527,27.80,Revenue,The Imprest Holder 
Brighton & Hove City Council,http://statistics.data.gov.uk/id/local-authority/00ML,Children�s Social Care,BVACSC,Child Srvcs - Yth Offender Tm,FYY,Supplies and Services,E,Expenses,EJ,05/09/2012,PAY00503527,12.79,Revenue,The Imprest Holder 
Brighton & Hove City Council,http://statistics.data.gov.uk/id/local-authority/00ML,Children�s Social Care,BVACSC,Child Srvcs - Yth Offender Tm,FYY,Supplies and Services,E,Miscellaneous Expenses,EM,05/09/2012,PAY00503527,301.81,Revenue,The Imprest Holder 
Brighton & Hove City Council,http://statistics.data.gov.uk/id/local-authority/00ML,Children�s Social Care,BVACSC,Child Srvcs - Yth Offender Tm,FYY,Transport Related,D,Direct Transport Costs,DA,05/09/2012,PAY00503527,1.00,Revenue,The Imprest Holder 
Brighton & Hove City Council,http://statistics.data.gov.uk/id/local-authority/00ML,Children�s Social Care,BVACSC,Child Srvcs - Yth Offender Tm,FYY,Transport Related,D,Public Transport,DD,05/09/2012,PAY00503527,158.60,Revenue,The Imprest Holder 
Brighton & Hove City Council,http://statistics.data.gov.uk/id/local-authority/00ML,Children�s Social Care,BVACSC,Child Srvcs - Yth Offender Tm,FYY,Transport Related,D,Other Transport Costs,DG,05/09/2012,PAY00503527,3.00,Revenue,The Imprest Holder 
Brighton & Hove City Council,http://statistics.data.gov.uk/id/local-authority/00ML,Children�s Social Care,BVACSC,Management Services (DEC),MGT,Supplies and Services,E,Services,EF,05/09/2012,PAY00503529,750.00,Revenue,Payment to Individual
Brighton & Hove City Council,http://statistics.data.gov.uk/id/local-authority/00ML,Education Services,BVAEDU,Ed - EY - PVI,ENP,Supplies and Services,E,Grants n Subscriptions,EK,05/09/2012,PAY00503531,5812.00,Revenue,Ovingdean Nursery School
Brighton & Hove City Council,http://statistics.data.gov.uk/id/local-authority/00ML,Housing Services Revnue Acc,BVAHOU,Hsing Management - HRA,HGM,Supplies and Services,E,Miscellaneous Expenses,EM,05/09/2012,PAY00503533,5091.01,Revenue,MPLC (International) Ltd
Brighton & Hove City Council,http://statistics.data.gov.uk/id/local-authority/00ML,Cultural and Related Services,BVACUL,Culture & Heritage,CHG,Supplies and Services,E,Miscellaneous Expenses,EM,05/09/2012,PAY00503534,12000.00,Revenue,Jon Mills Ltd
Brighton & Hove City Council,http://statistics.data.gov.uk/id/local-authority/00ML,Housing Services General Fund,BVAHOG,Homelessness,HML,Direct Employees,A,Salaries,AA,05/09/2012,PAY00503540,1363.64,Revenue,Morgan Law Partners LLP
Brighton & Hove City Council,http://statistics.data.gov.uk/id/local-authority/00ML,Adult Social Care,BVASOC,S Svcs - Mental Health,MHT,Customer n Client Receipts,M,Fees n Charges,MB,05/09/2012,PAY00503541,-476.80,Revenue,Saffronland Homes Group
Brighton & Hove City Council,http://statistics.data.gov.uk/id/local-authority/00ML,Adult Social Care,BVASOC,S Svcs - Mental Health,MHT,Third Party Payments,F,Other Establishments,FH,05/09/2012,PAY00503541,4130.72,Revenue,Saffronland Homes Group
Brighton & Hove City Council,http://statistics.data.gov.uk/id/local-authority/00ML,Education Services,BVAEDU,Ed - EY - PVI,ENP,Supplies and Services,E,Grants n Subscriptions,EK,05/09/2012,PAY00503544,2786.00,Revenue,St Lukes Pre-School
Brighton & Hove City Council,http://statistics.data.gov.uk/id/local-authority/00ML,Non SERCOP,BVANON,Non-Council,NNC,Supplies and Services,E,Print Stat & Gen Office Exps,ED,05/09/2012,PAY00503545,1997.87,Revenue,Elephant Graphics Ltd
Brighton & Hove City Council,http://statistics.data.gov.uk/id/local-authority/00ML,Housing Services Revnue Acc,BVAHOU,Hsing Management - HRA,HGM,Supplies and Services,E,Services,EF,05/09/2012,PAY00503553,874.17,Revenue,Haven Holidays 
Brighton & Hove City Council,http://statistics.data.gov.uk/id/local-authority/00ML,Cultural and Related Services,BVACUL,Culture & Heritage,CHG,Premises Related,C,Fixtures and Fittings,CF,05/09/2012,PAY00503560,66.66,Revenue,The Imprest Holder - Royal Pavilion
Brighton & Hove City Council,http://statistics.data.gov.uk/id/local-authority/00ML,Cultural and Related Services,BVACUL,Culture & Heritage,CHG,Supplies and Services,E,Equip't Furniture n Materials,EA,05/09/2012,PAY00503560,40.52,Revenue,The Imprest Holder - Royal Pavilion
Brighton & Hove City Council,http://statistics.data.gov.uk/id/local-authority/00ML,Cultural and Related Services,BVACUL,Culture & Heritage,CHG,Supplies and Services,E,Print Stat & Gen Office Exps,ED,05/09/2012,PAY00503560,4.13,Revenue,The Imprest Holder - Royal Pavilion
Brighton & Hove City Council,http://statistics.data.gov.uk/id/local-authority/00ML,Cultural and Related Services,BVACUL,Culture & Heritage,CHG,Supplies and Services,E,Expenses,EJ,05/09/2012,PAY00503560,12.96,Revenue,The Imprest Holder - Royal Pavilion
Brighton & Hove City Council,http://statistics.data.gov.uk/id/local-authority/00ML,Cultural and Related Services,BVACUL,Culture & Heritage,CHG,Supplies and Services,E,Miscellaneous Expenses,EM,05/09/2012,PAY00503560,20.33,Revenue,The Imprest Holder - Royal Pavilion
Brighton & Hove City Council,http://statistics.data.gov.uk/id/local-authority/00ML,Cultural and Related Services,BVACUL,Culture & Heritage,CHG,Transport Related,D,Public Transport,DD,05/09/2012,PAY00503560,20.17,Revenue,The Imprest Holder - Royal Pavilion
Brighton & Hove City Council,http://statistics.data.gov.uk/id/local-authority/00ML,Cultural and Related Services,BVACUL,Culture & Heritage,CHG,Transport Related,D,Other Transport Costs,DG,05/09/2012,PAY00503560,16.00,Revenue,The Imprest Holder - Royal Pavilion
Brighton & Hove City Council,http://statistics.data.gov.uk/id/local-authority/00ML,Cultural and Related Services,BVACUL,Management Services (DEC),MGT,Supplies and Services,E,Print Stat & Gen Office Exps,ED,05/09/2012,PAY00503560,59.53,Revenue,The Imprest Holder - Royal Pavilion
Brighton & Hove City Council,http://statistics.data.gov.uk/id/local-authority/00ML,Cultural and Related Services,BVACUL,Management Services (DEC),MGT,Transport Related,D,Public Transport,DD,05/09/2012,PAY00503560,162.03,Revenue,The Imprest Holder - Royal Pavilion
Brighton & Hove City Council,http://statistics.data.gov.uk/id/local-authority/00ML,Non SERCOP,BVANON,Non-Council,NNC,Supplies and Services,E,Equip't Furniture n Materials,EA,05/09/2012,PAY00503560,38.69,Revenue,The Imprest Holder - Royal Pavilion
Brighton & Hove City Council,http://statistics.data.gov.uk/id/local-authority/00ML,Non SERCOP,BVANON,Non-Council,NNC,Supplies and Services,E,Catering,EB,05/09/2012,PAY00503560,33.58,Revenue,The Imprest Holder - Royal Pavilion
Brighton & Hove City Council,http://statistics.data.gov.uk/id/local-authority/00ML,Non SERCOP,BVANON,Non-Council,NNC,Supplies and Services,E,Communications n Computing,EH,05/09/2012,PAY00503560,9.50,Revenue,The Imprest Holder - Royal Pavilion
Brighton & Hove City Council,http://statistics.data.gov.uk/id/local-authority/00ML,Non SERCOP,BVANON,Non-Council,NNC,Supplies and Services,E,Miscellaneous Expenses,EM,05/09/2012,PAY00503560,5.39,Revenue,The Imprest Holder - Royal Pavilion
Brighton & Hove City Council,http://statistics.data.gov.uk/id/local-authority/00ML,Non SERCOP,BVANON,Non-Council,NNC,Transport Related,D,Public Transport,DD,05/09/2012,PAY00503560,69.80,Revenue,The Imprest Holder - Royal Pavilion
Brighton & Hove City Council,http://statistics.data.gov.uk/id/local-authority/00ML,Non SERCOP,BVANON,Non-Council,NNC,Transport Related,D,Other Transport Costs,DG,05/09/2012,PAY00503560,78.20,Revenue,The Imprest Holder - Royal Pavilion
Brighton & Hove City Council,http://statistics.data.gov.uk/id/local-authority/00ML,Cultural and Related Services,BVACUL,Management Services (DEC),MGT,Supplies and Services,E,Equip't Furniture n Materials,EA,05/09/2012,PAY00503566,664.05,Revenue,Fargro Ltd
Brighton & Hove City Council,http://statistics.data.gov.uk/id/local-authority/00ML,Adult Social Care,BVASOC,S Svcs - Learning Disability,LDY,Customer n Client Receipts,M,Fees n Charges,MB,05/09/2012,PAY00503567,-311.40,Revenue,Bradfield House
Brighton & Hove City Council,http://statistics.data.gov.uk/id/local-authority/00ML,Adult Social Care,BVASOC,S Svcs - Learning Disability,LDY,Third Party Payments,F,Other Establishments,FH,05/09/2012,PAY00503567,12960.00,Revenue,Bradfield House
Brighton & Hove City Council,http://statistics.data.gov.uk/id/local-authority/00ML,Planning Services,BVAPLA,Development Control,DEV,Supplies and Services,E,Services,EF,05/09/2012,PAY00503570,1518.20,Revenue,Sainsbury`s
Brighton & Hove City Council,http://statistics.data.gov.uk/id/local-authority/00ML,Education Services,BVAEDU,Ed - EY - PVI,ENP,Supplies and Services,E,Grants n Subscriptions,EK,05/09/2012,PAY00503574,6016.00,Revenue,Coral Pre School
Brighton & Hove City Council,http://statistics.data.gov.uk/id/local-authority/00ML,Central Services To The Public,BVACEN,Support Services (SSC),PPT,Supplies and Services,E,Equip't Furniture n Materials,EA,05/09/2012,PAY00503577,600.00,Revenue,Signmaster Systems Ltd
Brighton & Hove City Council,http://statistics.data.gov.uk/id/local-authority/00ML,Non SERCOP,BVANON,Collection Fund,7WW,Unalalysed-Income,9998,Level not required,NR5037,05/09/2012,PAY00503579,1746.89,Collection Fund,H & T Properties Ltd
Brighton & Hove City Council,http://statistics.data.gov.uk/id/local-authority/00ML,Cultural and Related Services,BVACUL,Culture & Heritage,CHG,Supplies and Services,E,Print Stat & Gen Office Exps,ED,05/09/2012,PAY00503580,225.00,Revenue,Payment to Individual
Brighton & Hove City Council,http://statistics.data.gov.uk/id/local-authority/00ML,Cultural and Related Services,BVACUL,Culture & Heritage,CHG,Supplies and Services,E,Miscellaneous Expenses,EM,05/09/2012,PAY00503580,450.00,Revenue,Payment to Individual
Brighton & Hove City Council,http://statistics.data.gov.uk/id/local-authority/00ML,Central Services To The Public,BVACEN,Support Services (SSC),PPT,Premises Related,C,Repair Maint n Alterations,CA,05/09/2012,PAY00503583,445.00,Revenue,Displaysense Ltd
Brighton & Hove City Council,http://statistics.data.gov.uk/id/local-authority/00ML,Central Services To The Public,BVACEN,Support Services (SSC),PPT,Supplies and Services,E,Services,EF,05/09/2012,PAY00503586,1650.00,Revenue,Payment to Individual
Brighton & Hove City Council,http://statistics.data.gov.uk/id/local-authority/00ML,Non SERCOP,BVANON,Cap - Education Services,4ED,New Construction n Conversion,PB,Level not required,NR5026,05/09/2012,PAY00503587,2110.00,Capital,Lucion Environmental Ltd
Brighton & Hove City Council,http://statistics.data.gov.uk/id/local-authority/00ML,Non SERCOP,BVANON,Cap - Housing Services - GF,4HG,Capital Grants,PF,Level not required,NR5012,05/09/2012,PAY00503588,15782.78,Capital,GMS Adaptations
Brighton & Hove City Council,http://statistics.data.gov.uk/id/local-authority/00ML,Central Services To The Public,BVACEN,Holding Accounts,PPH,Premises Related,C,Repair Maint n Alterations,CA,05/09/2012,PAY00503589,650.00,Revenue,Windowflowers Ltd
Brighton & Hove City Council,http://statistics.data.gov.uk/id/local-authority/00ML,Children�s Social Care,BVACSC,Child Srvcs - Leaving Care,FAL,Transfer Payments,G,Other Transfer Payments,GD,05/09/2012,PAY00503590,520.00,Revenue,The Downs Hotel
Brighton & Hove City Council,http://statistics.data.gov.uk/id/local-authority/00ML,Children�s Social Care,BVACSC,Child Srvcs - Other Fam Supp,FFX,Transfer Payments,G,Other Transfer Payments,GD,05/09/2012,PAY00503590,902.65,Revenue,The Downs Hotel
Brighton & Hove City Council,http://statistics.data.gov.uk/id/local-authority/00ML,Children�s Social Care,BVACSC,Management Services (DEC),MGT,Supplies and Services,E,Services,EF,05/09/2012,PAY00503595,750.00,Revenue,Payment to Individual
Brighton & Hove City Council,http://statistics.data.gov.uk/id/local-authority/00ML,Adult Social Care,BVASOC,S Svcs - Physical Disability,PDY,Supplies and Services,E,Equip't Furniture n Materials,EA,05/09/2012,PAY00503596,2313.90,Revenue,Wealden Rehab
Brighton & Hove City Council,http://statistics.data.gov.uk/id/local-authority/00ML,Central Services To The Public,BVACEN,Support Services (SSC),PPT,Supplies and Services,E,Services,EF,05/09/2012,PAY00503598,2078.00,Revenue,Treetop Printing & Design LLP
Brighton & Hove City Council,http://statistics.data.gov.uk/id/local-authority/00ML,Housing Services General Fund,BVAHOG,Homelessness,HML,Premises Related,C,Rents Payable,CC,05/09/2012,PAY00503603,930.00,Revenue,Payment to Individual
Brighton & Hove City Council,http://statistics.data.gov.uk/id/local-authority/00ML,Education Services,BVAEDU,Ed - EY - PVI,ENP,Supplies and Services,E,Grants n Subscriptions,EK,05/09/2012,PAY00503605,25146.00,Revenue,Brighton Steiner School Ltd
Brighton & Hove City Council,http://statistics.data.gov.uk/id/local-authority/00ML,Education Services,BVAEDU,Ed - EY - PVI,ENP,Supplies and Services,E,Grants n Subscriptions,EK,05/09/2012,PAY00503607,23372.00,Revenue,Footsteps Day Nursery (Hove)
Brighton & Hove City Council,http://statistics.data.gov.uk/id/local-authority/00ML,Adult Social Care,BVASOC,S Svcs - Older People Svcs,PPL,Customer n Client Receipts,M,Fees n Charges,MB,05/09/2012,PAY00503610,-2633.03,Revenue,Care Outlook
Brighton & Hove City Council,http://statistics.data.gov.uk/id/local-authority/00ML,Adult Social Care,BVASOC,S Svcs - Older People Svcs,PPL,Third Party Payments,F,Other Establishments,FH,05/09/2012,PAY00503610,20310.86,Revenue,Care Outlook
Brighton & Hove City Council,http://statistics.data.gov.uk/id/local-authority/00ML,Adult Social Care,BVASOC,S Svcs - Other Adult Services,ADT,Third Party Payments,F,Other Establishments,FH,05/09/2012,PAY00503610,90.50,Revenue,Care Outlook
Brighton & Hove City Council,http://statistics.data.gov.uk/id/local-authority/00ML,Cultural and Related Services,BVACUL,Culture & Heritage,CHG,Supplies and Services,E,Equip't Furniture n Materials,EA,05/09/2012,PAY00503611,420.17,Revenue,LEL Hire
Brighton & Hove City Council,http://statistics.data.gov.uk/id/local-authority/00ML,Education Services,BVAEDU,Ed - EY - PVI,ENP,Supplies and Services,E,Grants n Subscriptions,EK,05/09/2012,PAY00503612,17291.00,Revenue,Angmering Day Nurseries Ltd
Brighton & Hove City Council,http://statistics.data.gov.uk/id/local-authority/00ML,Children�s Social Care,BVACSC,Management Services (DEC),MGT,Supplies and Services,E,Services,EF,05/09/2012,PAY00503620,970.00,Revenue,Payment to Individual
Brighton & Hove City Council,http://statistics.data.gov.uk/id/local-authority/00ML,Non SERCOP,BVANON,Non-Council,NNC,Supplies and Services,E,Print Stat & Gen Office Exps,ED,05/09/2012,PAY00503621,700.00,Revenue,Ingenious Design Ltd
Brighton & Hove City Council,http://statistics.data.gov.uk/id/local-authority/00ML,Education Services,BVAEDU,Ed - EY - PVI,ENP,Supplies and Services,E,Grants n Subscriptions,EK,05/09/2012,PAY00503625,7031.00,Revenue,Little People by the Sea
Brighton & Hove City Council,http://statistics.data.gov.uk/id/local-authority/00ML,Education Services,BVAEDU,Ed - EY - PVI,ENP,Supplies and Services,E,Grants n Subscriptions,EK,05/09/2012,PAY00503630,1364.00,Revenue,La Casita
Brighton & Hove City Council,http://statistics.data.gov.uk/id/local-authority/00ML,Education Services,BVAEDU,Ed - EY - PVI,ENP,Supplies and Services,E,Grants n Subscriptions,EK,05/09/2012,PAY00503631,3616.00,Revenue,Hungry Minds Childcare
Brighton & Hove City Council,http://statistics.data.gov.uk/id/local-authority/00ML,Education Services,BVAEDU,Ed - EY - PVI,ENP,Supplies and Services,E,Grants n Subscriptions,EK,05/09/2012,PAY00503632,9700.00,Revenue,Young Friends Nursery Ltd
Brighton & Hove City Council,http://statistics.data.gov.uk/id/local-authority/00ML,Education Services,BVAEDU,Ed - EY - PVI,ENP,Supplies and Services,E,Grants n Subscriptions,EK,05/09/2012,PAY00503633,9157.00,Revenue,Safe and Sound Daycare Ltd
Brighton & Hove City Council,http://statistics.data.gov.uk/id/local-authority/00ML,Housing Services General Fund,BVAHOG,Homelessness,HML,Premises Related,C,Rents Payable,CC,05/09/2012,PAY00503636,625.00,Revenue,Payment to Individual
Brighton & Hove City Council,http://statistics.data.gov.uk/id/local-authority/00ML,Education Services,BVAEDU,Ed - EY - PVI,ENP,Supplies and Services,E,Grants n Subscriptions,EK,05/09/2012,PAY00503638,7049.00,Revenue,Little Earthworms
Brighton & Hove City Council,http://statistics.data.gov.uk/id/local-authority/00ML,Adult Social Care,BVASOC,S Svcs - Older People Svcs,PPL,Customer n Client Receipts,M,Fees n Charges,MB,05/09/2012,PAY00503651,-1822.60,Revenue,The Woodlands
Brighton & Hove City Council,http://statistics.data.gov.uk/id/local-authority/00ML,Adult Social Care,BVASOC,S Svcs - Older People Svcs,PPL,Third Party Payments,F,Other Establishments,FH,05/09/2012,PAY00503651,5462.08,Revenue,The Woodlands
Brighton & Hove City Council,http://statistics.data.gov.uk/id/local-authority/00ML,Planning Services,BVAPLA,Economic Development,ECD,Supplies and Services,E,Grants n Subscriptions,EK,05/09/2012,PAY00503653,810.00,Revenue,Lunch Positive
Brighton & Hove City Council,http://statistics.data.gov.uk/id/local-authority/00ML,Adult Social Care,BVASOC,S Svcs - Older People Svcs,PPL,Third Party Payments,F,Other Establishments,FH,05/09/2012,PAY00503656,2200.48,Revenue,Premium Care Ltd T/as
Brighton & Hove City Council,http://statistics.data.gov.uk/id/local-authority/00ML,Cultural and Related Services,BVACUL,Culture & Heritage,CHG,Premises Related,C,Repair Maint n Alterations,CA,05/09/2012,PAY00503662,286.27,Revenue,Kew Electrical (Distributors) Limited
Brighton & Hove City Council,http://statistics.data.gov.uk/id/local-authority/00ML,Cultural and Related Services,BVACUL,Culture & Heritage,CHG,Supplies and Services,E,Equip't Furniture n Materials,EA,05/09/2012,PAY00503662,299.63,Revenue,Kew Electrical (Distributors) Limited
Brighton & Hove City Council,http://statistics.data.gov.uk/id/local-authority/00ML,Education Services,BVAEDU,Ed - EY - PVI,ENP,Supplies and Services,E,Grants n Subscriptions,EK,05/09/2012,PAY00503665,14816.00,Revenue,Early Explorers Limited
Brighton & Hove City Council,http://statistics.data.gov.uk/id/local-authority/00ML,Education Services,BVAEDU,Ed - EY - PVI,ENP,Supplies and Services,E,Grants n Subscriptions,EK,05/09/2012,PAY00503666,19245.00,Revenue,Supersaurus Nursery
Brighton & Hove City Council,http://statistics.data.gov.uk/id/local-authority/00ML,Environment and Regulatory Ser,BVAERS,Community Safety,CMY,Supplies and Services,E,Catering,EB,05/09/2012,PAY00503668,118.45,Revenue,Community Safety Team
Brighton & Hove City Council,http://statistics.data.gov.uk/id/local-authority/00ML,Environment and Regulatory Ser,BVAERS,Community Safety,CMY,Supplies and Services,E,Print Stat & Gen Office Exps,ED,05/09/2012,PAY00503668,49.35,Revenue,Community Safety Team
Brighton & Hove City Council,http://statistics.data.gov.uk/id/local-authority/00ML,Environment and Regulatory Ser,BVAERS,Community Safety,CMY,Supplies and Services,E,Services,EF,05/09/2012,PAY00503668,58.24,Revenue,Community Safety Team
Brighton & Hove City Council,http://statistics.data.gov.uk/id/local-authority/00ML,Environment and Regulatory Ser,BVAERS,Community Safety,CMY,Supplies and Services,E,Communications n Computing,EH,05/09/2012,PAY00503668,18.40,Revenue,Community Safety Team
Brighton & Hove City Council,http://statistics.data.gov.uk/id/local-authority/00ML,Environment and Regulatory Ser,BVAERS,Community Safety,CMY,Supplies and Services,E,Miscellaneous Expenses,EM,05/09/2012,PAY00503668,4.25,Revenue,Community Safety Team
Brighton & Hove City Council,http://statistics.data.gov.uk/id/local-authority/00ML,Environment and Regulatory Ser,BVAERS,Community Safety,CMY,Transport Related,D,Public Transport,DD,05/09/2012,PAY00503668,506.30,Revenue,Community Safety Team
Brighton & Hove City Council,http://statistics.data.gov.uk/id/local-authority/00ML,Adult Social Care,BVASOC,S Svcs - Older People Svcs,PPL,Customer n Client Receipts,M,Fees n Charges,MB,05/09/2012,PAY00503669,-476.80,Revenue,Payment to Individual
Brighton & Hove City Council,http://statistics.data.gov.uk/id/local-authority/00ML,Adult Social Care,BVASOC,S Svcs - Older People Svcs,PPL,Third Party Payments,F,Other Establishments,FH,05/09/2012,PAY00503669,1800.00,Revenue,Payment to Individual
Brighton & Hove City Council,http://statistics.data.gov.uk/id/local-authority/00ML,Adult Social Care,BVASOC,S Svcs - Older People Svcs,PPL,Customer n Client Receipts,M,Fees n Charges,MB,05/09/2012,PAY00503672,-641.72,Revenue,S E S Care Homes Ltd
Brighton & Hove City Council,http://statistics.data.gov.uk/id/local-authority/00ML,Adult Social Care,BVASOC,S Svcs - Older People Svcs,PPL,Third Party Payments,F,Other Establishments,FH,05/09/2012,PAY00503672,1489.76,Revenue,S E S Care Homes Ltd
Brighton & Hove City Council,http://statistics.data.gov.uk/id/local-authority/00ML,Housing Services General Fund,BVAHOG,Homelessness,HML,Premises Related,C,Rents Payable,CC,05/09/2012,PAY00503674,2295.00,Revenue,Payment to Individual
Brighton & Hove City Council,http://statistics.data.gov.uk/id/local-authority/00ML,Adult Social Care,BVASOC,S Svcs - Physical Disability,PDY,Customer n Client Receipts,M,Fees n Charges,MB,05/09/2012,PAY00503677,-174.70,Revenue,Partnerships in Care Ltd
Brighton & Hove City Council,http://statistics.data.gov.uk/id/local-authority/00ML,Adult Social Care,BVASOC,S Svcs - Physical Disability,PDY,Third Party Payments,F,Other Establishments,FH,05/09/2012,PAY00503677,4837.56,Revenue,Partnerships in Care Ltd
Brighton & Hove City Council,http://statistics.data.gov.uk/id/local-authority/00ML,Education Services,BVAEDU,Ed - EY - PVI,ENP,Supplies and Services,E,Grants n Subscriptions,EK,05/09/2012,PAY00503679,8123.00,Revenue,Growing Up Green
Brighton & Hove City Council,http://statistics.data.gov.uk/id/local-authority/00ML,Education Services,BVAEDU,Ed - EY - PVI,ENP,Supplies and Services,E,Grants n Subscriptions,EK,05/09/2012,PAY00503680,613.00,Revenue,Payment to Individual
Brighton & Hove City Council,http://statistics.data.gov.uk/id/local-authority/00ML,Education Services,BVAEDU,Ed - EY - PVI,ENP,Supplies and Services,E,Grants n Subscriptions,EK,05/09/2012,PAY00503681,14296.00,Revenue,Little Lambs Kindergarten
Brighton & Hove City Council,http://statistics.data.gov.uk/id/local-authority/00ML,Adult Social Care,BVASOC,S Svcs - Other Adult Services,ADT,Indirect Employees,B,Training,BM,05/09/2012,PAY00503685,1659.00,Revenue,Herts Handling Training Limited
Brighton & Hove City Council,http://statistics.data.gov.uk/id/local-authority/00ML,Central Services To The Public,BVACEN,Support Services (SSC),PPT,Indirect Employees,B,Training,BM,05/09/2012,PAY00503685,869.00,Revenue,Herts Handling Training Limited
Brighton & Hove City Council,http://statistics.data.gov.uk/id/local-authority/00ML,Non SERCOP,BVANON,Cap - Housing Services - GF,4HG,Capital Grants,PF,Level not required,NR5012,05/09/2012,PAY00503686,2237.04,Capital,Mears Home Improvement Limited (formerly Anchor)
Brighton & Hove City Council,http://statistics.data.gov.uk/id/local-authority/00ML,Non SERCOP,BVANON,Cap - Housing Services - HRA,4HR,New Construction n Conversion,PB,Level not required,NR5026,05/09/2012,PAY00503700,56463.00,Capital,Liftec Lifts Ltd
Brighton & Hove City Council,http://statistics.data.gov.uk/id/local-authority/00ML,Housing Services Revnue Acc,BVAHOU,Hsing Management - HRA,HGM,Premises Related,C,Repair Maint n Alterations,CA,05/09/2012,PAY00503700,12103.33,Revenue,Liftec Lifts Ltd
Brighton & Hove City Council,http://statistics.data.gov.uk/id/local-authority/00ML,Children�s Social Care,BVACSC,Management Services (DEC),MGT,Supplies and Services,E,Services,EF,05/09/2012,PAY00503704,2600.00,Revenue,HMCTS - Brighton Family Centre
Brighton & Hove City Council,http://statistics.data.gov.uk/id/local-authority/00ML,Cultural and Related Services,BVACUL,Culture & Heritage,CHG,Supplies and Services,E,Equip't Furniture n Materials,EA,05/09/2012,PAY00503707,2500.00,Revenue,Culture24
Brighton & Hove City Council,http://statistics.data.gov.uk/id/local-authority/00ML,Adult Social Care,BVASOC,S Svcs - Learning Disability,LDY,Customer n Client Receipts,M,Fees n Charges,MB,05/09/2012,PAY00503709,-385.40,Revenue,Zero Three Care Homes
Brighton & Hove City Council,http://statistics.data.gov.uk/id/local-authority/00ML,Adult Social Care,BVASOC,S Svcs - Learning Disability,LDY,Third Party Payments,F,Other Establishments,FH,05/09/2012,PAY00503709,10646.80,Revenue,Zero Three Care Homes
Brighton & Hove City Council,http://statistics.data.gov.uk/id/local-authority/00ML,Adult Social Care,BVASOC,S Svcs - Mental Health,MHT,Third Party Payments,F,Other Establishments,FH,05/09/2012,PAY00503715,534.60,Revenue,Payment to Individual
Brighton & Hove City Council,http://statistics.data.gov.uk/id/local-authority/00ML,Highways and Transportation,BVAHRT,Highways and Roads - Mntnce,HRM,Customer n Client Receipts,M,Fees n Charges,MB,05/09/2012,PAY00503719,616.11,Revenue,TMP Worldwide
Brighton & Hove City Council,http://statistics.data.gov.uk/id/local-authority/00ML,Housing Services General Fund,BVAHOG,Private Sector Hsing Renewal,PHR,Indirect Employees,B,Advertising,BA,05/09/2012,PAY00503719,1729.60,Revenue,TMP Worldwide
Brighton & Hove City Council,http://statistics.data.gov.uk/id/local-authority/00ML,Adult Social Care,BVASOC,S Svcs - Older People Svcs,PPL,Customer n Client Receipts,M,Fees n Charges,MB,05/09/2012,PAY00503720,-9820.32,Revenue,Four Seasons - Bon Accord Care Home
Brighton & Hove City Council,http://statistics.data.gov.uk/id/local-authority/00ML,Adult Social Care,BVASOC,S Svcs - Older People Svcs,PPL,Third Party Payments,F,Other Establishments,FH,05/09/2012,PAY00503720,63582.80,Revenue,Four Seasons - Bon Accord Care Home
Brighton & Hove City Council,http://statistics.data.gov.uk/id/local-authority/00ML,Education Services,BVAEDU,Ed - EY - PVI,ENP,Supplies and Services,E,Grants n Subscriptions,EK,05/09/2012,PAY00503723,12014.00,Revenue,The Montessori Place
Brighton & Hove City Council,http://statistics.data.gov.uk/id/local-authority/00ML,Non SERCOP,BVANON,Cap - Education Services,4ED,New Construction n Conversion,PB,Level not required,NR5026,05/09/2012,PAY00503724,5346.00,Capital,Independent Asbestos Services Ltd
Brighton & Hove City Council,http://statistics.data.gov.uk/id/local-authority/00ML,Education Services,BVAEDU,Ed - EY - PVI,ENP,Supplies and Services,E,Grants n Subscriptions,EK,05/09/2012,PAY00503727,911.00,Revenue,Payment to Individual
Brighton & Hove City Council,http://statistics.data.gov.uk/id/local-authority/00ML,Adult Social Care,BVASOC,S Svcs - Older People Svcs,PPL,Customer n Client Receipts,M,Fees n Charges,MB,05/09/2012,PAY00503732,-1942.72,Revenue,Adiemus Care Ltd
Brighton & Hove City Council,http://statistics.data.gov.uk/id/local-authority/00ML,Adult Social Care,BVASOC,S Svcs - Older People Svcs,PPL,Third Party Payments,F,Other Establishments,FH,05/09/2012,PAY00503732,19267.66,Revenue,Adiemus Care Ltd
Brighton & Hove City Council,http://statistics.data.gov.uk/id/local-authority/00ML,Education Services,BVAEDU,Ed - EY - PVI,ENP,Supplies and Services,E,Grants n Subscriptions,EK,05/09/2012,PAY00503733,2631.00,Revenue,Gingerbread Day Nursery 
Brighton & Hove City Council,http://statistics.data.gov.uk/id/local-authority/00ML,Adult Social Care,BVASOC,S Svcs - Older People Svcs,PPL,Third Party Payments,F,Other Establishments,FH,05/09/2012,PAY00503735,1780.00,Revenue,HC-One Limited
Brighton & Hove City Council,http://statistics.data.gov.uk/id/local-authority/00ML,Adult Social Care,BVASOC,S Svcs - Older People Svcs,PPL,Customer n Client Receipts,M,Fees n Charges,MB,05/09/2012,PAY00503739,-2904.51,Revenue,Keychange Charity
Brighton & Hove City Council,http://statistics.data.gov.uk/id/local-authority/00ML,Adult Social Care,BVASOC,S Svcs - Older People Svcs,PPL,Third Party Payments,F,Other Establishments,FH,05/09/2012,PAY00503739,7594.51,Revenue,Keychange Charity
Brighton & Hove City Council,http://statistics.data.gov.uk/id/local-authority/00ML,Education Services,BVAEDU,Ed - Ed Other - LA Attrib Sch,ELA,Transport Related,D,Public Transport,DD,05/09/2012,PAY00503742,793.92,Revenue,Payment to Individual
Brighton & Hove City Council,http://statistics.data.gov.uk/id/local-authority/00ML,Highways and Transportation,BVAHRT,Transport plan policy strategy,TPP,Supplies and Services,E,Miscellaneous Expenses,EM,05/09/2012,PAY00503743,750.00,Revenue,Unitone Productions Limited
Brighton & Hove City Council,http://statistics.data.gov.uk/id/local-authority/00ML,Adult Social Care,BVASOC,S Svcs - Older People Svcs,PPL,Third Party Payments,F,Other Establishments,FH,05/09/2012,PAY00503745,991.90,Revenue,Payment to Individual
Brighton & Hove City Council,http://statistics.data.gov.uk/id/local-authority/00ML,Planning Services,BVAPLA,Planning policy,PLP,Supplies and Services,E,Miscellaneous Expenses,EM,05/09/2012,PAY00503770,14308.50,Revenue,Plan Art Projects Ltd
Brighton & Hove City Council,http://statistics.data.gov.uk/id/local-authority/00ML,Central Services To The Public,BVACEN,Support Services (SSC),PPT,Supplies and Services,E,Communications n Computing,EH,05/09/2012,PAY00503772,2033.06,Revenue,Softcat Ltd
Brighton & Hove City Council,http://statistics.data.gov.uk/id/local-authority/00ML,Non SERCOP,BVANON,Collection Fund,7WW,Unalalysed-Income,9998,Level not required,NR5037,05/09/2012,PAY00503774,565.26,Collection Fund,Orange Personal Communications Services Ltd
Brighton & Hove City Council,http://statistics.data.gov.uk/id/local-authority/00ML,Adult Social Care,BVASOC,S Svcs - Older People Svcs,PPL,Third Party Payments,F,Other Establishments,FH,05/09/2012,PAY00503779,1469.40,Revenue,Payment to Individual
Brighton & Hove City Council,http://statistics.data.gov.uk/id/local-authority/00ML,Non SERCOP,BVANON,Cap - Education Services,4ED,New Construction n Conversion,PB,Level not required,NR5026,05/09/2012,PAY00503783,17950.00,Capital,Hampshire Enviromental Services Limited
Brighton & Hove City Council,http://statistics.data.gov.uk/id/local-authority/00ML,Children�s Social Care,BVACSC,Child Srvcs - Other Fam Supp,FFX,Indirect Employees,B,Advertising,BA,05/09/2012,PAY00503785,1173.60,Revenue,Assessment Associates
Brighton & Hove City Council,http://statistics.data.gov.uk/id/local-authority/00ML,Adult Social Care,BVASOC,S Svcs - Older People Svcs,PPL,Customer n Client Receipts,M,Fees n Charges,MB,05/09/2012,PAY00503796,-749.26,Revenue,Conewood Manor Limited
Brighton & Hove City Council,http://statistics.data.gov.uk/id/local-authority/00ML,Adult Social Care,BVASOC,S Svcs - Older People Svcs,PPL,Third Party Payments,F,Other Establishments,FH,05/09/2012,PAY00503796,4287.86,Revenue,Conewood Manor Limited
Brighton & Hove City Council,http://statistics.data.gov.uk/id/local-authority/00ML,Children�s Social Care,BVACSC,Child Srvcs - Yth Offender Tm,FYY,Supplies and Services,E,Miscellaneous Expenses,EM,05/09/2012,PAY00503799,800.00,Revenue,Payment to Individual
Brighton & Hove City Council,http://statistics.data.gov.uk/id/local-authority/00ML,Non SERCOP,BVANON,Collection Fund,7WW,Unalalysed-Income,9998,Level not required,NR5037,05/09/2012,PAY00503803,4396.80,Collection Fund,Downland Housing Association Ltd
Brighton & Hove City Council,http://statistics.data.gov.uk/id/local-authority/00ML,Environment and Regulatory Ser,BVAERS,Community Safety,CMY,Indirect Employees,B,Misc Employee Costs,BP,05/09/2012,PAY00503804,5090.00,Revenue,Payment to Individual
Brighton & Hove City Council,http://statistics.data.gov.uk/id/local-authority/00ML,Non SERCOP,BVANON,Collection Fund,7WW,Unalalysed-Income,9998,Level not required,NR5037,05/09/2012,PAY00503806,5608.43,Collection Fund,Store Property Estates Limtied
Brighton & Hove City Council,http://statistics.data.gov.uk/id/local-authority/00ML,Non SERCOP,BVANON,Collection Fund,7WW,Unalalysed-Income,9998,Level not required,NR5037,05/09/2012,PAY00503807,2926.32,Collection Fund,Protocol Skills Ltd
Brighton & Hove City Council,http://statistics.data.gov.uk/id/local-authority/00ML,Non SERCOP,BVANON,Collection Fund,7WW,Unalalysed-Income,9998,Level not required,NR5037,05/09/2012,PAY00503816,2268.21,Collection Fund,Payment to Individual
Brighton & Hove City Council,http://statistics.data.gov.uk/id/local-authority/00ML,Non SERCOP,BVANON,Collection Fund,7WW,Unalalysed-Income,9998,Level not required,NR5037,05/09/2012,PAY00503822,868.73,Collection Fund,TESCO STORES LTD
Brighton & Hove City Council,http://statistics.data.gov.uk/id/local-authority/00ML,Non SERCOP,BVANON,Collection Fund,7WW,Unalalysed-Income,9998,Level not required,NR5037,05/09/2012,PAY00503823,744.62,Collection Fund,TESCO STORES LTD
Brighton & Hove City Council,http://statistics.data.gov.uk/id/local-authority/00ML,Non SERCOP,BVANON,Collection Fund,7WW,Unalalysed-Income,9998,Level not required,NR5037,05/09/2012,PAY00503824,868.73,Collection Fund,TESCO STORES LTD
Brighton & Hove City Council,http://statistics.data.gov.uk/id/local-authority/00ML,Non SERCOP,BVANON,Collection Fund,7WW,Unalalysed-Income,9998,Level not required,NR5037,05/09/2012,PAY00503825,744.62,Collection Fund,TESCO STORES LTD
Brighton & Hove City Council,http://statistics.data.gov.uk/id/local-authority/00ML,Non SERCOP,BVANON,Collection Fund,7WW,Unalalysed-Income,9998,Level not required,NR5037,05/09/2012,PAY00503826,744.62,Collection Fund,TESCO STORES LTD
Brighton & Hove City Council,http://statistics.data.gov.uk/id/local-authority/00ML,Non SERCOP,BVANON,Collection Fund,7WW,Unalalysed-Income,9998,Level not required,NR5037,05/09/2012,PAY00503827,744.62,Collection Fund,TESCO STORES LTD
Brighton & Hove City Council,http://statistics.data.gov.uk/id/local-authority/00ML,Non SERCOP,BVANON,Collection Fund,7WW,Unalalysed-Income,9998,Level not required,NR5037,05/09/2012,PAY00503828,744.62,Collection Fund,TESCO STORES LTD
Brighton & Hove City Council,http://statistics.data.gov.uk/id/local-authority/00ML,Non SERCOP,BVANON,Collection Fund,7WW,Unalalysed-Income,9998,Level not required,NR5037,05/09/2012,PAY00503829,868.73,Collection Fund,TESCO STORES LTD
Brighton & Hove City Council,http://statistics.data.gov.uk/id/local-authority/00ML,Non SERCOP,BVANON,Collection Fund,7WW,Unalalysed-Income,9998,Level not required,NR5037,05/09/2012,PAY00503830,744.62,Collection Fund,TESCO STORES LTD
Brighton & Hove City Council,http://statistics.data.gov.uk/id/local-authority/00ML,Non SERCOP,BVANON,Collection Fund,7WW,Unalalysed-Income,9998,Level not required,NR5037,05/09/2012,PAY00503843,687.86,Collection Fund,Payment to Individual
Brighton & Hove City Council,http://statistics.data.gov.uk/id/local-authority/00ML,Non SERCOP,BVANON,Collection Fund,7WW,Unalalysed-Income,9998,Level not required,NR5037,05/09/2012,PAY00503852,687.89,Collection Fund,Payment to Individual
Brighton & Hove City Council,http://statistics.data.gov.uk/id/local-authority/00ML,Non SERCOP,BVANON,Collection Fund,7WW,Unalalysed-Income,9998,Level not required,NR5037,05/09/2012,PAY00503853,574.85,Collection Fund,Payment to Individual
Brighton & Hove City Council,http://statistics.data.gov.uk/id/local-authority/00ML,Non SERCOP,BVANON,Collection Fund,7WW,Unalalysed-Income,9998,Level not required,NR5037,05/09/2012,PAY00503856,1826.83,Collection Fund,Payment to Individual
Brighton & Hove City Council,http://statistics.data.gov.uk/id/local-authority/00ML,Non SERCOP,BVANON,Collection Fund,7WW,Unalalysed-Income,9998,Level not required,NR5037,05/09/2012,PAY00503857,644.38,Collection Fund,Payment to Individual
Brighton & Hove City Council,http://statistics.data.gov.uk/id/local-authority/00ML,Non SERCOP,BVANON,Collection Fund,7WW,Unalalysed-Income,9998,Level not required,NR5037,05/09/2012,PAY00503858,1584.71,Collection Fund,Payment to Individual
Brighton & Hove City Council,http://statistics.data.gov.uk/id/local-authority/00ML,Children�s Social Care,BVACSC,Child Srvcs - Com & Scl Work,FCW,Indirect Employees,B,Misc Employee Costs,BP,05/09/2012,PAY00503865,2650.00,Revenue,Payment to Individual
Brighton & Hove City Council,http://statistics.data.gov.uk/id/local-authority/00ML,Non SERCOP,BVANON,Collection Fund,7WW,Unalalysed-Income,9998,Level not required,NR5037,05/09/2012,PAY00503900,2183.78,Collection Fund,Payment to Individual
Brighton & Hove City Council,http://statistics.data.gov.uk/id/local-authority/00ML,Non SERCOP,BVANON,Collection Fund,7WW,Unalalysed-Income,9998,Level not required,NR5037,05/09/2012,PAY00503921,729.53,Collection Fund,Payment to Individual
Brighton & Hove City Council,http://statistics.data.gov.uk/id/local-authority/00ML,Non SERCOP,BVANON,Collection Fund,7WW,Unalalysed-Income,9998,Level not required,NR5037,05/09/2012,PAY00503941,865.12,Collection Fund,Payment to Individual
Brighton & Hove City Council,http://statistics.data.gov.uk/id/local-authority/00ML,Non SERCOP,BVANON,Balance Sheet HRA,9HZ,Current Assets,ZAB,Short Term Debtors,ZABC,06/09/2012,PAY493423,564.47,Balance Sheet,Payment to Individual
Brighton & Hove City Council,http://statistics.data.gov.uk/id/local-authority/00ML,Non SERCOP,BVANON,Balance Sheet HRA,9HZ,Current Assets,ZAB,Short Term Debtors,ZABC,06/09/2012,PAY493424,1732.70,Balance Sheet,Payment to Individual
Brighton & Hove City Council,http://statistics.data.gov.uk/id/local-authority/00ML,Non SERCOP,BVANON,Balance Sheet GFND,9ZZ,Current Assets,ZAB,Short Term Debtors,ZABC,06/09/2012,PAY493431,1051.50,Balance Sheet,Payment to Individual
Brighton & Hove City Council,http://statistics.data.gov.uk/id/local-authority/00ML,Non SERCOP,BVANON,Balance Sheet HRA,9HZ,Current Assets,ZAB,Short Term Debtors,ZABC,06/09/2012,PAY493434,969.80,Balance Sheet,Payment to Individual
Brighton & Hove City Council,http://statistics.data.gov.uk/id/local-authority/00ML,Non SERCOP,BVANON,Balance Sheet HRA,9HZ,Current Assets,ZAB,Short Term Debtors,ZABC,06/09/2012,PAY493436,975.00,Balance Sheet,Payment to Individual
Brighton & Hove City Council,http://statistics.data.gov.uk/id/local-authority/00ML,Non SERCOP,BVANON,Balance Sheet GFND,9ZZ,Current Assets,ZAB,Short Term Debtors,ZABC,06/09/2012,PAY493441,1060.85,Balance Sheet,Payment to Individual
Brighton & Hove City Council,http://statistics.data.gov.uk/id/local-authority/00ML,Children�s Social Care,BVACSC,Management Services (DEC),MGT,Supplies and Services,E,Services,EF,06/09/2012,PAY493445,1465.45,Revenue,Payment to Individual
Brighton & Hove City Council,http://statistics.data.gov.uk/id/local-authority/00ML,Adult Social Care,BVASOC,S Svcs - Learning Disability,LDY,Supplies and Services,E,Catering,EB,06/09/2012,PAY493446,215.58,Revenue,Payment to Individual
Brighton & Hove City Council,http://statistics.data.gov.uk/id/local-authority/00ML,Adult Social Care,BVASOC,S Svcs - Older People Svcs,PPL,Supplies and Services,E,Catering,EB,06/09/2012,PAY493446,517.53,Revenue,Payment to Individual
Brighton & Hove City Council,http://statistics.data.gov.uk/id/local-authority/00ML,Children�s Social Care,BVACSC,Management Services (DEC),MGT,Supplies and Services,E,Services,EF,06/09/2012,PAY493447,1038.00,Revenue,Payment to Individual
Brighton & Hove City Council,http://statistics.data.gov.uk/id/local-authority/00ML,Non SERCOP,BVANON,Collection Fund,7WW,Unalalysed-Income,9998,Level not required,NR5037,06/09/2012,PAY493471,1511.78,Collection Fund,Payment to Individual
Brighton & Hove City Council,http://statistics.data.gov.uk/id/local-authority/00ML,Central Services To The Public,BVACEN,Support Services (SSC),PPT,Supplies and Services,E,Services,EF,06/09/2012,PAY493482,6764.00,Revenue,Payment to Individual
Brighton & Hove City Council,http://statistics.data.gov.uk/id/local-authority/00ML,Central Services To The Public,BVACEN,Support Services (SSC),PPT,Supplies and Services,E,Services,EF,06/09/2012,PAY493484,9544.00,Revenue,Payment to Individual
Brighton & Hove City Council,http://statistics.data.gov.uk/id/local-authority/00ML,Central Services To The Public,BVACEN,Support Services (SSC),PPT,Supplies and Services,E,Services,EF,06/09/2012,PAY493485,6571.00,Revenue,Payment to Individual
Brighton & Hove City Council,http://statistics.data.gov.uk/id/local-authority/00ML,Central Services To The Public,BVACEN,Support Services (SSC),PPT,Supplies and Services,E,Services,EF,06/09/2012,PAY493486,10850.00,Revenue,Payment to Individual
Brighton & Hove City Council,http://statistics.data.gov.uk/id/local-authority/00ML,Central Services To The Public,BVACEN,Support Services (SSC),PPT,Supplies and Services,E,Services,EF,06/09/2012,PAY493487,6763.00,Revenue,Payment to Individual
Brighton & Hove City Council,http://statistics.data.gov.uk/id/local-authority/00ML,Central Services To The Public,BVACEN,Support Services (SSC),PPT,Supplies and Services,E,Services,EF,06/09/2012,PAY493488,5206.00,Revenue,Payment to Individual
Brighton & Hove City Council,http://statistics.data.gov.uk/id/local-authority/00ML,Central Services To The Public,BVACEN,Support Services (SSC),PPT,Supplies and Services,E,Services,EF,06/09/2012,PAY493489,2061.00,Revenue,Payment to Individual
Brighton & Hove City Council,http://statistics.data.gov.uk/id/local-authority/00ML,Central Services To The Public,BVACEN,Support Services (SSC),PPT,Supplies and Services,E,Services,EF,06/09/2012,PAY493490,1838.00,Revenue,Payment to Individual
Brighton & Hove City Council,http://statistics.data.gov.uk/id/local-authority/00ML,Environment and Regulatory Ser,BVAERS,Management Services (DEC),MGT,Transport Related,D,Direct Transport Costs,DA,06/09/2012,PAY493492,860.00,Revenue,Post Office Ltd
Brighton & Hove City Council,http://statistics.data.gov.uk/id/local-authority/00ML,Housing Services General Fund,BVAHOG,Homelessness,HML,Premises Related,C,Rents Payable,CC,07/09/2012,PAY00503952,775.00,Revenue,Payment to Individual
Brighton & Hove City Council,http://statistics.data.gov.uk/id/local-authority/00ML,Housing Services General Fund,BVAHOG,Homelessness,HML,Premises Related,C,Rents Payable,CC,07/09/2012,PAY00503953,599.00,Revenue,Payment to Individual
Brighton & Hove City Council,http://statistics.data.gov.uk/id/local-authority/00ML,Housing Services General Fund,BVAHOG,Homelessness,HML,Premises Related,C,Rents Payable,CC,07/09/2012,PAY00503958,665.00,Revenue,Payment to Individual
Brighton & Hove City Council,http://statistics.data.gov.uk/id/local-authority/00ML,Non SERCOP,BVANON,Collection Fund,7WW,Unalalysed-Income,9998,Level not required,NR5037,07/09/2012,PAY00503959,14045.24,Collection Fund,J D Wetherspoon Plc
Brighton & Hove City Council,http://statistics.data.gov.uk/id/local-authority/00ML,Housing Services General Fund,BVAHOG,Homelessness,HML,Premises Related,C,Rents Payable,CC,07/09/2012,PAY00503960,900.00,Revenue,Payment to Individual
Brighton & Hove City Council,http://statistics.data.gov.uk/id/local-authority/00ML,Children�s Social Care,BVACSC,Child Srvcs - Fostering,FLF,Third Party Payments,F,Other Establishments,FH,07/09/2012,PAY00503962,708.00,Revenue,Payment to Individual
Brighton & Hove City Council,http://statistics.data.gov.uk/id/local-authority/00ML,Children�s Social Care,BVACSC,Child Srvcs - Fostering,FLF,Third Party Payments,F,Other Establishments,FH,07/09/2012,PAY00503965,816.00,Revenue,Payment to Individual
Brighton & Hove City Council,http://statistics.data.gov.uk/id/local-authority/00ML,Adult Social Care,BVASOC,S Svcs - Mental Health,MHT,Third Party Payments,F,Other Establishments,FH,07/09/2012,PAY00503967,630.00,Revenue,Hove Wardley Company Ltd
Brighton & Hove City Council,http://statistics.data.gov.uk/id/local-authority/00ML,Adult Social Care,BVASOC,S Svcs - Older People Svcs,PPL,Customer n Client Receipts,M,Fees n Charges,MB,07/09/2012,PAY00503968,-953.60,Revenue,St Anne`s Convent
Brighton & Hove City Council,http://statistics.data.gov.uk/id/local-authority/00ML,Adult Social Care,BVASOC,S Svcs - Older People Svcs,PPL,Third Party Payments,F,Other Establishments,FH,07/09/2012,PAY00503968,3817.14,Revenue,St Anne`s Convent
Brighton & Hove City Council,http://statistics.data.gov.uk/id/local-authority/00ML,Cultural and Related Services,BVACUL,Culture & Heritage,CHG,Premises Related,C,Repair Maint n Alterations,CA,07/09/2012,PAY00503970,4840.00,Revenue,TSS Facilities Ltd
Brighton & Hove City Council,http://statistics.data.gov.uk/id/local-authority/00ML,Education Services,BVAEDU,Ed - Ed Other - Other,ENF,Premises Related,C,Repair Maint n Alterations,CA,07/09/2012,PAY00503970,270.00,Revenue,TSS Facilities Ltd
Brighton & Hove City Council,http://statistics.data.gov.uk/id/local-authority/00ML,Central Services To The Public,BVACEN,Support Services (SSC),PPT,Premises Related,C,Repair Maint n Alterations,CA,07/09/2012,PAY00503970,665.00,Revenue,TSS Facilities Ltd
Brighton & Hove City Council,http://statistics.data.gov.uk/id/local-authority/00ML,Central Services To The Public,BVACEN,Support Services (SSC),PPT,Premises Related,C,Repair Maint n Alterations,CA,07/09/2012,PAY00503971,796.00,Revenue,Capital Hygiene/Capital Cleaning
Brighton & Hove City Council,http://statistics.data.gov.uk/id/local-authority/00ML,Highways and Transportation,BVAHRT,Parking Services,PRK,Third Party Payments,F,Private Contractors,FJ,07/09/2012,PAY00503972,86734.48,Revenue,NSL Ltd
Brighton & Hove City Council,http://statistics.data.gov.uk/id/local-authority/00ML,Education Services,BVAEDU,Ed - Srvcs YP - Ad & Cmty Ln,ENA,Supplies and Services,E,Equip't Furniture n Materials,EA,07/09/2012,PAY00503973,1450.00,Revenue,Pool-Tec
Brighton & Hove City Council,http://statistics.data.gov.uk/id/local-authority/00ML,Adult Social Care,BVASOC,S Svcs - Older People Svcs,PPL,Customer n Client Receipts,M,Fees n Charges,MB,07/09/2012,PAY00503974,6750.00,Revenue,Anchor Trust Homes (Partridge House)
Brighton & Hove City Council,http://statistics.data.gov.uk/id/local-authority/00ML,Non SERCOP,BVANON,Cap - Libs Culture & Hertage,4LH,New Construction n Conversion,PB,Level not required,NR5026,07/09/2012,PAY00503975,95487.35,Capital,Philips Lighting
Brighton & Hove City Council,http://statistics.data.gov.uk/id/local-authority/00ML,Non SERCOP,BVANON,Cap - Housing Services - HRA,4HR,New Construction n Conversion,PB,Level not required,NR5026,07/09/2012,PAY00503978,24263.65,Capital,Access Mobility
Brighton & Hove City Council,http://statistics.data.gov.uk/id/local-authority/00ML,Adult Social Care,BVASOC,S Svcs - Learning Disability,LDY,Customer n Client Receipts,M,Fees n Charges,MB,07/09/2012,PAY00503984,-476.80,Revenue,Honeybourne House Ltd
Brighton & Hove City Council,http://statistics.data.gov.uk/id/local-authority/00ML,Adult Social Care,BVASOC,S Svcs - Learning Disability,LDY,Third Party Payments,F,Other Establishments,FH,07/09/2012,PAY00503984,2868.40,Revenue,Honeybourne House Ltd
Brighton & Hove City Council,http://statistics.data.gov.uk/id/local-authority/00ML,Cultural and Related Services,BVACUL,Recreation and sport,REC,Supplies and Services,E,Miscellaneous Expenses,EM,07/09/2012,PAY00503987,500.00,Revenue,James Pike Photography Ltd
Brighton & Hove City Council,http://statistics.data.gov.uk/id/local-authority/00ML,Cultural and Related Services,BVACUL,Culture & Heritage,CHG,Direct Employees,A,Wages,AB,07/09/2012,PAY00503988,1512.00,Revenue,Concert & Corporate Crew Ltd
Brighton & Hove City Council,http://statistics.data.gov.uk/id/local-authority/00ML,Central Services To The Public,BVACEN,Non service costs,NVC,Capital Financing Costs,J,Interest payable,JN,07/09/2012,PAY00503989,1007.32,Revenue,Asset Advantage Limited
Brighton & Hove City Council,http://statistics.data.gov.uk/id/local-authority/00ML,Environment and Regulatory Ser,BVAERS,Cem Crem and Mortuary Services,CCM,Supplies and Services,E,Services,EF,07/09/2012,PAY00503990,1800.00,Revenue,Payment to Individual
Brighton & Hove City Council,http://statistics.data.gov.uk/id/local-authority/00ML,Adult Social Care,BVASOC,S Svcs - Learning Disability,LDY,Third Party Payments,F,Other Establishments,FH,07/09/2012,PAY00503992,693.60,Revenue,Payment to Individual
Brighton & Hove City Council,http://statistics.data.gov.uk/id/local-authority/00ML,Central Services To The Public,BVACEN,Elections,ELE,Supplies and Services,E,Communications n Computing,EH,07/09/2012,PAY00503996,1337.58,Revenue,Royal Mail Group Ltd
Brighton & Hove City Council,http://statistics.data.gov.uk/id/local-authority/00ML,Central Services To The Public,BVACEN,Holding Accounts,PPH,Supplies and Services,E,Communications n Computing,EH,07/09/2012,PAY00503996,5064.83,Revenue,Royal Mail Group Ltd
Brighton & Hove City Council,http://statistics.data.gov.uk/id/local-authority/00ML,Housing Services General Fund,BVAHOG,Hsing Benefits,HGB,Supplies and Services,E,Communications n Computing,EH,07/09/2012,PAY00503996,38.16,Revenue,Royal Mail Group Ltd
Brighton & Hove City Council,http://statistics.data.gov.uk/id/local-authority/00ML,Housing Services Revnue Acc,BVAHOU,Hsing Management - HRA,HGM,Supplies and Services,E,Communications n Computing,EH,07/09/2012,PAY00503996,4.08,Revenue,Royal Mail Group Ltd
Brighton & Hove City Council,http://statistics.data.gov.uk/id/local-authority/00ML,Central Services To The Public,BVACEN,Local Tax Collection,LTC,Supplies and Services,E,Communications n Computing,EH,07/09/2012,PAY00503996,1158.82,Revenue,Royal Mail Group Ltd
Brighton & Hove City Council,http://statistics.data.gov.uk/id/local-authority/00ML,Non SERCOP,BVANON,Cap - Other Env Services,4EV,New Construction n Conversion,PB,Level not required,NR5026,07/09/2012,PAY00503997,21866.27,Capital,Halcrow Group Ltd
Brighton & Hove City Council,http://statistics.data.gov.uk/id/local-authority/00ML,Children�s Social Care,BVACSC,Child Srvcs - Secure Accomm,FLA,Third Party Payments,F,Other Local Authorities,FB,07/09/2012,PAY00504003,22740.98,Revenue,Essex County Council
Brighton & Hove City Council,http://statistics.data.gov.uk/id/local-authority/00ML,Adult Social Care,BVASOC,S Svcs - Mental Health,MHT,Third Party Payments,F,Other Establishments,FH,07/09/2012,PAY00504004,14.50,Revenue,Care UK Homecare
Brighton & Hove City Council,http://statistics.data.gov.uk/id/local-authority/00ML,Adult Social Care,BVASOC,S Svcs - Older People Svcs,PPL,Customer n Client Receipts,M,Fees n Charges,MB,07/09/2012,PAY00504004,-1257.00,Revenue,Care UK Homecare
Brighton & Hove City Council,http://statistics.data.gov.uk/id/local-authority/00ML,Adult Social Care,BVASOC,S Svcs - Older People Svcs,PPL,Third Party Payments,F,Other Establishments,FH,07/09/2012,PAY00504004,6662.81,Revenue,Care UK Homecare
Brighton & Hove City Council,http://statistics.data.gov.uk/id/local-authority/00ML,Adult Social Care,BVASOC,S Svcs - Physical Disability,PDY,Customer n Client Receipts,M,Fees n Charges,MB,07/09/2012,PAY00504004,-118.00,Revenue,Care UK Homecare
Brighton & Hove City Council,http://statistics.data.gov.uk/id/local-authority/00ML,Adult Social Care,BVASOC,S Svcs - Physical Disability,PDY,Third Party Payments,F,Other Establishments,FH,07/09/2012,PAY00504004,1051.26,Revenue,Care UK Homecare
Brighton & Hove City Council,http://statistics.data.gov.uk/id/local-authority/00ML,Non SERCOP,BVANON,Cap - Housing Services - HRA,4HR,New Construction n Conversion,PB,Level not required,NR5026,07/09/2012,PAY00504009,4470.00,Capital,Ascendit Lifts Ltd
Brighton & Hove City Council,http://statistics.data.gov.uk/id/local-authority/00ML,Environment and Regulatory Ser,BVAERS,Community Safety,CMY,Third Party Payments,F,Other Establishments,FH,07/09/2012,PAY00504012,2589.67,Revenue,Brighton Oasis Project
Brighton & Hove City Council,http://statistics.data.gov.uk/id/local-authority/00ML,Cultural and Related Services,BVACUL,Highways and Roads - Mntnce,HRM,Premises Related,C,Repair Maint n Alterations,CA,07/09/2012,PAY00504015,9436.00,Revenue,FJS Building & Property Maintenance Ltd
Brighton & Hove City Council,http://statistics.data.gov.uk/id/local-authority/00ML,Housing Services General Fund,BVAHOG,Homelessness,HML,Premises Related,C,Rents Payable,CC,07/09/2012,PAY00504018,620.00,Revenue,Payment to Individual
Brighton & Hove City Council,http://statistics.data.gov.uk/id/local-authority/00ML,Environment and Regulatory Ser,BVAERS,Management Services (DEC),MGT,Transport Related,D,Direct Transport Costs,DA,07/09/2012,PAY00504019,1673.86,Revenue,Geesink Norba Ltd
Brighton & Hove City Council,http://statistics.data.gov.uk/id/local-authority/00ML,Housing Services Revnue Acc,BVAHOU,Hsing Management - HRA,HGM,Premises Related,C,Repair Maint n Alterations,CA,07/09/2012,PAY00504021,505.57,Revenue,Homebase Limited
Brighton & Hove City Council,http://statistics.data.gov.uk/id/local-authority/00ML,Environment and Regulatory Ser,BVAERS,Cem Crem and Mortuary Services,CCM,Supplies and Services,E,Equip't Furniture n Materials,EA,07/09/2012,PAY00504022,630.10,Revenue,Allsops CTF Ltd
Brighton & Hove City Council,http://statistics.data.gov.uk/id/local-authority/00ML,Environment and Regulatory Ser,BVAERS,Agricultural and Fisheries,AGF,Third Party Payments,F,Private Contractors,FJ,07/09/2012,PAY00504025,5280.00,Revenue,Blair Installations Ltd
Brighton & Hove City Council,http://statistics.data.gov.uk/id/local-authority/00ML,Non SERCOP,BVANON,Cap - Mgmnt & Support Services,4PT,New Construction n Conversion,PB,Level not required,NR5026,07/09/2012,PAY00504026,1920.00,Capital,Twofold Ltd
Brighton & Hove City Council,http://statistics.data.gov.uk/id/local-authority/00ML,Adult Social Care,BVASOC,S Svcs - Supported Employment,EMP,Premises Related,C,Energy Costs,CB,07/09/2012,PAY00504027,265.80,Revenue,Bizspace Ltd
Brighton & Hove City Council,http://statistics.data.gov.uk/id/local-authority/00ML,Adult Social Care,BVASOC,S Svcs - Supported Employment,EMP,Premises Related,C,Rents Payable,CC,07/09/2012,PAY00504027,182.00,Revenue,Bizspace Ltd
Brighton & Hove City Council,http://statistics.data.gov.uk/id/local-authority/00ML,Adult Social Care,BVASOC,S Svcs - Older People Svcs,PPL,Customer n Client Receipts,M,Fees n Charges,MB,07/09/2012,PAY00504028,-1655.10,Revenue,Eastridge Manor
Brighton & Hove City Council,http://statistics.data.gov.uk/id/local-authority/00ML,Adult Social Care,BVASOC,S Svcs - Older People Svcs,PPL,Third Party Payments,F,Other Establishments,FH,07/09/2012,PAY00504028,3485.10,Revenue,Eastridge Manor
Brighton & Hove City Council,http://statistics.data.gov.uk/id/local-authority/00ML,Central Services To The Public,BVACEN,Support Services (SSC),PPT,Supplies and Services,E,Miscellaneous Expenses,EM,07/09/2012,PAY00504029,1187.50,Revenue,Aviation Projects Ltd
Brighton & Hove City Council,http://statistics.data.gov.uk/id/local-authority/00ML,Adult Social Care,BVASOC,S Svcs - Learning Disability,LDY,Third Party Payments,F,Other Establishments,FH,07/09/2012,PAY00504030,74.25,Revenue,Prime Care Community Services Ltd
Brighton & Hove City Council,http://statistics.data.gov.uk/id/local-authority/00ML,Adult Social Care,BVASOC,S Svcs - Mental Health,MHT,Customer n Client Receipts,M,Fees n Charges,MB,07/09/2012,PAY00504030,-112.00,Revenue,Prime Care Community Services Ltd
Brighton & Hove City Council,http://statistics.data.gov.uk/id/local-authority/00ML,Adult Social Care,BVASOC,S Svcs - Mental Health,MHT,Third Party Payments,F,Other Establishments,FH,07/09/2012,PAY00504030,407.59,Revenue,Prime Care Community Services Ltd
Brighton & Hove City Council,http://statistics.data.gov.uk/id/local-authority/00ML,Adult Social Care,BVASOC,S Svcs - Older People Svcs,PPL,Customer n Client Receipts,M,Fees n Charges,MB,07/09/2012,PAY00504030,-1449.00,Revenue,Prime Care Community Services Ltd
Brighton & Hove City Council,http://statistics.data.gov.uk/id/local-authority/00ML,Adult Social Care,BVASOC,S Svcs - Older People Svcs,PPL,Third Party Payments,F,Other Establishments,FH,07/09/2012,PAY00504030,8877.64,Revenue,Prime Care Community Services Ltd
Brighton & Hove City Council,http://statistics.data.gov.uk/id/local-authority/00ML,Adult Social Care,BVASOC,S Svcs - Physical Disability,PDY,Customer n Client Receipts,M,Fees n Charges,MB,07/09/2012,PAY00504030,-275.00,Revenue,Prime Care Community Services Ltd
Brighton & Hove City Council,http://statistics.data.gov.uk/id/local-authority/00ML,Adult Social Care,BVASOC,S Svcs - Physical Disability,PDY,Third Party Payments,F,Other Establishments,FH,07/09/2012,PAY00504030,1585.41,Revenue,Prime Care Community Services Ltd
Brighton & Hove City Council,http://statistics.data.gov.uk/id/local-authority/00ML,Cultural and Related Services,BVACUL,Management Services (DEC),MGT,Transport Related,D,Direct Transport Costs,DA,07/09/2012,PAY00504031,1186.59,Revenue,Haynes Bros Ltd
Brighton & Hove City Council,http://statistics.data.gov.uk/id/local-authority/00ML,Housing Services General Fund,BVAHOG,Homelessness,HML,Premises Related,C,Rents Payable,CC,07/09/2012,PAY00504034,1968.04,Revenue,Sanctuary Housing Association
Brighton & Hove City Council,http://statistics.data.gov.uk/id/local-authority/00ML,Housing Services General Fund,BVAHOG,Homelessness,HML,Premises Related,C,Rents Payable,CC,07/09/2012,PAY00504035,13436.74,Revenue,KEM Property Services Ltd
Brighton & Hove City Council,http://statistics.data.gov.uk/id/local-authority/00ML,Housing Services General Fund,BVAHOG,Homelessness,HML,Premises Related,C,Rents Payable,CC,07/09/2012,PAY00504038,675.00,Revenue,Payment to Individual
Brighton & Hove City Council,http://statistics.data.gov.uk/id/local-authority/00ML,Adult Social Care,BVASOC,S Svcs - Learning Disability,LDY,Third Party Payments,F,Other Establishments,FH,07/09/2012,PAY00504039,67.40,Revenue,Allied Healthcare Brighton Domicillary
Brighton & Hove City Council,http://statistics.data.gov.uk/id/local-authority/00ML,Adult Social Care,BVASOC,S Svcs - Mental Health,MHT,Third Party Payments,F,Other Establishments,FH,07/09/2012,PAY00504039,36.25,Revenue,Allied Healthcare Brighton Domicillary
Brighton & Hove City Council,http://statistics.data.gov.uk/id/local-authority/00ML,Adult Social Care,BVASOC,S Svcs - Older People Svcs,PPL,Customer n Client Receipts,M,Fees n Charges,MB,07/09/2012,PAY00504039,-396.00,Revenue,Allied Healthcare Brighton Domicillary
Brighton & Hove City Council,http://statistics.data.gov.uk/id/local-authority/00ML,Adult Social Care,BVASOC,S Svcs - Older People Svcs,PPL,Third Party Payments,F,Other Establishments,FH,07/09/2012,PAY00504039,2160.97,Revenue,Allied Healthcare Brighton Domicillary
Brighton & Hove City Council,http://statistics.data.gov.uk/id/local-authority/00ML,Adult Social Care,BVASOC,S Svcs - Physical Disability,PDY,Customer n Client Receipts,M,Fees n Charges,MB,07/09/2012,PAY00504039,-63.00,Revenue,Allied Healthcare Brighton Domicillary
Brighton & Hove City Council,http://statistics.data.gov.uk/id/local-authority/00ML,Adult Social Care,BVASOC,S Svcs - Physical Disability,PDY,Third Party Payments,F,Other Establishments,FH,07/09/2012,PAY00504039,618.16,Revenue,Allied Healthcare Brighton Domicillary
Brighton & Hove City Council,http://statistics.data.gov.uk/id/local-authority/00ML,Housing Services General Fund,BVAHOG,Homelessness,HML,Premises Related,C,Rents Payable,CC,07/09/2012,PAY00504042,1400.00,Revenue,Payment to Individual
Brighton & Hove City Council,http://statistics.data.gov.uk/id/local-authority/00ML,Education Services,BVAEDU,Ed - Special Ed,EKE,Third Party Payments,F,Other Agencies,FL,07/09/2012,PAY00504045,630.73,Revenue,The New School at West Heath
Brighton & Hove City Council,http://statistics.data.gov.uk/id/local-authority/00ML,Cultural and Related Services,BVACUL,Culture & Heritage,CHG,Customer n Client Receipts,M,Fees n Charges,MB,07/09/2012,PAY00504046,1243.86,Revenue,Merlin Entertainment (Sea Life) Ltd
Brighton & Hove City Council,http://statistics.data.gov.uk/id/local-authority/00ML,Cultural and Related Services,BVACUL,Tourism,TRM,Supplies and Services,E,Miscellaneous Expenses,EM,07/09/2012,PAY00504046,505.42,Revenue,Merlin Entertainment (Sea Life) Ltd
Brighton & Hove City Council,http://statistics.data.gov.uk/id/local-authority/00ML,Cultural and Related Services,BVACUL,Highways and Roads - Mntnce,HRM,Premises Related,C,Repair Maint n Alterations,CA,07/09/2012,PAY00504047,750.00,Revenue,Tilleys Stonemasons Ltd
Brighton & Hove City Council,http://statistics.data.gov.uk/id/local-authority/00ML,Education Services,BVAEDU,Ed - Ed Other - Other,ENF,Premises Related,C,Repair Maint n Alterations,CA,07/09/2012,PAY00504049,390.00,Revenue,Tim Jordan Grounds Maintenance Ltd
Brighton & Hove City Council,http://statistics.data.gov.uk/id/local-authority/00ML,Cultural and Related Services,BVACUL,Open Spaces,PEN,Third Party Payments,F,Private Contractors,FJ,07/09/2012,PAY00504049,790.00,Revenue,Tim Jordan Grounds Maintenance Ltd
Brighton & Hove City Council,http://statistics.data.gov.uk/id/local-authority/00ML,Adult Social Care,BVASOC,S Svcs - Learning Disability,LDY,Customer n Client Receipts,M,Fees n Charges,MB,07/09/2012,PAY00504050,-342.00,Revenue,Frances Taylor Fdn B&H Home Care Service
Brighton & Hove City Council,http://statistics.data.gov.uk/id/local-authority/00ML,Adult Social Care,BVASOC,S Svcs - Learning Disability,LDY,Third Party Payments,F,Other Establishments,FH,07/09/2012,PAY00504050,11605.63,Revenue,Frances Taylor Fdn B&H Home Care Service
Brighton & Hove City Council,http://statistics.data.gov.uk/id/local-authority/00ML,Adult Social Care,BVASOC,S Svcs - Older People Svcs,PPL,Third Party Payments,F,Other Establishments,FH,07/09/2012,PAY00504050,628.25,Revenue,Frances Taylor Fdn B&H Home Care Service
Brighton & Hove City Council,http://statistics.data.gov.uk/id/local-authority/00ML,Non SERCOP,BVANON,Cap - Education Services,4ED,New Construction n Conversion,PB,Level not required,NR5026,07/09/2012,PAY00504051,91892.50,Capital,Wernick Hire Ltd
Brighton & Hove City Council,http://statistics.data.gov.uk/id/local-authority/00ML,Housing Services General Fund,BVAHOG,Homelessness,HML,Premises Related,C,Rents Payable,CC,07/09/2012,PAY00504054,750.00,Revenue,Payment to Individual
Brighton & Hove City Council,http://statistics.data.gov.uk/id/local-authority/00ML,Housing Services General Fund,BVAHOG,Homelessness,HML,Premises Related,C,Rents Payable,CC,07/09/2012,PAY00504055,725.00,Revenue,Payment to Individual
Brighton & Hove City Council,http://statistics.data.gov.uk/id/local-authority/00ML,Non SERCOP,BVANON,Cap - Housing Services - GF,4HG,Capital Grants,PF,Level not required,NR5012,07/09/2012,PAY00504058,750.00,Capital,D A Dray & Sons Ltd
Brighton & Hove City Council,http://statistics.data.gov.uk/id/local-authority/00ML,Cultural and Related Services,BVACUL,Culture & Heritage,CHG,Supplies and Services,E,Equip't Furniture n Materials,EA,07/09/2012,PAY00504059,736.00,Revenue,Entertainment Medical Srv
Brighton & Hove City Council,http://statistics.data.gov.uk/id/local-authority/00ML,Housing Services General Fund,BVAHOG,Homelessness,HML,Premises Related,C,Rents Payable,CC,07/09/2012,PAY00504060,540.00,Revenue,Payment to Individual
Brighton & Hove City Council,http://statistics.data.gov.uk/id/local-authority/00ML,Housing Services General Fund,BVAHOG,Homelessness,HML,Premises Related,C,Rents Payable,CC,07/09/2012,PAY00504061,2951.24,Revenue,Adelphi Court Services Limited
Brighton & Hove City Council,http://statistics.data.gov.uk/id/local-authority/00ML,Education Services,BVAEDU,Ed - Ed Other - Other,ENF,Premises Related,C,Repair Maint n Alterations,CA,07/09/2012,PAY00504062,135.00,Revenue,Lee Sullivan Contract Flooring Limited
Brighton & Hove City Council,http://statistics.data.gov.uk/id/local-authority/00ML,Education Services,BVAEDU,Ed - EY - Central,EAE,Premises Related,C,Repair Maint n Alterations,CA,07/09/2012,PAY00504062,391.50,Revenue,Lee Sullivan Contract Flooring Limited
Brighton & Hove City Council,http://statistics.data.gov.uk/id/local-authority/00ML,Adult Social Care,BVASOC,S Svcs - Learning Disability,LDY,Premises Related,C,Repair Maint n Alterations,CA,07/09/2012,PAY00504062,792.50,Revenue,Lee Sullivan Contract Flooring Limited
Brighton & Hove City Council,http://statistics.data.gov.uk/id/local-authority/00ML,Central Services To The Public,BVACEN,Support Services (SSC),PPT,Premises Related,C,Repair Maint n Alterations,CA,07/09/2012,PAY00504062,15176.60,Revenue,Lee Sullivan Contract Flooring Limited
Brighton & Hove City Council,http://statistics.data.gov.uk/id/local-authority/00ML,Planning Services,BVAPLA,Economic Development,ECD,Supplies and Services,E,Print Stat & Gen Office Exps,ED,07/09/2012,PAY00504063,854.79,Revenue,Posture People Ltd
Brighton & Hove City Council,http://statistics.data.gov.uk/id/local-authority/00ML,Non SERCOP,BVANON,Cap - Education Services,4ED,New Construction n Conversion,PB,Level not required,NR5026,07/09/2012,PAY00504064,42229.64,Capital,NPS South East Ltd
Brighton & Hove City Council,http://statistics.data.gov.uk/id/local-authority/00ML,Housing Services General Fund,BVAHOG,Homelessness,HML,Premises Related,C,Rents Payable,CC,07/09/2012,PAY00504065,800.00,Revenue,Payment to Individual
Brighton & Hove City Council,http://statistics.data.gov.uk/id/local-authority/00ML,Housing Services General Fund,BVAHOG,Homelessness,HML,Premises Related,C,Rents Payable,CC,07/09/2012,PAY00504067,900.00,Revenue,Payment to Individual
Brighton & Hove City Council,http://statistics.data.gov.uk/id/local-authority/00ML,Non SERCOP,BVANON,Cap - Housing Services - HRA,4HR,New Construction n Conversion,PB,Level not required,NR5026,07/09/2012,PAY00504068,3022.00,Capital,Mears Limited
Brighton & Hove City Council,http://statistics.data.gov.uk/id/local-authority/00ML,Environment and Regulatory Ser,BVAERS,Consumer Protection,CNP,Supplies and Services,E,Services,EF,07/09/2012,PAY00504070,741.00,Revenue,Norfolk County Council
Brighton & Hove City Council,http://statistics.data.gov.uk/id/local-authority/00ML,Adult Social Care,BVASOC,S Svcs - Learning Disability,LDY,Third Party Payments,F,Other Establishments,FH,07/09/2012,PAY00504072,705.47,Revenue,The Aldingbourne Trust
Brighton & Hove City Council,http://statistics.data.gov.uk/id/local-authority/00ML,Non SERCOP,BVANON,Cap - Housing Services - HRA,4HR,New Construction n Conversion,PB,Level not required,NR5026,07/09/2012,PAY00504073,1000.00,Capital,E N V Surveys Ltd
Brighton & Hove City Council,http://statistics.data.gov.uk/id/local-authority/00ML,Education Services,BVAEDU,Ed - EY - Central,EAE,Premises Related,C,Repair Maint n Alterations,CA,07/09/2012,PAY00504073,300.00,Revenue,E N V Surveys Ltd
Brighton & Hove City Council,http://statistics.data.gov.uk/id/local-authority/00ML,Housing Services General Fund,BVAHOG,Homelessness,HML,Supplies and Services,E,Equip't Furniture n Materials,EA,07/09/2012,PAY00504074,84.00,Revenue,Argos Business Solutions Ltd
Brighton & Hove City Council,http://statistics.data.gov.uk/id/local-authority/00ML,Non SERCOP,BVANON,Trusts,TRT,Supplies and Services,E,Miscellaneous Expenses,EM,07/09/2012,PAY00504074,382.45,Revenue,Argos Business Solutions Ltd
Brighton & Hove City Council,http://statistics.data.gov.uk/id/local-authority/00ML,Children�s Social Care,BVACSC,Child Srvcs - Other Fam Supp,FFX,Transfer Payments,G,Other Transfer Payments,GD,07/09/2012,PAY00504075,850.00,Revenue,Khalil Properties
Brighton & Hove City Council,http://statistics.data.gov.uk/id/local-authority/00ML,Environment and Regulatory Ser,BVAERS,Management Services (DEC),MGT,Transport Related,D,Direct Transport Costs,DA,07/09/2012,PAY00504076,734.03,Revenue,Farid UK Ltd
Brighton & Hove City Council,http://statistics.data.gov.uk/id/local-authority/00ML,Housing Services General Fund,BVAHOG,Homelessness,HML,Premises Related,C,Rents Payable,CC,07/09/2012,PAY00504077,2325.00,Revenue,Marchmont Estates Ltd
Brighton & Hove City Council,http://statistics.data.gov.uk/id/local-authority/00ML,Housing Services General Fund,BVAHOG,Homelessness,HML,Premises Related,C,Rents Payable,CC,07/09/2012,PAY00504079,830.00,Revenue,Payment to Individual
Brighton & Hove City Council,http://statistics.data.gov.uk/id/local-authority/00ML,Housing Services General Fund,BVAHOG,Homelessness,HML,Premises Related,C,Rents Payable,CC,07/09/2012,PAY00504080,925.00,Revenue,Payment to Individual
Brighton & Hove City Council,http://statistics.data.gov.uk/id/local-authority/00ML,Central Services To The Public,BVACEN,Trading Services,TRD,Supplies and Services,E,Services,EF,07/09/2012,PAY00504081,548.46,Revenue,Camelot Property Management Ltd
Brighton & Hove City Council,http://statistics.data.gov.uk/id/local-authority/00ML,Cultural and Related Services,BVACUL,Culture & Heritage,CHG,Premises Related,C,Repair Maint n Alterations,CA,07/09/2012,PAY00504085,419.95,Revenue,SGI Industries Ltd
Brighton & Hove City Council,http://statistics.data.gov.uk/id/local-authority/00ML,Adult Social Care,BVASOC,S Svcs - Older People Svcs,PPL,Customer n Client Receipts,M,Fees n Charges,MB,07/09/2012,PAY00504087,-634.20,Revenue,Appletree House Care Home
Brighton & Hove City Council,http://statistics.data.gov.uk/id/local-authority/00ML,Adult Social Care,BVASOC,S Svcs - Older People Svcs,PPL,Third Party Payments,F,Other Establishments,FH,07/09/2012,PAY00504087,1618.05,Revenue,Appletree House Care Home
Brighton & Hove City Council,http://statistics.data.gov.uk/id/local-authority/00ML,Central Services To The Public,BVACEN,Support Services (SSC),PPT,Supplies and Services,E,Communications n Computing,EH,07/09/2012,PAY00504088,654.00,Revenue,Capita Business Services Ltd
Brighton & Hove City Council,http://statistics.data.gov.uk/id/local-authority/00ML,Cultural and Related Services,BVACUL,Open Spaces,PEN,Supplies and Services,E,Equip't Furniture n Materials,EA,07/09/2012,PAY00504089,2572.60,Revenue,Broxap Ltd
Brighton & Hove City Council,http://statistics.data.gov.uk/id/local-authority/00ML,Cultural and Related Services,BVACUL,Recreation and sport,REC,Premises Related,C,Repair Maint n Alterations,CA,07/09/2012,PAY00504090,975.00,Revenue,Abacus Property Maintenance Ltd
Brighton & Hove City Council,http://statistics.data.gov.uk/id/local-authority/00ML,Central Services To The Public,BVACEN,Support Services (SSC),PPT,Indirect Employees,B,Training,BM,07/09/2012,PAY00504095,2200.00,Revenue,Chartered Institute Of Housing
Brighton & Hove City Council,http://statistics.data.gov.uk/id/local-authority/00ML,Planning Services,BVAPLA,Economic Development,ECD,Premises Related,C,Repair Maint n Alterations,CA,07/09/2012,PAY00504097,885.00,Revenue,C & S Rubbish Clearance
